Organisation Name,Organisation Code,Unique Ref No,Effective Date,Directorate  where expenditure incurred,Supplier Name,Payment Date,Net Amount,Purpose of Spend,Procurement Classification (Higher Level),Procurement Classification (Lower Level),Capital/Revenue
Walsall Council,http://opendatacommunities.org/id/metropolitan-district-council/walsall,WC98-01,30/09/2018,Economy & Environment,11KBW,23/11/2018,"1,365.00",73014-LEGAL FEES-PRIV CONTRACTOR FEES,CEMETERIES CENTRAL ADMINISTRATION,Third Party Payments,Revenue
Walsall Council,http://opendatacommunities.org/id/metropolitan-district-council/walsall,WC98-02,30/09/2018,Adult Social Care,39 ESSEX STREET LLP PFA,07/11/2018,400.00,73014-LEGAL FEES-PRIV CONTRACTOR FEES,SAFEGUARDING,Third Party Payments,Revenue
Walsall Council,http://opendatacommunities.org/id/metropolitan-district-council/walsall,WC98-03,30/09/2018,Resources and Transformation,3C TECHNOLOGY LTD,14/11/2018,529.00,63800-COMPUTER EQUIPMENT AND SUPPLIES,RECHARGEABLE EQUIPMENT,Supplies & Services,Revenue
Walsall Council,http://opendatacommunities.org/id/metropolitan-district-council/walsall,WC98-04,30/09/2018,Childrens,402K CONSULTANCY,28/11/2018,735.00,63102-CONSULTANTS FEES - CORPORATE,SAFEGUARDING BOARD,Supplies & Services,Revenue
Walsall Council,http://opendatacommunities.org/id/metropolitan-district-council/walsall,WC98-05,30/09/2018,Adult Social Care,5 CARE SERVICES LTD,21/11/2018,281.20,73025-PROFESSIONAL SERVICES-PRIV CONTRACTOR & OTHER AGENCIES,COMMUNITY INTERMEDIATE CARE,Third Party Payments,Revenue
Walsall Council,http://opendatacommunities.org/id/metropolitan-district-council/walsall,WC98-06,30/09/2018,Childrens,5 CARE SERVICES LTD,19/11/2018,357.00,63000-PROFESSIONAL FEES AND SERVICES,DIRECTLY COMMISSIONED NURSING SERVICES,Supplies & Services,Revenue
Walsall Council,http://opendatacommunities.org/id/metropolitan-district-council/walsall,WC98-07,30/09/2018,Adult Social Care,5 CARE SERVICES LTD,28/11/2018,506.16,73025-PROFESSIONAL SERVICES-PRIV CONTRACTOR & OTHER AGENCIES,COMMUNITY INTERMEDIATE CARE,Third Party Payments,Revenue
Walsall Council,http://opendatacommunities.org/id/metropolitan-district-council/walsall,WC98-08,30/09/2018,Adult Social Care,5 CARE SERVICES LTD,21/11/2018,731.01,73025-PROFESSIONAL SERVICES-PRIV CONTRACTOR & OTHER AGENCIES,COMMUNITY INTERMEDIATE CARE,Third Party Payments,Revenue
Walsall Council,http://opendatacommunities.org/id/metropolitan-district-council/walsall,WC98-09,30/09/2018,Childrens,5 CARE SERVICES LTD,05/11/2018,"1,127.00",63000-PROFESSIONAL FEES AND SERVICES,DIRECTLY COMMISSIONED NURSING SERVICES,Supplies & Services,Revenue
Walsall Council,http://opendatacommunities.org/id/metropolitan-district-council/walsall,WC98-10,30/09/2018,Childrens,5 CARE SERVICES LTD,14/11/2018,"1,375.50",63000-PROFESSIONAL FEES AND SERVICES,DIRECTLY COMMISSIONED NURSING SERVICES,Supplies & Services,Revenue
Walsall Council,http://opendatacommunities.org/id/metropolitan-district-council/walsall,WC98-11,30/09/2018,Adult Social Care,5 CARE SERVICES LTD,15/11/2018,"33,951.09",73372-DOMICILIARY CARE,OP PACKAGE/PLACEMENT COSTS,Third Party Payments,Revenue
Walsall Council,http://opendatacommunities.org/id/metropolitan-district-council/walsall,WC98-12,30/09/2018,Resources and Transformation,A & M ELLIS,02/11/2018,"2,700.00",62008-OUTWORK-PRINT ROOM,PRINTING SERVICES,Supplies & Services,Revenue
Walsall Council,http://opendatacommunities.org/id/metropolitan-district-council/walsall,WC98-13,30/09/2018,Resources and Transformation,A D T FIRE AND SECURITY PLC,19/11/2018,272.63,73002-SECURITY-PRIV CONTRACTOR FEES,CENTRALISED MAINTENANCE,Third Party Payments,Revenue
Walsall Council,http://opendatacommunities.org/id/metropolitan-district-council/walsall,WC98-14,30/09/2018,Resources and Transformation,A D T FIRE AND SECURITY PLC,19/11/2018,427.74,73002-SECURITY-PRIV CONTRACTOR FEES,CENTRALISED MAINTENANCE,Third Party Payments,Revenue
Walsall Council,http://opendatacommunities.org/id/metropolitan-district-council/walsall,WC98-15,30/09/2018,Childrens,A D T FIRE AND SECURITY PLC,28/11/2018,636.92,60008-MAINTENANCE-FURNITURE & EQUIPMENT,CONTACT SESSIONAL STAFF,Supplies & Services,Revenue
Walsall Council,http://opendatacommunities.org/id/metropolitan-district-council/walsall,WC98-16,30/09/2018,Economy & Environment,A F BLAKEMORE & SON LTD,21/11/2018,289.74,61018-DRINKS-PROVISIONS,OAK PARK,Supplies & Services,Revenue
Walsall Council,http://opendatacommunities.org/id/metropolitan-district-council/walsall,WC98-17,30/09/2018,Economy & Environment,A F BLAKEMORE & SON LTD,01/11/2018,296.77,61018-DRINKS-PROVISIONS,OAK PARK,Supplies & Services,Revenue
Walsall Council,http://opendatacommunities.org/id/metropolitan-district-council/walsall,WC98-18,30/09/2018,Economy & Environment,A F BLAKEMORE & SON LTD,23/11/2018,335.11,61018-DRINKS-PROVISIONS,OAK PARK,Supplies & Services,Revenue
Walsall Council,http://opendatacommunities.org/id/metropolitan-district-council/walsall,WC98-19,30/09/2018,Economy & Environment,A F BLAKEMORE & SON LTD,05/11/2018,383.42,61018-DRINKS-PROVISIONS,OAK PARK,Supplies & Services,Revenue
Walsall Council,http://opendatacommunities.org/id/metropolitan-district-council/walsall,WC98-20,30/09/2018,Economy & Environment,A F BLAKEMORE & SON LTD,21/11/2018,395.88,61008-CONFECTIONERY/SNACKS-PROVISIONS,OAK PARK,Supplies & Services,Revenue
Walsall Council,http://opendatacommunities.org/id/metropolitan-district-council/walsall,WC98-21,30/09/2018,Adult Social Care,A F BLAKEMORE & SON LTD,09/11/2018,431.36,61016-FOOD AND BEVERAGES-PROVISIONS,GOSCOTE,Supplies & Services,Revenue
Walsall Council,http://opendatacommunities.org/id/metropolitan-district-council/walsall,WC98-22,30/09/2018,Economy & Environment,A F BLAKEMORE & SON LTD,28/11/2018,452.26,61008-CONFECTIONERY/SNACKS-PROVISIONS,OAK PARK,Supplies & Services,Revenue
Walsall Council,http://opendatacommunities.org/id/metropolitan-district-council/walsall,WC98-23,30/09/2018,Adult Social Care,A F BLAKEMORE & SON LTD,23/11/2018,457.09,61016-FOOD AND BEVERAGES-PROVISIONS,GOSCOTE,Supplies & Services,Revenue
Walsall Council,http://opendatacommunities.org/id/metropolitan-district-council/walsall,WC98-24,30/09/2018,Economy & Environment,A F BLAKEMORE & SON LTD,05/11/2018,463.52,61008-CONFECTIONERY/SNACKS-PROVISIONS,OAK PARK,Supplies & Services,Revenue
Walsall Council,http://opendatacommunities.org/id/metropolitan-district-council/walsall,WC98-25,30/09/2018,Economy & Environment,A F BLAKEMORE & SON LTD,09/11/2018,522.85,61018-DRINKS-PROVISIONS,OAK PARK,Supplies & Services,Revenue
Walsall Council,http://opendatacommunities.org/id/metropolitan-district-council/walsall,WC98-26,30/09/2018,Economy & Environment,A F BLAKEMORE & SON LTD,02/11/2018,553.51,61008-CONFECTIONERY/SNACKS-PROVISIONS,DARLASTON LEISURE CENTRE,Supplies & Services,Revenue
Walsall Council,http://opendatacommunities.org/id/metropolitan-district-council/walsall,WC98-27,30/09/2018,Economy & Environment,A F BLAKEMORE & SON LTD,01/11/2018,603.06,61008-CONFECTIONERY/SNACKS-PROVISIONS,OAK PARK,Supplies & Services,Revenue
Walsall Council,http://opendatacommunities.org/id/metropolitan-district-council/walsall,WC98-28,30/09/2018,Childrens,REDACTED,05/11/2018,378.00,73506-DIRECT PAYMENT,FAMILY SUPPORT - DIRECT PAYMENTS,Third Party Payments,Revenue
Walsall Council,http://opendatacommunities.org/id/metropolitan-district-council/walsall,WC98-29,30/09/2018,Adult Social Care,ABBEY COURT NURSING & RESIDEN,12/11/2018,"1,876.52",73501-RESIDENTIAL EMI,PHYSICAL SUPPORT,Third Party Payments,Revenue
Walsall Council,http://opendatacommunities.org/id/metropolitan-district-council/walsall,WC98-30,30/09/2018,Adult Social Care,ABBEY COURT NURSING & RESIDEN,12/11/2018,"1,876.52",73501-RESIDENTIAL EMI,PHYSICAL SUPPORT,Third Party Payments,Revenue
Walsall Council,http://opendatacommunities.org/id/metropolitan-district-council/walsall,WC98-31,30/09/2018,Adult Social Care,ABBEY COURT NURSING & RESIDEN,12/11/2018,"1,876.52",73501-RESIDENTIAL EMI,SUPPORT WITH MEMORY & COGNITION,Third Party Payments,Revenue
Walsall Council,http://opendatacommunities.org/id/metropolitan-district-council/walsall,WC98-32,30/09/2018,Adult Social Care,ABBEY COURT NURSING & RESIDEN,12/11/2018,"1,937.08",73501-RESIDENTIAL EMI,SUPPORT WITH MEMORY & COGNITION,Third Party Payments,Revenue
Walsall Council,http://opendatacommunities.org/id/metropolitan-district-council/walsall,WC98-33,30/09/2018,Adult Social Care,ABBEY HEALTHCARE HOMES LTD,12/11/2018,"1,485.71",73502-NURSING,LEARNING DISABILITY SUPPORT,Third Party Payments,Revenue
Walsall Council,http://opendatacommunities.org/id/metropolitan-district-council/walsall,WC98-34,30/09/2018,Adult Social Care,ABBEY HEALTHCARE HOMES LTD,12/11/2018,"1,699.28",73502-NURSING,PHYSICAL SUPPORT,Third Party Payments,Revenue
Walsall Council,http://opendatacommunities.org/id/metropolitan-district-council/walsall,WC98-35,30/09/2018,Adult Social Care,ABBEY HEALTHCARE HOMES LTD,12/11/2018,"2,294.08",73502-NURSING,PHYSICAL SUPPORT,Third Party Payments,Revenue
Walsall Council,http://opendatacommunities.org/id/metropolitan-district-council/walsall,WC98-36,30/09/2018,Adult Social Care,ABBEY HEALTHCARE HOMES LTD,12/11/2018,"3,000.00",73500-RESIDENTIAL,LEARNING DISABILITY SUPPORT,Third Party Payments,Revenue
Walsall Council,http://opendatacommunities.org/id/metropolitan-district-council/walsall,WC98-37,30/09/2018,Adult Social Care,ABBEY HEALTHCARE HOMES LTD,12/11/2018,"3,000.00",73502-NURSING,LEARNING DISABILITY SUPPORT,Third Party Payments,Revenue
Walsall Council,http://opendatacommunities.org/id/metropolitan-district-council/walsall,WC98-38,30/09/2018,Adult Social Care,ABBEY HEALTHCARE HOMES LTD,12/11/2018,"3,000.00",73502-NURSING,LEARNING DISABILITY SUPPORT,Third Party Payments,Revenue
Walsall Council,http://opendatacommunities.org/id/metropolitan-district-council/walsall,WC98-39,30/09/2018,Childrens,ABC DAY NURSERY (WILLENHALL) LIMITED,05/11/2018,"11,575.35",66505-OTHER-GRANTS TO OTHER ORGS,EARLY YEARS - 3 YR OLDS,Third Party Payments,Revenue
Walsall Council,http://opendatacommunities.org/id/metropolitan-district-council/walsall,WC98-40,30/09/2018,Childrens,ABC FOSTERING,02/11/2018,"1,748.57",74037-INDEPENDENT FOSTER CARE-OTH AGENCY PROVISION,EXTERNAL FOSTER CARE PROVISION,Third Party Payments,Revenue
Walsall Council,http://opendatacommunities.org/id/metropolitan-district-council/walsall,WC98-41,30/09/2018,Childrens,ABC FOSTERING,02/11/2018,"2,527.20",74037-INDEPENDENT FOSTER CARE-OTH AGENCY PROVISION,EXTERNAL FOSTER CARE PROVISION,Third Party Payments,Revenue
Walsall Council,http://opendatacommunities.org/id/metropolitan-district-council/walsall,WC98-42,30/09/2018,Childrens,ABC FOSTERING,02/11/2018,"2,527.20",74037-INDEPENDENT FOSTER CARE-OTH AGENCY PROVISION,EXTERNAL FOSTER CARE PROVISION,Third Party Payments,Revenue
Walsall Council,http://opendatacommunities.org/id/metropolitan-district-council/walsall,WC98-43,30/09/2018,Childrens,ABC FOSTERING,29/11/2018,"2,527.20",74037-INDEPENDENT FOSTER CARE-OTH AGENCY PROVISION,EXTERNAL FOSTER CARE PROVISION,Third Party Payments,Revenue
Walsall Council,http://opendatacommunities.org/id/metropolitan-district-council/walsall,WC98-44,30/09/2018,Childrens,ABC FOSTERING,29/11/2018,"2,527.20",74037-INDEPENDENT FOSTER CARE-OTH AGENCY PROVISION,EXTERNAL FOSTER CARE PROVISION,Third Party Payments,Revenue
Walsall Council,http://opendatacommunities.org/id/metropolitan-district-council/walsall,WC98-45,30/09/2018,Childrens,ABC FOSTERING,02/11/2018,"2,635.20",74037-INDEPENDENT FOSTER CARE-OTH AGENCY PROVISION,EXTERNAL FOSTER CARE PROVISION,Third Party Payments,Revenue
Walsall Council,http://opendatacommunities.org/id/metropolitan-district-council/walsall,WC98-46,30/09/2018,Childrens,ABC FOSTERING,29/11/2018,"2,635.20",74037-INDEPENDENT FOSTER CARE-OTH AGENCY PROVISION,EXTERNAL FOSTER CARE PROVISION,Third Party Payments,Revenue
Walsall Council,http://opendatacommunities.org/id/metropolitan-district-council/walsall,WC98-47,30/09/2018,Childrens,ABC FOSTERING,02/11/2018,"2,707.20",74037-INDEPENDENT FOSTER CARE-OTH AGENCY PROVISION,EXTERNAL FOSTER CARE PROVISION,Third Party Payments,Revenue
Walsall Council,http://opendatacommunities.org/id/metropolitan-district-council/walsall,WC98-48,30/09/2018,Childrens,ABC FOSTERING,29/11/2018,"2,707.20",74037-INDEPENDENT FOSTER CARE-OTH AGENCY PROVISION,EXTERNAL FOSTER CARE PROVISION,Third Party Payments,Revenue
Walsall Council,http://opendatacommunities.org/id/metropolitan-district-council/walsall,WC98-49,30/09/2018,Childrens,ABC FOSTERING,02/11/2018,"2,859.48",74037-INDEPENDENT FOSTER CARE-OTH AGENCY PROVISION,EXTERNAL FOSTER CARE PROVISION,Third Party Payments,Revenue
Walsall Council,http://opendatacommunities.org/id/metropolitan-district-council/walsall,WC98-50,30/09/2018,Childrens,ABC FOSTERING,29/11/2018,"2,859.48",74037-INDEPENDENT FOSTER CARE-OTH AGENCY PROVISION,EXTERNAL FOSTER CARE PROVISION,Third Party Payments,Revenue
Walsall Council,http://opendatacommunities.org/id/metropolitan-district-council/walsall,WC98-51,30/09/2018,Childrens,ABC FOSTERING,02/11/2018,"3,042.00",74037-INDEPENDENT FOSTER CARE-OTH AGENCY PROVISION,EXTERNAL FOSTER CARE PROVISION,Third Party Payments,Revenue
Walsall Council,http://opendatacommunities.org/id/metropolitan-district-council/walsall,WC98-52,30/09/2018,Childrens,ABC FOSTERING,29/11/2018,"3,042.00",74037-INDEPENDENT FOSTER CARE-OTH AGENCY PROVISION,EXTERNAL FOSTER CARE PROVISION,Third Party Payments,Revenue
Walsall Council,http://opendatacommunities.org/id/metropolitan-district-council/walsall,WC98-53,30/09/2018,Childrens,ABC FOSTERING,29/11/2018,"3,264.00",74037-INDEPENDENT FOSTER CARE-OTH AGENCY PROVISION,EXTERNAL FOSTER CARE PROVISION,Third Party Payments,Revenue
Walsall Council,http://opendatacommunities.org/id/metropolitan-district-council/walsall,WC98-54,30/09/2018,Childrens,ABC TEACHERS LIMITED,05/11/2018,410.00,63000-PROFESSIONAL FEES AND SERVICES,SCHOOL IMPROVEMENT-VIRTUAL SCHOOL,Supplies & Services,Revenue
Walsall Council,http://opendatacommunities.org/id/metropolitan-district-council/walsall,WC98-55,30/09/2018,Childrens,ABC TEACHERS LIMITED,05/11/2018,410.00,63000-PROFESSIONAL FEES AND SERVICES,SCHOOL IMPROVEMENT-VIRTUAL SCHOOL,Supplies & Services,Revenue
Walsall Council,http://opendatacommunities.org/id/metropolitan-district-council/walsall,WC98-56,30/09/2018,Childrens,ABC TEACHERS LIMITED,05/11/2018,820.00,63000-PROFESSIONAL FEES AND SERVICES,SCHOOL IMPROVEMENT-VIRTUAL SCHOOL,Supplies & Services,Revenue
Walsall Council,http://opendatacommunities.org/id/metropolitan-district-council/walsall,WC98-57,30/09/2018,Childrens,ABC TEACHERS LIMITED,05/11/2018,820.00,63000-PROFESSIONAL FEES AND SERVICES,SCHOOL IMPROVEMENT-VIRTUAL SCHOOL,Supplies & Services,Revenue
Walsall Council,http://opendatacommunities.org/id/metropolitan-district-council/walsall,WC98-58,30/09/2018,Childrens,ABC TEACHERS LIMITED,05/11/2018,"1,025.00",63000-PROFESSIONAL FEES AND SERVICES,SCHOOL IMPROVEMENT-VIRTUAL SCHOOL,Supplies & Services,Revenue
Walsall Council,http://opendatacommunities.org/id/metropolitan-district-council/walsall,WC98-59,30/09/2018,Childrens,ABC TEACHERS LIMITED,05/11/2018,"2,050.00",63000-PROFESSIONAL FEES AND SERVICES,SCHOOL IMPROVEMENT-VIRTUAL SCHOOL,Supplies & Services,Revenue
Walsall Council,http://opendatacommunities.org/id/metropolitan-district-council/walsall,WC98-60,30/09/2018,Adult Social Care,REDACTED,08/11/2018,"1,999.20",73506-DIRECT PAYMENT,LEARNING DISABILITY SUPPORT,Third Party Payments,Revenue
Walsall Council,http://opendatacommunities.org/id/metropolitan-district-council/walsall,WC98-61,30/09/2018,Childrens,ABLEWELL CARS,01/11/2018,"6,998.24",52000-WITH DRIVER-HIRE OF VEHICLES,HOME TO SCHOOL TRANSPORT,Transport,Revenue
Walsall Council,http://opendatacommunities.org/id/metropolitan-district-council/walsall,WC98-62,30/09/2018,Economy & Environment,ABRSM,16/11/2018,"1,270.00",63124-FEES & LICENCES-SERVICES,MUSIC HUB FOREST ARTS,Supplies & Services,Revenue
Walsall Council,http://opendatacommunities.org/id/metropolitan-district-council/walsall,WC98-63,30/09/2018,Childrens,ABS TAXIS (ALDRIDGE),08/11/2018,"1,106.00",52000-WITH DRIVER-HIRE OF VEHICLES,HOME TO SCHOOL TRANSPORT,Transport,Revenue
Walsall Council,http://opendatacommunities.org/id/metropolitan-district-council/walsall,WC98-64,30/09/2018,Adult Social Care,ACCOMPLISH GROUP LTD,16/11/2018,"49,194.85",73500-RESIDENTIAL,MENTAL HEALTH SUPPORT,Third Party Payments,Revenue
Walsall Council,http://opendatacommunities.org/id/metropolitan-district-council/walsall,WC98-65,30/09/2018,Adult Social Care,ACCORD - AGE MATTERS,08/11/2018,-294.07,76423-DIRECT PAYMENTS SUPPORT,DIRECT PAYMENT SUPPORT ORGANISATIONS,Transfer Payments,Revenue
Walsall Council,http://opendatacommunities.org/id/metropolitan-district-council/walsall,WC98-66,30/09/2018,Adult Social Care,ACCORD HOUSING ASSOCIATION LTD#135,12/11/2018,"4,505.40",73500-RESIDENTIAL,LEARNING DISABILITY SUPPORT,Third Party Payments,Revenue
Walsall Council,http://opendatacommunities.org/id/metropolitan-district-council/walsall,WC98-67,30/09/2018,Adult Social Care,ACCORD HOUSING ASSOCIATION LTD#135,12/11/2018,"4,505.40",73500-RESIDENTIAL,LEARNING DISABILITY SUPPORT,Third Party Payments,Revenue
Walsall Council,http://opendatacommunities.org/id/metropolitan-district-council/walsall,WC98-68,30/09/2018,Adult Social Care,ACCORD HOUSING ASSOCIATION LTD#135,12/11/2018,"4,505.40",73500-RESIDENTIAL,LEARNING DISABILITY SUPPORT,Third Party Payments,Revenue
Walsall Council,http://opendatacommunities.org/id/metropolitan-district-council/walsall,WC98-69,30/09/2018,Adult Social Care,ACCORD HOUSING ASSOCIATION LTD#135,12/11/2018,"4,505.40",73500-RESIDENTIAL,LEARNING DISABILITY SUPPORT,Third Party Payments,Revenue
Walsall Council,http://opendatacommunities.org/id/metropolitan-district-council/walsall,WC98-70,30/09/2018,Adult Social Care,ACCORD HOUSING ASSOCIATION LTD#135,12/11/2018,"6,288.08",73500-RESIDENTIAL,LEARNING DISABILITY SUPPORT,Third Party Payments,Revenue
Walsall Council,http://opendatacommunities.org/id/metropolitan-district-council/walsall,WC98-71,30/09/2018,Adult Social Care,ACCORD HOUSING ASSOCIATION LTD#135,12/11/2018,"6,288.08",73500-RESIDENTIAL,LEARNING DISABILITY SUPPORT,Third Party Payments,Revenue
Walsall Council,http://opendatacommunities.org/id/metropolitan-district-council/walsall,WC98-72,30/09/2018,Adult Social Care,ACCORD HOUSING ASSOCIATION LTD#135,12/11/2018,"6,288.08",73500-RESIDENTIAL,LEARNING DISABILITY SUPPORT,Third Party Payments,Revenue
Walsall Council,http://opendatacommunities.org/id/metropolitan-district-council/walsall,WC98-73,30/09/2018,Childrens,ACCORD HOUSING ASSOCIATION LTD#135,13/11/2018,"6,655.50",63102-CONSULTANTS FEES - CORPORATE,TOXIC TRIO,Supplies & Services,Revenue
Walsall Council,http://opendatacommunities.org/id/metropolitan-district-council/walsall,WC98-74,30/09/2018,Childrens,ACCORD HOUSING ASSOCIATION LTD#135,15/11/2018,"6,655.50",63102-CONSULTANTS FEES - CORPORATE,TOXIC TRIO,Supplies & Services,Revenue
Walsall Council,http://opendatacommunities.org/id/metropolitan-district-council/walsall,WC98-75,30/09/2018,Childrens,ACCORD HOUSING ASSOCIATION LTD#135,15/11/2018,"6,655.50",63102-CONSULTANTS FEES - CORPORATE,TOXIC TRIO,Supplies & Services,Revenue
Walsall Council,http://opendatacommunities.org/id/metropolitan-district-council/walsall,WC98-76,30/09/2018,Childrens,ACCORD HOUSING ASSOCIATION LTD#135,15/11/2018,"6,655.50",63102-CONSULTANTS FEES - CORPORATE,TOXIC TRIO,Supplies & Services,Revenue
Walsall Council,http://opendatacommunities.org/id/metropolitan-district-council/walsall,WC98-77,30/09/2018,Adult Social Care,ACCORD HOUSING ASSOCIATION LTD#135,15/11/2018,"33,197.18",73372-DOMICILIARY CARE,OP PACKAGE/PLACEMENT COSTS,Third Party Payments,Revenue
Walsall Council,http://opendatacommunities.org/id/metropolitan-district-council/walsall,WC98-78,30/09/2018,Economy & Environment,ACCORD HOUSING ASSOCIATION LTD#135,07/11/2018,"187,956.69",66500-GRANTS TO OTHER ORGS,CITY DEAL WELFARE PILOT,Third Party Payments,Revenue
Walsall Council,http://opendatacommunities.org/id/metropolitan-district-council/walsall,WC98-79,30/09/2018,Resources and Transformation,ACE PA HIRE,28/11/2018,300.00,62523-EVENTS,MAYORS SECRETARIAT,Supplies & Services,Revenue
Walsall Council,http://opendatacommunities.org/id/metropolitan-district-council/walsall,WC98-80,30/09/2018,Adult Social Care,ACEPAY LTD (COTTAGE NUR HOME),12/11/2018,"1,688.84",73500-RESIDENTIAL,PHYSICAL SUPPORT,Third Party Payments,Revenue
Walsall Council,http://opendatacommunities.org/id/metropolitan-district-council/walsall,WC98-81,30/09/2018,Adult Social Care,ACEPAY LTD (COTTAGE NUR HOME),12/11/2018,"2,039.68",73502-NURSING,PHYSICAL SUPPORT,Third Party Payments,Revenue
Walsall Council,http://opendatacommunities.org/id/metropolitan-district-council/walsall,WC98-82,30/09/2018,Adult Social Care,ACEPAY LTD (COTTAGE NUR HOME),12/11/2018,"2,039.68",73502-NURSING,SUPPORT WITH MEMORY & COGNITION,Third Party Payments,Revenue
Walsall Council,http://opendatacommunities.org/id/metropolitan-district-council/walsall,WC98-83,30/09/2018,Adult Social Care,ACEPAY LTD (COTTAGE NUR HOME),12/11/2018,"2,039.68",73502-NURSING,SUPPORT WITH MEMORY & COGNITION,Third Party Payments,Revenue
Walsall Council,http://opendatacommunities.org/id/metropolitan-district-council/walsall,WC98-84,30/09/2018,Adult Social Care,ACEPAY LTD (COTTAGE NUR HOME),12/11/2018,"2,039.68",73502-NURSING,PHYSICAL SUPPORT,Third Party Payments,Revenue
Walsall Council,http://opendatacommunities.org/id/metropolitan-district-council/walsall,WC98-85,30/09/2018,Adult Social Care,ACEPAY LTD (COTTAGE NUR HOME),12/11/2018,"2,039.68",73502-NURSING,PHYSICAL SUPPORT,Third Party Payments,Revenue
Walsall Council,http://opendatacommunities.org/id/metropolitan-district-council/walsall,WC98-86,30/09/2018,Adult Social Care,ACEPAY LTD (COTTAGE NUR HOME),12/11/2018,"2,039.68",73502-NURSING,PHYSICAL SUPPORT,Third Party Payments,Revenue
Walsall Council,http://opendatacommunities.org/id/metropolitan-district-council/walsall,WC98-87,30/09/2018,Adult Social Care,ACEPAY LTD (COTTAGE NUR HOME),12/11/2018,"2,039.68",73502-NURSING,PHYSICAL SUPPORT,Third Party Payments,Revenue
Walsall Council,http://opendatacommunities.org/id/metropolitan-district-council/walsall,WC98-88,30/09/2018,Adult Social Care,ACEPAY LTD (COTTAGE NUR HOME),12/11/2018,"2,039.68",73502-NURSING,PHYSICAL SUPPORT,Third Party Payments,Revenue
Walsall Council,http://opendatacommunities.org/id/metropolitan-district-council/walsall,WC98-89,30/09/2018,Adult Social Care,ACEPAY LTD (COTTAGE NUR HOME),12/11/2018,"2,039.68",73502-NURSING,PHYSICAL SUPPORT,Third Party Payments,Revenue
Walsall Council,http://opendatacommunities.org/id/metropolitan-district-council/walsall,WC98-90,30/09/2018,Adult Social Care,ACEPAY LTD (COTTAGE NUR HOME),12/11/2018,"3,278.06",73502-NURSING,SOCIAL SUPPORT,Third Party Payments,Revenue
Walsall Council,http://opendatacommunities.org/id/metropolitan-district-council/walsall,WC98-91,30/09/2018,Adult Social Care,ACEPAY LTD (COTTAGE NUR HOME),12/11/2018,"11,209.49",73502-NURSING,PHYSICAL SUPPORT,Third Party Payments,Revenue
Walsall Council,http://opendatacommunities.org/id/metropolitan-district-council/walsall,WC98-92,30/09/2018,Adult Social Care,ACORN REST HOME,12/11/2018,"1,688.84",73500-RESIDENTIAL,PHYSICAL SUPPORT,Third Party Payments,Revenue
Walsall Council,http://opendatacommunities.org/id/metropolitan-district-council/walsall,WC98-93,30/09/2018,Adult Social Care,ACORN REST HOME,12/11/2018,"2,140.00",73500-RESIDENTIAL,SOCIAL SUPPORT,Third Party Payments,Revenue
Walsall Council,http://opendatacommunities.org/id/metropolitan-district-council/walsall,WC98-94,30/09/2018,Childrens,ACORNS CHILDRENS HOSPICE TRUST,01/11/2018,750.00,63000-PROFESSIONAL FEES AND SERVICES,DIRECTLY COMMISSIONED NURSING SERVICES,Supplies & Services,Revenue
Walsall Council,http://opendatacommunities.org/id/metropolitan-district-council/walsall,WC98-95,30/09/2018,Childrens,ACORNS CHILDRENS HOSPICE TRUST,21/11/2018,750.00,63000-PROFESSIONAL FEES AND SERVICES,DIRECTLY COMMISSIONED NURSING SERVICES,Supplies & Services,Revenue
Walsall Council,http://opendatacommunities.org/id/metropolitan-district-council/walsall,WC98-96,30/09/2018,Childrens,ACORNS CHILDRENS HOSPICE TRUST,14/11/2018,"1,387.16",63000-PROFESSIONAL FEES AND SERVICES,DIRECTLY COMMISSIONED NURSING SERVICES,Supplies & Services,Revenue
Walsall Council,http://opendatacommunities.org/id/metropolitan-district-council/walsall,WC98-97,30/09/2018,Childrens,ACORNS CHILDRENS HOSPICE TRUST,21/11/2018,"1,515.19",63000-PROFESSIONAL FEES AND SERVICES,DIRECTLY COMMISSIONED NURSING SERVICES,Supplies & Services,Revenue
Walsall Council,http://opendatacommunities.org/id/metropolitan-district-council/walsall,WC98-98,30/09/2018,Childrens,ACORNS CHILDRENS HOSPICE TRUST,14/11/2018,"1,662.86",63000-PROFESSIONAL FEES AND SERVICES,DIRECTLY COMMISSIONED NURSING SERVICES,Supplies & Services,Revenue
Walsall Council,http://opendatacommunities.org/id/metropolitan-district-council/walsall,WC98-99,30/09/2018,Holding Accounts,ACTIVE LEGAL,06/11/2018,600.00,67001-MISC INSURANCES - PAYMENT OF CLAIMS,PUBLIC LIABILITY,Supplies & Services,Revenue
Walsall Council,http://opendatacommunities.org/id/metropolitan-district-council/walsall,WC98-100,30/09/2018,Adult Social Care,REDACTED,08/11/2018,442.52,73506-DIRECT PAYMENT,LEARNING DISABILITY SUPPORT,Third Party Payments,Revenue
Walsall Council,http://opendatacommunities.org/id/metropolitan-district-council/walsall,WC98-101,30/09/2018,Adult Social Care,REDACTED,08/11/2018,714.00,73506-DIRECT PAYMENT,LEARNING DISABILITY SUPPORT,Third Party Payments,Revenue
Walsall Council,http://opendatacommunities.org/id/metropolitan-district-council/walsall,WC98-102,30/09/2018,Resources and Transformation,ADELIE FOODS LTD,19/11/2018,788.20,61305-CATERING,TOWN HALL RESTAURANT BISTRO,Supplies & Services,Revenue
Walsall Council,http://opendatacommunities.org/id/metropolitan-district-council/walsall,WC98-103,30/09/2018,Resources and Transformation,ADELIE FOODS LTD,19/11/2018,836.52,61305-CATERING,TOWN HALL RESTAURANT BISTRO,Supplies & Services,Revenue
Walsall Council,http://opendatacommunities.org/id/metropolitan-district-council/walsall,WC98-104,30/09/2018,Resources and Transformation,ADELIE FOODS LTD,19/11/2018,896.84,61305-CATERING,TOWN HALL RESTAURANT BISTRO,Supplies & Services,Revenue
Walsall Council,http://opendatacommunities.org/id/metropolitan-district-council/walsall,WC98-105,30/09/2018,Resources and Transformation,ADELIE FOODS LTD,06/11/2018,945.95,61305-CATERING,TOWN HALL RESTAURANT BISTRO,Supplies & Services,Revenue
Walsall Council,http://opendatacommunities.org/id/metropolitan-district-council/walsall,WC98-106,30/09/2018,Resources and Transformation,ADELIE FOODS LTD,06/11/2018,960.53,61305-CATERING,TOWN HALL RESTAURANT BISTRO,Supplies & Services,Revenue
Walsall Council,http://opendatacommunities.org/id/metropolitan-district-council/walsall,WC98-107,30/09/2018,Adult Social Care,REDACTED,08/11/2018,"1,018.60",73506-DIRECT PAYMENT,PHYSICAL SUPPORT,Third Party Payments,Revenue
Walsall Council,http://opendatacommunities.org/id/metropolitan-district-council/walsall,WC98-108,30/09/2018,Economy & Environment,ADMIRAL SELF STORAGE LTD,22/11/2018,"1,877.14",63000-PROFESSIONAL FEES AND SERVICES,EMERGENCY PLANNING 2012/2013,Supplies & Services,Revenue
Walsall Council,http://opendatacommunities.org/id/metropolitan-district-council/walsall,WC98-109,30/09/2018,Childrens,ADOPTION MATTERS,27/11/2018,"9,000.00",63000-PROFESSIONAL FEES AND SERVICES,FAMILY PLACEMENTS,Supplies & Services,Revenue
Walsall Council,http://opendatacommunities.org/id/metropolitan-district-council/walsall,WC98-110,30/09/2018,Childrens,ADOPTION MATTERS,27/11/2018,"18,000.00",63000-PROFESSIONAL FEES AND SERVICES,FAMILY PLACEMENTS,Supplies & Services,Revenue
Walsall Council,http://opendatacommunities.org/id/metropolitan-district-council/walsall,WC98-111,30/09/2018,Childrens,REDACTED,16/11/2018,333.12,74510-RESIDENTS ORDERS,ADOPTION ALLOWANCES,Third Party Payments,Revenue
Walsall Council,http://opendatacommunities.org/id/metropolitan-district-council/walsall,WC98-112,30/09/2018,Childrens,REDACTED,16/11/2018,361.12,74510-RESIDENTS ORDERS,ADOPTION ALLOWANCES,Third Party Payments,Revenue
Walsall Council,http://opendatacommunities.org/id/metropolitan-district-council/walsall,WC98-113,30/09/2018,Adult Social Care,REDACTED,08/11/2018,"2,083.20",73506-DIRECT PAYMENT,LEARNING DISABILITY SUPPORT,Third Party Payments,Revenue
Walsall Council,http://opendatacommunities.org/id/metropolitan-district-council/walsall,WC98-114,30/09/2018,Adult Social Care,ADVANCE HEALTH CARE (UK) LTD,14/11/2018,281.00,73025-PROFESSIONAL SERVICES-PRIV CONTRACTOR & OTHER AGENCIES,COMMUNITY INTERMEDIATE CARE,Third Party Payments,Revenue
Walsall Council,http://opendatacommunities.org/id/metropolitan-district-council/walsall,WC98-115,30/09/2018,Adult Social Care,ADVANCE HEALTH CARE (UK) LTD,21/11/2018,281.00,73025-PROFESSIONAL SERVICES-PRIV CONTRACTOR & OTHER AGENCIES,COMMUNITY INTERMEDIATE CARE,Third Party Payments,Revenue
Walsall Council,http://opendatacommunities.org/id/metropolitan-district-council/walsall,WC98-116,30/09/2018,Adult Social Care,ADVANCE HEALTH CARE (UK) LTD,21/11/2018,281.00,73025-PROFESSIONAL SERVICES-PRIV CONTRACTOR & OTHER AGENCIES,COMMUNITY INTERMEDIATE CARE,Third Party Payments,Revenue
Walsall Council,http://opendatacommunities.org/id/metropolitan-district-council/walsall,WC98-117,30/09/2018,Adult Social Care,ADVANCE HEALTH CARE (UK) LTD,05/11/2018,288.03,73025-PROFESSIONAL SERVICES-PRIV CONTRACTOR & OTHER AGENCIES,COMMUNITY INTERMEDIATE CARE,Third Party Payments,Revenue
Walsall Council,http://opendatacommunities.org/id/metropolitan-district-council/walsall,WC98-118,30/09/2018,Adult Social Care,ADVANCE HEALTH CARE (UK) LTD,14/11/2018,302.08,73025-PROFESSIONAL SERVICES-PRIV CONTRACTOR & OTHER AGENCIES,COMMUNITY INTERMEDIATE CARE,Third Party Payments,Revenue
Walsall Council,http://opendatacommunities.org/id/metropolitan-district-council/walsall,WC98-119,30/09/2018,Adult Social Care,ADVANCE HEALTH CARE (UK) LTD,21/11/2018,305.59,73025-PROFESSIONAL SERVICES-PRIV CONTRACTOR & OTHER AGENCIES,COMMUNITY INTERMEDIATE CARE,Third Party Payments,Revenue
Walsall Council,http://opendatacommunities.org/id/metropolitan-district-council/walsall,WC98-120,30/09/2018,Adult Social Care,ADVANCE HEALTH CARE (UK) LTD,21/11/2018,330.18,73025-PROFESSIONAL SERVICES-PRIV CONTRACTOR & OTHER AGENCIES,COMMUNITY INTERMEDIATE CARE,Third Party Payments,Revenue
Walsall Council,http://opendatacommunities.org/id/metropolitan-district-council/walsall,WC98-121,30/09/2018,Adult Social Care,ADVANCE HEALTH CARE (UK) LTD,23/11/2018,341.04,73025-PROFESSIONAL SERVICES-PRIV CONTRACTOR & OTHER AGENCIES,COMMUNITY INTERMEDIATE CARE,Third Party Payments,Revenue
Walsall Council,http://opendatacommunities.org/id/metropolitan-district-council/walsall,WC98-122,30/09/2018,Adult Social Care,ADVANCE HEALTH CARE (UK) LTD,05/11/2018,344.08,73025-PROFESSIONAL SERVICES-PRIV CONTRACTOR & OTHER AGENCIES,COMMUNITY INTERMEDIATE CARE,Third Party Payments,Revenue
Walsall Council,http://opendatacommunities.org/id/metropolitan-district-council/walsall,WC98-123,30/09/2018,Adult Social Care,ADVANCE HEALTH CARE (UK) LTD,14/11/2018,344.08,73025-PROFESSIONAL SERVICES-PRIV CONTRACTOR & OTHER AGENCIES,COMMUNITY INTERMEDIATE CARE,Third Party Payments,Revenue
Walsall Council,http://opendatacommunities.org/id/metropolitan-district-council/walsall,WC98-124,30/09/2018,Adult Social Care,ADVANCE HEALTH CARE (UK) LTD,21/11/2018,344.08,73025-PROFESSIONAL SERVICES-PRIV CONTRACTOR & OTHER AGENCIES,COMMUNITY INTERMEDIATE CARE,Third Party Payments,Revenue
Walsall Council,http://opendatacommunities.org/id/metropolitan-district-council/walsall,WC98-125,30/09/2018,Adult Social Care,ADVANCE HEALTH CARE (UK) LTD,23/11/2018,344.08,73025-PROFESSIONAL SERVICES-PRIV CONTRACTOR & OTHER AGENCIES,COMMUNITY INTERMEDIATE CARE,Third Party Payments,Revenue
Walsall Council,http://opendatacommunities.org/id/metropolitan-district-council/walsall,WC98-126,30/09/2018,Adult Social Care,ADVANCE HEALTH CARE (UK) LTD,05/11/2018,344.23,73025-PROFESSIONAL SERVICES-PRIV CONTRACTOR & OTHER AGENCIES,COMMUNITY INTERMEDIATE CARE,Third Party Payments,Revenue
Walsall Council,http://opendatacommunities.org/id/metropolitan-district-council/walsall,WC98-127,30/09/2018,Adult Social Care,ADVANCE HEALTH CARE (UK) LTD,14/11/2018,344.23,73025-PROFESSIONAL SERVICES-PRIV CONTRACTOR & OTHER AGENCIES,COMMUNITY INTERMEDIATE CARE,Third Party Payments,Revenue
Walsall Council,http://opendatacommunities.org/id/metropolitan-district-council/walsall,WC98-128,30/09/2018,Adult Social Care,ADVANCE HEALTH CARE (UK) LTD,21/11/2018,344.23,73025-PROFESSIONAL SERVICES-PRIV CONTRACTOR & OTHER AGENCIES,COMMUNITY INTERMEDIATE CARE,Third Party Payments,Revenue
Walsall Council,http://opendatacommunities.org/id/metropolitan-district-council/walsall,WC98-129,30/09/2018,Adult Social Care,ADVANCE HEALTH CARE (UK) LTD,23/11/2018,344.23,73025-PROFESSIONAL SERVICES-PRIV CONTRACTOR & OTHER AGENCIES,COMMUNITY INTERMEDIATE CARE,Third Party Payments,Revenue
Walsall Council,http://opendatacommunities.org/id/metropolitan-district-council/walsall,WC98-130,30/09/2018,Adult Social Care,ADVANCE HEALTH CARE (UK) LTD,23/11/2018,344.23,73025-PROFESSIONAL SERVICES-PRIV CONTRACTOR & OTHER AGENCIES,COMMUNITY INTERMEDIATE CARE,Third Party Payments,Revenue
Walsall Council,http://opendatacommunities.org/id/metropolitan-district-council/walsall,WC98-131,30/09/2018,Adult Social Care,ADVANCE HEALTH CARE (UK) LTD,01/11/2018,351.25,73025-PROFESSIONAL SERVICES-PRIV CONTRACTOR & OTHER AGENCIES,TRANSITIONAL CARE SUPPORT TEAM,Third Party Payments,Revenue
Walsall Council,http://opendatacommunities.org/id/metropolitan-district-council/walsall,WC98-132,30/09/2018,Adult Social Care,ADVANCE HEALTH CARE (UK) LTD,23/11/2018,379.35,73025-PROFESSIONAL SERVICES-PRIV CONTRACTOR & OTHER AGENCIES,COMMUNITY INTERMEDIATE CARE,Third Party Payments,Revenue
Walsall Council,http://opendatacommunities.org/id/metropolitan-district-council/walsall,WC98-133,30/09/2018,Adult Social Care,ADVANCE HEALTH CARE (UK) LTD,23/11/2018,379.35,73025-PROFESSIONAL SERVICES-PRIV CONTRACTOR & OTHER AGENCIES,COMMUNITY INTERMEDIATE CARE,Third Party Payments,Revenue
Walsall Council,http://opendatacommunities.org/id/metropolitan-district-council/walsall,WC98-134,30/09/2018,Adult Social Care,ADVANCE HEALTH CARE (UK) LTD,21/11/2018,421.50,73025-PROFESSIONAL SERVICES-PRIV CONTRACTOR & OTHER AGENCIES,COMMUNITY INTERMEDIATE CARE,Third Party Payments,Revenue
Walsall Council,http://opendatacommunities.org/id/metropolitan-district-council/walsall,WC98-135,30/09/2018,Adult Social Care,ADVANCE HEALTH CARE (UK) LTD,01/11/2018,442.58,73025-PROFESSIONAL SERVICES-PRIV CONTRACTOR & OTHER AGENCIES,TRANSITIONAL CARE SUPPORT TEAM,Third Party Payments,Revenue
Walsall Council,http://opendatacommunities.org/id/metropolitan-district-council/walsall,WC98-136,30/09/2018,Adult Social Care,ADVANCE HEALTH CARE (UK) LTD,01/11/2018,442.58,73025-PROFESSIONAL SERVICES-PRIV CONTRACTOR & OTHER AGENCIES,TRANSITIONAL CARE SUPPORT TEAM,Third Party Payments,Revenue
Walsall Council,http://opendatacommunities.org/id/metropolitan-district-council/walsall,WC98-137,30/09/2018,Adult Social Care,ADVANCE HEALTH CARE (UK) LTD,05/11/2018,442.58,73025-PROFESSIONAL SERVICES-PRIV CONTRACTOR & OTHER AGENCIES,COMMUNITY INTERMEDIATE CARE,Third Party Payments,Revenue
Walsall Council,http://opendatacommunities.org/id/metropolitan-district-council/walsall,WC98-138,30/09/2018,Adult Social Care,ADVANCE HEALTH CARE (UK) LTD,05/11/2018,442.58,73025-PROFESSIONAL SERVICES-PRIV CONTRACTOR & OTHER AGENCIES,COMMUNITY INTERMEDIATE CARE,Third Party Payments,Revenue
Walsall Council,http://opendatacommunities.org/id/metropolitan-district-council/walsall,WC98-139,30/09/2018,Adult Social Care,ADVANCE HEALTH CARE (UK) LTD,05/11/2018,442.58,73025-PROFESSIONAL SERVICES-PRIV CONTRACTOR & OTHER AGENCIES,COMMUNITY INTERMEDIATE CARE,Third Party Payments,Revenue
Walsall Council,http://opendatacommunities.org/id/metropolitan-district-council/walsall,WC98-140,30/09/2018,Adult Social Care,ADVANCE HEALTH CARE (UK) LTD,05/11/2018,442.58,73025-PROFESSIONAL SERVICES-PRIV CONTRACTOR & OTHER AGENCIES,COMMUNITY INTERMEDIATE CARE,Third Party Payments,Revenue
Walsall Council,http://opendatacommunities.org/id/metropolitan-district-council/walsall,WC98-141,30/09/2018,Adult Social Care,ADVANCE HEALTH CARE (UK) LTD,05/11/2018,442.58,73025-PROFESSIONAL SERVICES-PRIV CONTRACTOR & OTHER AGENCIES,COMMUNITY INTERMEDIATE CARE,Third Party Payments,Revenue
Walsall Council,http://opendatacommunities.org/id/metropolitan-district-council/walsall,WC98-142,30/09/2018,Adult Social Care,ADVANCE HEALTH CARE (UK) LTD,13/11/2018,442.58,73025-PROFESSIONAL SERVICES-PRIV CONTRACTOR & OTHER AGENCIES,COMMUNITY INTERMEDIATE CARE,Third Party Payments,Revenue
Walsall Council,http://opendatacommunities.org/id/metropolitan-district-council/walsall,WC98-143,30/09/2018,Adult Social Care,ADVANCE HEALTH CARE (UK) LTD,13/11/2018,442.58,73025-PROFESSIONAL SERVICES-PRIV CONTRACTOR & OTHER AGENCIES,COMMUNITY INTERMEDIATE CARE,Third Party Payments,Revenue
Walsall Council,http://opendatacommunities.org/id/metropolitan-district-council/walsall,WC98-144,30/09/2018,Adult Social Care,ADVANCE HEALTH CARE (UK) LTD,14/11/2018,442.58,73025-PROFESSIONAL SERVICES-PRIV CONTRACTOR & OTHER AGENCIES,COMMUNITY INTERMEDIATE CARE,Third Party Payments,Revenue
Walsall Council,http://opendatacommunities.org/id/metropolitan-district-council/walsall,WC98-145,30/09/2018,Adult Social Care,ADVANCE HEALTH CARE (UK) LTD,14/11/2018,442.58,73025-PROFESSIONAL SERVICES-PRIV CONTRACTOR & OTHER AGENCIES,COMMUNITY INTERMEDIATE CARE,Third Party Payments,Revenue
Walsall Council,http://opendatacommunities.org/id/metropolitan-district-council/walsall,WC98-146,30/09/2018,Adult Social Care,ADVANCE HEALTH CARE (UK) LTD,14/11/2018,442.58,73025-PROFESSIONAL SERVICES-PRIV CONTRACTOR & OTHER AGENCIES,COMMUNITY INTERMEDIATE CARE,Third Party Payments,Revenue
Walsall Council,http://opendatacommunities.org/id/metropolitan-district-council/walsall,WC98-147,30/09/2018,Adult Social Care,ADVANCE HEALTH CARE (UK) LTD,14/11/2018,442.58,73025-PROFESSIONAL SERVICES-PRIV CONTRACTOR & OTHER AGENCIES,COMMUNITY INTERMEDIATE CARE,Third Party Payments,Revenue
Walsall Council,http://opendatacommunities.org/id/metropolitan-district-council/walsall,WC98-148,30/09/2018,Adult Social Care,ADVANCE HEALTH CARE (UK) LTD,14/11/2018,442.58,73025-PROFESSIONAL SERVICES-PRIV CONTRACTOR & OTHER AGENCIES,COMMUNITY INTERMEDIATE CARE,Third Party Payments,Revenue
Walsall Council,http://opendatacommunities.org/id/metropolitan-district-council/walsall,WC98-149,30/09/2018,Adult Social Care,ADVANCE HEALTH CARE (UK) LTD,21/11/2018,442.58,73025-PROFESSIONAL SERVICES-PRIV CONTRACTOR & OTHER AGENCIES,COMMUNITY INTERMEDIATE CARE,Third Party Payments,Revenue
Walsall Council,http://opendatacommunities.org/id/metropolitan-district-council/walsall,WC98-150,30/09/2018,Adult Social Care,ADVANCE HEALTH CARE (UK) LTD,21/11/2018,442.58,73025-PROFESSIONAL SERVICES-PRIV CONTRACTOR & OTHER AGENCIES,COMMUNITY INTERMEDIATE CARE,Third Party Payments,Revenue
Walsall Council,http://opendatacommunities.org/id/metropolitan-district-council/walsall,WC98-151,30/09/2018,Adult Social Care,ADVANCE HEALTH CARE (UK) LTD,21/11/2018,442.58,73025-PROFESSIONAL SERVICES-PRIV CONTRACTOR & OTHER AGENCIES,COMMUNITY INTERMEDIATE CARE,Third Party Payments,Revenue
Walsall Council,http://opendatacommunities.org/id/metropolitan-district-council/walsall,WC98-152,30/09/2018,Adult Social Care,ADVANCE HEALTH CARE (UK) LTD,21/11/2018,442.58,73025-PROFESSIONAL SERVICES-PRIV CONTRACTOR & OTHER AGENCIES,COMMUNITY INTERMEDIATE CARE,Third Party Payments,Revenue
Walsall Council,http://opendatacommunities.org/id/metropolitan-district-council/walsall,WC98-153,30/09/2018,Adult Social Care,ADVANCE HEALTH CARE (UK) LTD,21/11/2018,442.58,73025-PROFESSIONAL SERVICES-PRIV CONTRACTOR & OTHER AGENCIES,COMMUNITY INTERMEDIATE CARE,Third Party Payments,Revenue
Walsall Council,http://opendatacommunities.org/id/metropolitan-district-council/walsall,WC98-154,30/09/2018,Adult Social Care,ADVANCE HEALTH CARE (UK) LTD,21/11/2018,442.58,73025-PROFESSIONAL SERVICES-PRIV CONTRACTOR & OTHER AGENCIES,COMMUNITY INTERMEDIATE CARE,Third Party Payments,Revenue
Walsall Council,http://opendatacommunities.org/id/metropolitan-district-council/walsall,WC98-155,30/09/2018,Adult Social Care,ADVANCE HEALTH CARE (UK) LTD,21/11/2018,442.58,73025-PROFESSIONAL SERVICES-PRIV CONTRACTOR & OTHER AGENCIES,COMMUNITY INTERMEDIATE CARE,Third Party Payments,Revenue
Walsall Council,http://opendatacommunities.org/id/metropolitan-district-council/walsall,WC98-156,30/09/2018,Adult Social Care,ADVANCE HEALTH CARE (UK) LTD,21/11/2018,442.58,73025-PROFESSIONAL SERVICES-PRIV CONTRACTOR & OTHER AGENCIES,COMMUNITY INTERMEDIATE CARE,Third Party Payments,Revenue
Walsall Council,http://opendatacommunities.org/id/metropolitan-district-council/walsall,WC98-157,30/09/2018,Adult Social Care,ADVANCE HEALTH CARE (UK) LTD,23/11/2018,442.58,73025-PROFESSIONAL SERVICES-PRIV CONTRACTOR & OTHER AGENCIES,COMMUNITY INTERMEDIATE CARE,Third Party Payments,Revenue
Walsall Council,http://opendatacommunities.org/id/metropolitan-district-council/walsall,WC98-158,30/09/2018,Adult Social Care,ADVANCE HEALTH CARE (UK) LTD,23/11/2018,442.58,73025-PROFESSIONAL SERVICES-PRIV CONTRACTOR & OTHER AGENCIES,COMMUNITY INTERMEDIATE CARE,Third Party Payments,Revenue
Walsall Council,http://opendatacommunities.org/id/metropolitan-district-council/walsall,WC98-159,30/09/2018,Adult Social Care,ADVANCE HEALTH CARE (UK) LTD,23/11/2018,442.58,73025-PROFESSIONAL SERVICES-PRIV CONTRACTOR & OTHER AGENCIES,COMMUNITY INTERMEDIATE CARE,Third Party Payments,Revenue
Walsall Council,http://opendatacommunities.org/id/metropolitan-district-council/walsall,WC98-160,30/09/2018,Adult Social Care,ADVANCE HEALTH CARE (UK) LTD,23/11/2018,442.58,73025-PROFESSIONAL SERVICES-PRIV CONTRACTOR & OTHER AGENCIES,COMMUNITY INTERMEDIATE CARE,Third Party Payments,Revenue
Walsall Council,http://opendatacommunities.org/id/metropolitan-district-council/walsall,WC98-161,30/09/2018,Adult Social Care,ADVANCE HEALTH CARE (UK) LTD,23/11/2018,442.58,73025-PROFESSIONAL SERVICES-PRIV CONTRACTOR & OTHER AGENCIES,COMMUNITY INTERMEDIATE CARE,Third Party Payments,Revenue
Walsall Council,http://opendatacommunities.org/id/metropolitan-district-council/walsall,WC98-162,30/09/2018,Adult Social Care,ADVANCE HEALTH CARE (UK) LTD,23/11/2018,442.58,73025-PROFESSIONAL SERVICES-PRIV CONTRACTOR & OTHER AGENCIES,COMMUNITY INTERMEDIATE CARE,Third Party Payments,Revenue
Walsall Council,http://opendatacommunities.org/id/metropolitan-district-council/walsall,WC98-163,30/09/2018,Adult Social Care,ADVANCE HEALTH CARE (UK) LTD,23/11/2018,442.58,73025-PROFESSIONAL SERVICES-PRIV CONTRACTOR & OTHER AGENCIES,COMMUNITY INTERMEDIATE CARE,Third Party Payments,Revenue
Walsall Council,http://opendatacommunities.org/id/metropolitan-district-council/walsall,WC98-164,30/09/2018,Adult Social Care,ADVANCE HEALTH CARE (UK) LTD,23/11/2018,442.58,73025-PROFESSIONAL SERVICES-PRIV CONTRACTOR & OTHER AGENCIES,COMMUNITY INTERMEDIATE CARE,Third Party Payments,Revenue
Walsall Council,http://opendatacommunities.org/id/metropolitan-district-council/walsall,WC98-165,30/09/2018,Adult Social Care,ADVANCE HEALTH CARE (UK) LTD,05/11/2018,446.09,73025-PROFESSIONAL SERVICES-PRIV CONTRACTOR & OTHER AGENCIES,COMMUNITY INTERMEDIATE CARE,Third Party Payments,Revenue
Walsall Council,http://opendatacommunities.org/id/metropolitan-district-council/walsall,WC98-166,30/09/2018,Adult Social Care,ADVANCE HEALTH CARE (UK) LTD,05/11/2018,449.60,73025-PROFESSIONAL SERVICES-PRIV CONTRACTOR & OTHER AGENCIES,COMMUNITY INTERMEDIATE CARE,Third Party Payments,Revenue
Walsall Council,http://opendatacommunities.org/id/metropolitan-district-council/walsall,WC98-167,30/09/2018,Adult Social Care,ADVANCE HEALTH CARE (UK) LTD,23/11/2018,449.60,73025-PROFESSIONAL SERVICES-PRIV CONTRACTOR & OTHER AGENCIES,COMMUNITY INTERMEDIATE CARE,Third Party Payments,Revenue
Walsall Council,http://opendatacommunities.org/id/metropolitan-district-council/walsall,WC98-168,30/09/2018,Adult Social Care,ADVANCE HEALTH CARE (UK) LTD,05/11/2018,456.63,73025-PROFESSIONAL SERVICES-PRIV CONTRACTOR & OTHER AGENCIES,COMMUNITY INTERMEDIATE CARE,Third Party Payments,Revenue
Walsall Council,http://opendatacommunities.org/id/metropolitan-district-council/walsall,WC98-169,30/09/2018,Adult Social Care,ADVANCE HEALTH CARE (UK) LTD,14/11/2018,456.63,73025-PROFESSIONAL SERVICES-PRIV CONTRACTOR & OTHER AGENCIES,COMMUNITY INTERMEDIATE CARE,Third Party Payments,Revenue
Walsall Council,http://opendatacommunities.org/id/metropolitan-district-council/walsall,WC98-170,30/09/2018,Adult Social Care,ADVANCE HEALTH CARE (UK) LTD,21/11/2018,456.63,73025-PROFESSIONAL SERVICES-PRIV CONTRACTOR & OTHER AGENCIES,COMMUNITY INTERMEDIATE CARE,Third Party Payments,Revenue
Walsall Council,http://opendatacommunities.org/id/metropolitan-district-council/walsall,WC98-171,30/09/2018,Adult Social Care,ADVANCE HEALTH CARE (UK) LTD,23/11/2018,456.63,73025-PROFESSIONAL SERVICES-PRIV CONTRACTOR & OTHER AGENCIES,COMMUNITY INTERMEDIATE CARE,Third Party Payments,Revenue
Walsall Council,http://opendatacommunities.org/id/metropolitan-district-council/walsall,WC98-172,30/09/2018,Adult Social Care,ADVANCE HEALTH CARE (UK) LTD,23/11/2018,456.63,73025-PROFESSIONAL SERVICES-PRIV CONTRACTOR & OTHER AGENCIES,COMMUNITY INTERMEDIATE CARE,Third Party Payments,Revenue
Walsall Council,http://opendatacommunities.org/id/metropolitan-district-council/walsall,WC98-173,30/09/2018,Adult Social Care,ADVANCE HEALTH CARE (UK) LTD,05/11/2018,463.65,73025-PROFESSIONAL SERVICES-PRIV CONTRACTOR & OTHER AGENCIES,COMMUNITY INTERMEDIATE CARE,Third Party Payments,Revenue
Walsall Council,http://opendatacommunities.org/id/metropolitan-district-council/walsall,WC98-174,30/09/2018,Adult Social Care,ADVANCE HEALTH CARE (UK) LTD,05/11/2018,498.78,73025-PROFESSIONAL SERVICES-PRIV CONTRACTOR & OTHER AGENCIES,COMMUNITY INTERMEDIATE CARE,Third Party Payments,Revenue
Walsall Council,http://opendatacommunities.org/id/metropolitan-district-council/walsall,WC98-175,30/09/2018,Adult Social Care,ADVANCE HEALTH CARE (UK) LTD,14/11/2018,505.81,73025-PROFESSIONAL SERVICES-PRIV CONTRACTOR & OTHER AGENCIES,RAPID RESPONSE,Third Party Payments,Revenue
Walsall Council,http://opendatacommunities.org/id/metropolitan-district-council/walsall,WC98-176,30/09/2018,Adult Social Care,ADVANCE HEALTH CARE (UK) LTD,14/11/2018,"1,447.15",73025-PROFESSIONAL SERVICES-PRIV CONTRACTOR & OTHER AGENCIES,COMMUNITY INTERMEDIATE CARE,Third Party Payments,Revenue
Walsall Council,http://opendatacommunities.org/id/metropolitan-district-council/walsall,WC98-177,30/09/2018,Adult Social Care,ADVANCE HEALTH CARE (UK) LTD,29/11/2018,"7,323.14",73372-DOMICILIARY CARE,OP PACKAGE/PLACEMENT COSTS,Third Party Payments,Revenue
Walsall Council,http://opendatacommunities.org/id/metropolitan-district-council/walsall,WC98-178,30/09/2018,Adult Social Care,ADVANCE HEALTH CARE (UK) LTD,15/11/2018,"77,874.07",73372-DOMICILIARY CARE,OP PACKAGE/PLACEMENT COSTS,Third Party Payments,Revenue
Walsall Council,http://opendatacommunities.org/id/metropolitan-district-council/walsall,WC98-179,30/09/2018,Resources and Transformation,ADVANCED DIGITAL IMAGING,01/11/2018,324.00,62000-EXTERNAL PRINTING SERVICES,PRINTING SERVICES,Supplies & Services,Revenue
Walsall Council,http://opendatacommunities.org/id/metropolitan-district-council/walsall,WC98-180,30/09/2018,Economy & Environment,AECOM LIMITED,19/11/2018,"-6,070.50",01001-OTHER CONSULTANTS FEES,CFR 1219 DARLASTON MONITORING AND EVALUATION,Capital,Capital
Walsall Council,http://opendatacommunities.org/id/metropolitan-district-council/walsall,WC98-181,30/09/2018,Economy & Environment,AECOM LIMITED,22/11/2018,995.00,01002-PROJECT FEES,CFR 1072 A461 SALTERS ROAD,Capital,Capital
Walsall Council,http://opendatacommunities.org/id/metropolitan-district-council/walsall,WC98-182,30/09/2018,Economy & Environment,AECOM LIMITED,22/11/2018,995.00,01002-PROJECT FEES,CFR 1282 LGF - M6 J10 RESILLIENCE PACKAGE II (CONTIBUTION TO (NPIF),Capital,Capital
Walsall Council,http://opendatacommunities.org/id/metropolitan-district-council/walsall,WC98-183,30/09/2018,Economy & Environment,AECOM LIMITED,02/11/2018,"3,099.28",73025-PROFESSIONAL SERVICES-PRIV CONTRACTOR & OTHER AGENCIES,SECTION 38 OF HIGHWAYS ACT - SUPERVISION,Third Party Payments,Revenue
Walsall Council,http://opendatacommunities.org/id/metropolitan-district-council/walsall,WC98-184,30/09/2018,Economy & Environment,AECOM LIMITED,28/11/2018,"20,000.00",01001-OTHER CONSULTANTS FEES,CFR 1248 M6 JUNCTION 10,Capital,Capital
Walsall Council,http://opendatacommunities.org/id/metropolitan-district-council/walsall,WC98-185,30/09/2018,Childrens,AFTER ADOPTION,14/11/2018,"2,000.00",74009-ADOPTION ALLOWANCE,ADOPTION TEAM,Transfer Payments,Revenue
Walsall Council,http://opendatacommunities.org/id/metropolitan-district-council/walsall,WC98-186,30/09/2018,Adult Social Care,REDACTED,08/11/2018,"2,092.80",73506-DIRECT PAYMENT,LEARNING DISABILITY SUPPORT,Third Party Payments,Revenue
Walsall Council,http://opendatacommunities.org/id/metropolitan-district-council/walsall,WC98-187,30/09/2018,Adult Social Care,REDACTED,08/11/2018,"1,277.00",73506-DIRECT PAYMENT,PHYSICAL SUPPORT,Third Party Payments,Revenue
Walsall Council,http://opendatacommunities.org/id/metropolitan-district-council/walsall,WC98-188,30/09/2018,Childrens,REDACTED,01/11/2018,568.00,63000-PROFESSIONAL FEES AND SERVICES,LOOKED AFTER CHILDRENS SOCIAL WORK TEAM,Supplies & Services,Revenue
Walsall Council,http://opendatacommunities.org/id/metropolitan-district-council/walsall,WC98-189,30/09/2018,Economy & Environment,ALAN DAWKINS T/A CANNOCK SOUND HIRE,07/11/2018,0.06,63500-POSTAGES AND COURIER SERVICES,ARBORETUM,Supplies & Services,Revenue
Walsall Council,http://opendatacommunities.org/id/metropolitan-district-council/walsall,WC98-190,30/09/2018,Economy & Environment,ALAN DAWKINS T/A CANNOCK SOUND HIRE,07/11/2018,"2,209.00",62523-EVENTS,ARBORETUM,Supplies & Services,Revenue
Walsall Council,http://opendatacommunities.org/id/metropolitan-district-council/walsall,WC98-191,30/09/2018,Adult Social Care,REDACTED,08/11/2018,786.80,73506-DIRECT PAYMENT,PHYSICAL SUPPORT,Third Party Payments,Revenue
Walsall Council,http://opendatacommunities.org/id/metropolitan-district-council/walsall,WC98-192,30/09/2018,Childrens,ALBRIGHTON CARE LTD,02/11/2018,"9,980.00",74036-EXTERNAL RESIDENTIAL CARE-OTH AGENCY PROVISION,INDEPENDENT RESIDENTIAL HOMES,Third Party Payments,Revenue
Walsall Council,http://opendatacommunities.org/id/metropolitan-district-council/walsall,WC98-193,30/09/2018,Childrens,ALBRIGHTON CARE LTD,29/11/2018,"9,980.00",74036-EXTERNAL RESIDENTIAL CARE-OTH AGENCY PROVISION,INDEPENDENT RESIDENTIAL HOMES,Third Party Payments,Revenue
Walsall Council,http://opendatacommunities.org/id/metropolitan-district-council/walsall,WC98-194,30/09/2018,Childrens,ALBRIGHTON CARE LTD,29/11/2018,"15,985.00",74036-EXTERNAL RESIDENTIAL CARE-OTH AGENCY PROVISION,INDEPENDENT RESIDENTIAL HOMES,Third Party Payments,Revenue
Walsall Council,http://opendatacommunities.org/id/metropolitan-district-council/walsall,WC98-195,30/09/2018,Childrens,ALBRIGHTON CARE LTD,02/11/2018,"19,460.00",74036-EXTERNAL RESIDENTIAL CARE-OTH AGENCY PROVISION,INDEPENDENT RESIDENTIAL HOMES,Third Party Payments,Revenue
Walsall Council,http://opendatacommunities.org/id/metropolitan-district-council/walsall,WC98-196,30/09/2018,Adult Social Care,ALDERGROVE MANOR LTD,12/11/2018,"1,876.52",73501-RESIDENTIAL EMI,MENTAL HEALTH SUPPORT,Third Party Payments,Revenue
Walsall Council,http://opendatacommunities.org/id/metropolitan-district-council/walsall,WC98-197,30/09/2018,Adult Social Care,ALDERGROVE MANOR LTD,12/11/2018,"2,039.68",73502-NURSING,PHYSICAL SUPPORT,Third Party Payments,Revenue
Walsall Council,http://opendatacommunities.org/id/metropolitan-district-council/walsall,WC98-198,30/09/2018,Childrens,ALDRIDGE & BARONS LIMITED,01/11/2018,"3,634.00",52000-WITH DRIVER-HIRE OF VEHICLES,HOME TO SCHOOL TRANSPORT,Transport,Revenue
Walsall Council,http://opendatacommunities.org/id/metropolitan-district-council/walsall,WC98-199,30/09/2018,Childrens,ALDRIDGE & BARONS LIMITED,01/11/2018,"11,901.20",52000-WITH DRIVER-HIRE OF VEHICLES,HOME TO SCHOOL TRANSPORT,Transport,Revenue
Walsall Council,http://opendatacommunities.org/id/metropolitan-district-council/walsall,WC98-200,30/09/2018,Childrens,ALDRIDGE & BARONS LIMITED,01/11/2018,"16,920.00",52000-WITH DRIVER-HIRE OF VEHICLES,HOME TO SCHOOL TRANSPORT,Transport,Revenue
Walsall Council,http://opendatacommunities.org/id/metropolitan-district-council/walsall,WC98-201,30/09/2018,Childrens,ALDRIDGE PUMPKIN PATCH,15/11/2018,"1,100.40",66505-OTHER-GRANTS TO OTHER ORGS,EARLY YEARS - 2 YR OLDS,Third Party Payments,Revenue
Walsall Council,http://opendatacommunities.org/id/metropolitan-district-council/walsall,WC98-202,30/09/2018,Economy & Environment,ALDRIDGE SHED,27/11/2018,625.00,63253-PAYMENT TO CONTRACTOR,MENTAL HEALTH,Third Party Payments,Revenue
Walsall Council,http://opendatacommunities.org/id/metropolitan-district-council/walsall,WC98-203,30/09/2018,Adult Social Care,REDACTED,08/11/2018,"1,348.80",73506-DIRECT PAYMENT,PHYSICAL SUPPORT,Third Party Payments,Revenue
Walsall Council,http://opendatacommunities.org/id/metropolitan-district-council/walsall,WC98-204,30/09/2018,Adult Social Care,ALEXANDRA HOUSE CARE SERVICES LTD T/A STONEBRIDGE NURSING HOME,12/11/2018,"7,117.44",73502-NURSING,LEARNING DISABILITY SUPPORT,Third Party Payments,Revenue
Walsall Council,http://opendatacommunities.org/id/metropolitan-district-council/walsall,WC98-205,30/09/2018,Adult Social Care,REDACTED,08/11/2018,"1,771.28",73506-DIRECT PAYMENT,PHYSICAL SUPPORT,Third Party Payments,Revenue
Walsall Council,http://opendatacommunities.org/id/metropolitan-district-council/walsall,WC98-206,30/09/2018,Childrens,REDACTED,05/11/2018,288.00,73506-DIRECT PAYMENT,FAMILY SUPPORT - DIRECT PAYMENTS,Third Party Payments,Revenue
Walsall Council,http://opendatacommunities.org/id/metropolitan-district-council/walsall,WC98-207,30/09/2018,Adult Social Care,REDACTED,27/11/2018,"1,301.64",73372-DOMICILIARY CARE,LD PACKAGE/PLACEMENT COSTS,Third Party Payments,Revenue
Walsall Council,http://opendatacommunities.org/id/metropolitan-district-council/walsall,WC98-208,30/09/2018,Childrens,ALL SAINTS NATIONAL ACADEMY #1,30/11/2018,"1,879.61",66502-TOP UP FUNDING -GRANTS TO SCHOOLS,ALL SAINTS NATIONAL ACADEMY,Third Party Payments,Revenue
Walsall Council,http://opendatacommunities.org/id/metropolitan-district-council/walsall,WC98-209,30/09/2018,Economy & Environment,ALLSORTS OFFICE SUPPLIES LTD,22/11/2018,213.20,60000-FURNITURE & EQUIPMENT,PUBLIC HEALTH BUSINESS SUPPORT,Supplies & Services,Revenue
Walsall Council,http://opendatacommunities.org/id/metropolitan-district-council/walsall,WC98-210,30/09/2018,Resources and Transformation,ALLSORTS OFFICE SUPPLIES LTD,09/11/2018,272.00,63800-COMPUTER EQUIPMENT AND SUPPLIES,RECHARGEABLE EQUIPMENT,Supplies & Services,Revenue
Walsall Council,http://opendatacommunities.org/id/metropolitan-district-council/walsall,WC98-211,30/09/2018,Resources and Transformation,ALLSORTS OFFICE SUPPLIES LTD,23/11/2018,639.60,60000-FURNITURE & EQUIPMENT,FINANCE,Supplies & Services,Revenue
Walsall Council,http://opendatacommunities.org/id/metropolitan-district-council/walsall,WC98-212,30/09/2018,Resources and Transformation,ALLSORTS OFFICE SUPPLIES LTD,07/11/2018,952.00,63800-COMPUTER EQUIPMENT AND SUPPLIES,RECHARGEABLE EQUIPMENT,Supplies & Services,Revenue
Walsall Council,http://opendatacommunities.org/id/metropolitan-district-council/walsall,WC98-213,30/09/2018,Resources and Transformation,ALLSORTS OFFICE SUPPLIES LTD,21/11/2018,"2,720.00",63800-COMPUTER EQUIPMENT AND SUPPLIES,RECHARGEABLE EQUIPMENT,Supplies & Services,Revenue
Walsall Council,http://opendatacommunities.org/id/metropolitan-district-council/walsall,WC98-214,30/09/2018,Adult Social Care,ALLSORTS OFFICE SUPPLIES LTD,28/11/2018,"2,928.50",60000-FURNITURE & EQUIPMENT,SHARED LIVES,Supplies & Services,Revenue
Walsall Council,http://opendatacommunities.org/id/metropolitan-district-council/walsall,WC98-215,30/09/2018,Adult Social Care,ALMA COURT,13/11/2018,"3,857.14",73025-PROFESSIONAL SERVICES-PRIV CONTRACTOR & OTHER AGENCIES,TRANSITIONAL CARE SUPPORT TEAM,Third Party Payments,Revenue
Walsall Council,http://opendatacommunities.org/id/metropolitan-district-council/walsall,WC98-216,30/09/2018,Adult Social Care,ALMA COURT,12/11/2018,"4,000.00",73503-NURSING EMI,PHYSICAL SUPPORT,Third Party Payments,Revenue
Walsall Council,http://opendatacommunities.org/id/metropolitan-district-council/walsall,WC98-217,30/09/2018,Adult Social Care,ALMA COURT,12/11/2018,"5,705.56",73502-NURSING,PHYSICAL SUPPORT,Third Party Payments,Revenue
Walsall Council,http://opendatacommunities.org/id/metropolitan-district-council/walsall,WC98-218,30/09/2018,Adult Social Care,ALPHA HEALTH CARE LTD,12/11/2018,593.01,73503-NURSING EMI,PHYSICAL SUPPORT,Third Party Payments,Revenue
Walsall Council,http://opendatacommunities.org/id/metropolitan-district-council/walsall,WC98-219,30/09/2018,Adult Social Care,ALPHA HEALTH CARE LTD,12/11/2018,"1,051.43",73501-RESIDENTIAL EMI,PHYSICAL SUPPORT,Third Party Payments,Revenue
Walsall Council,http://opendatacommunities.org/id/metropolitan-district-council/walsall,WC98-220,30/09/2018,Adult Social Care,ALPHA HEALTH CARE LTD,12/11/2018,"1,470.00",73501-RESIDENTIAL EMI,SUPPORT WITH MEMORY & COGNITION,Third Party Payments,Revenue
Walsall Council,http://opendatacommunities.org/id/metropolitan-district-council/walsall,WC98-221,30/09/2018,Adult Social Care,ALPHA HEALTH CARE LTD,12/11/2018,"1,688.84",73500-RESIDENTIAL,MENTAL HEALTH SUPPORT,Third Party Payments,Revenue
Walsall Council,http://opendatacommunities.org/id/metropolitan-district-council/walsall,WC98-222,30/09/2018,Adult Social Care,ALPHA HEALTH CARE LTD,12/11/2018,"1,876.52",73501-RESIDENTIAL EMI,PHYSICAL SUPPORT,Third Party Payments,Revenue
Walsall Council,http://opendatacommunities.org/id/metropolitan-district-council/walsall,WC98-223,30/09/2018,Adult Social Care,ALPHA HEALTH CARE LTD,12/11/2018,"2,039.68",73502-NURSING,PHYSICAL SUPPORT,Third Party Payments,Revenue
Walsall Council,http://opendatacommunities.org/id/metropolitan-district-council/walsall,WC98-224,30/09/2018,Adult Social Care,ALPHA HEALTH CARE LTD,12/11/2018,"2,160.00",73501-RESIDENTIAL EMI,SUPPORT WITH MEMORY & COGNITION,Third Party Payments,Revenue
Walsall Council,http://opendatacommunities.org/id/metropolitan-district-council/walsall,WC98-225,30/09/2018,Adult Social Care,ALPHA HEALTH CARE LTD,12/11/2018,"2,243.64",73503-NURSING EMI,MENTAL HEALTH SUPPORT,Third Party Payments,Revenue
Walsall Council,http://opendatacommunities.org/id/metropolitan-district-council/walsall,WC98-226,30/09/2018,Adult Social Care,ALPHA HEALTH CARE LTD,12/11/2018,"2,243.64",73503-NURSING EMI,MENTAL HEALTH SUPPORT,Third Party Payments,Revenue
Walsall Council,http://opendatacommunities.org/id/metropolitan-district-council/walsall,WC98-227,30/09/2018,Adult Social Care,ALPHA HEALTH CARE LTD,12/11/2018,"2,243.64",73503-NURSING EMI,PHYSICAL SUPPORT,Third Party Payments,Revenue
Walsall Council,http://opendatacommunities.org/id/metropolitan-district-council/walsall,WC98-228,30/09/2018,Adult Social Care,ALPHA HEALTH CARE LTD,14/11/2018,"2,314.29",73025-PROFESSIONAL SERVICES-PRIV CONTRACTOR & OTHER AGENCIES,TRANSITIONAL CARE SUPPORT TEAM,Third Party Payments,Revenue
Walsall Council,http://opendatacommunities.org/id/metropolitan-district-council/walsall,WC98-229,30/09/2018,Adult Social Care,ALPHA HEALTH CARE LTD,12/11/2018,"2,326.00",73502-NURSING,MENTAL HEALTH SUPPORT,Third Party Payments,Revenue
Walsall Council,http://opendatacommunities.org/id/metropolitan-district-council/walsall,WC98-230,30/09/2018,Adult Social Care,ALPHA HEALTH CARE LTD,12/11/2018,"2,379.80",73503-NURSING EMI,PHYSICAL SUPPORT,Third Party Payments,Revenue
Walsall Council,http://opendatacommunities.org/id/metropolitan-district-council/walsall,WC98-231,30/09/2018,Adult Social Care,ALPHA HEALTH CARE LTD,12/11/2018,"2,484.88",73502-NURSING,PHYSICAL SUPPORT,Third Party Payments,Revenue
Walsall Council,http://opendatacommunities.org/id/metropolitan-district-council/walsall,WC98-232,30/09/2018,Adult Social Care,ALPHA HEALTH CARE LTD,12/11/2018,"2,688.84",73503-NURSING EMI,PHYSICAL SUPPORT,Third Party Payments,Revenue
Walsall Council,http://opendatacommunities.org/id/metropolitan-district-council/walsall,WC98-233,30/09/2018,Adult Social Care,ALPHA HEALTH CARE LTD,12/11/2018,"2,767.36",73503-NURSING EMI,MENTAL HEALTH SUPPORT,Third Party Payments,Revenue
Walsall Council,http://opendatacommunities.org/id/metropolitan-district-council/walsall,WC98-234,30/09/2018,Adult Social Care,ALPHA HEALTH CARE LTD,12/11/2018,"2,779.80",73503-NURSING EMI,PHYSICAL SUPPORT,Third Party Payments,Revenue
Walsall Council,http://opendatacommunities.org/id/metropolitan-district-council/walsall,WC98-235,30/09/2018,Adult Social Care,ALPHA HEALTH CARE LTD,12/11/2018,"2,823.44",73503-NURSING EMI,PHYSICAL SUPPORT,Third Party Payments,Revenue
Walsall Council,http://opendatacommunities.org/id/metropolitan-district-council/walsall,WC98-236,30/09/2018,Adult Social Care,ALPHA HEALTH CARE LTD,12/11/2018,"2,940.00",73501-RESIDENTIAL EMI,PHYSICAL SUPPORT,Third Party Payments,Revenue
Walsall Council,http://opendatacommunities.org/id/metropolitan-district-council/walsall,WC98-237,30/09/2018,Adult Social Care,ALPHA HEALTH CARE LTD,16/11/2018,"2,957.14",73025-PROFESSIONAL SERVICES-PRIV CONTRACTOR & OTHER AGENCIES,TRANSITIONAL CARE SUPPORT TEAM,Third Party Payments,Revenue
Walsall Council,http://opendatacommunities.org/id/metropolitan-district-council/walsall,WC98-238,30/09/2018,Adult Social Care,ALPHA HEALTH CARE LTD,12/11/2018,"5,440.28",73503-NURSING EMI,MENTAL HEALTH SUPPORT,Third Party Payments,Revenue
Walsall Council,http://opendatacommunities.org/id/metropolitan-district-council/walsall,WC98-239,30/09/2018,Adult Social Care,ALPHA HEALTH CARE LTD,14/11/2018,"6,942.86",73025-PROFESSIONAL SERVICES-PRIV CONTRACTOR & OTHER AGENCIES,TRANSITIONAL CARE SUPPORT TEAM,Third Party Payments,Revenue
Walsall Council,http://opendatacommunities.org/id/metropolitan-district-council/walsall,WC98-240,30/09/2018,Adult Social Care,ALPHA HEALTH CARE LTD,12/11/2018,"7,028.57",73501-RESIDENTIAL EMI,MENTAL HEALTH SUPPORT,Third Party Payments,Revenue
Walsall Council,http://opendatacommunities.org/id/metropolitan-district-council/walsall,WC98-241,30/09/2018,Adult Social Care,ALPHA HEALTH CARE LTD,16/11/2018,"8,500.00",73025-PROFESSIONAL SERVICES-PRIV CONTRACTOR & OTHER AGENCIES,TRANSITIONAL CARE SUPPORT TEAM,Third Party Payments,Revenue
Walsall Council,http://opendatacommunities.org/id/metropolitan-district-council/walsall,WC98-242,30/09/2018,Childrens,ALTUM RESIDENTIAL CARE LTD,16/11/2018,"4,347.43",74036-EXTERNAL RESIDENTIAL CARE-OTH AGENCY PROVISION,INDEPENDENT RESIDENTIAL HOMES,Third Party Payments,Revenue
Walsall Council,http://opendatacommunities.org/id/metropolitan-district-council/walsall,WC98-243,30/09/2018,Childrens,ALUMWELLIES NURSERY,05/11/2018,375.00,77000-TRANSFER PAYMENTS-MANDATORY AWARDS,SOUTH LOCALITY - SCHOOL READY,Transfer Payments,Revenue
Walsall Council,http://opendatacommunities.org/id/metropolitan-district-council/walsall,WC98-244,30/09/2018,Childrens,AMAH NURSERIES LIMITED T/A BANANA MOON WALSALL,05/11/2018,"5,663.70",66505-OTHER-GRANTS TO OTHER ORGS,EARLY YEARS - 3 YR OLDS,Third Party Payments,Revenue
Walsall Council,http://opendatacommunities.org/id/metropolitan-district-council/walsall,WC98-245,30/09/2018,Childrens,AMAH NURSERIES LIMITED T/A BANANA MOON WALSALL,05/11/2018,"10,563.84",66505-OTHER-GRANTS TO OTHER ORGS,EARLY YEARS - 2 YR OLDS,Third Party Payments,Revenue
Walsall Council,http://opendatacommunities.org/id/metropolitan-district-council/walsall,WC98-246,30/09/2018,Childrens,REDACTED,16/11/2018,318.08,74510-RESIDENTS ORDERS,ADOPTION ALLOWANCES,Third Party Payments,Revenue
Walsall Council,http://opendatacommunities.org/id/metropolitan-district-council/walsall,WC98-247,30/09/2018,Childrens,REDACTED,16/11/2018,318.08,74510-RESIDENTS ORDERS,ADOPTION ALLOWANCES,Third Party Payments,Revenue
Walsall Council,http://opendatacommunities.org/id/metropolitan-district-council/walsall,WC98-248,30/09/2018,Adult Social Care,REDACTED,08/11/2018,"1,128.76",73506-DIRECT PAYMENT,LEARNING DISABILITY SUPPORT,Third Party Payments,Revenue
Walsall Council,http://opendatacommunities.org/id/metropolitan-district-council/walsall,WC98-249,30/09/2018,Childrens,REDACTED,16/11/2018,808.04,74009-ADOPTION ALLOWANCE,ADOPTION ALLOWANCES,Transfer Payments,Revenue
Walsall Council,http://opendatacommunities.org/id/metropolitan-district-council/walsall,WC98-250,30/09/2018,Childrens,REDACTED,02/11/2018,578.57,74501-MAINTENANCE ALLOWANCE-FOSTER CARERS,INTERNAL FOSTER CARE PROVISION,Transfer Payments,Revenue
Walsall Council,http://opendatacommunities.org/id/metropolitan-district-council/walsall,WC98-251,30/09/2018,Childrens,REDACTED,02/11/2018,"1,000.00",74508-INTERNAL FOSTER CARERS-CARER FEES,INTERNAL FOSTER CARE PROVISION,Transfer Payments,Revenue
Walsall Council,http://opendatacommunities.org/id/metropolitan-district-council/walsall,WC98-252,30/09/2018,Childrens,AMANS TRAVEL LTD,09/11/2018,"14,774.00",52000-WITH DRIVER-HIRE OF VEHICLES,HOME TO SCHOOL TRANSPORT,Transport,Revenue
Walsall Council,http://opendatacommunities.org/id/metropolitan-district-council/walsall,WC98-253,30/09/2018,Adult Social Care,REDACTED,08/11/2018,897.60,73506-DIRECT PAYMENT,LEARNING DISABILITY SUPPORT,Third Party Payments,Revenue
Walsall Council,http://opendatacommunities.org/id/metropolitan-district-council/walsall,WC98-254,30/09/2018,Economy & Environment,AMEY LG LIMITED,19/11/2018,224.73,73025-PROFESSIONAL SERVICES-PRIV CONTRACTOR & OTHER AGENCIES,SECTION 38 OF HIGHWAYS ACT - SUPERVISION,Third Party Payments,Revenue
Walsall Council,http://opendatacommunities.org/id/metropolitan-district-council/walsall,WC98-255,30/09/2018,Resources and Transformation,AMEY LG LIMITED,28/11/2018,719.73,63239-EXTERNAL WORKS-PAYMENT TO CONTRACTOR,ROAD SAFETY INITIATIVE,Third Party Payments,Revenue
Walsall Council,http://opendatacommunities.org/id/metropolitan-district-council/walsall,WC98-256,30/09/2018,Economy & Environment,AMEY LG LIMITED,22/11/2018,"4,872.96",01006-SITE WORKS MAIN CONTRACTORS,CFR 1144 URBAN TRAFFIC CONTROL ANALOGUE COMMUNICATION NETWORK,Capital,Capital
Walsall Council,http://opendatacommunities.org/id/metropolitan-district-council/walsall,WC98-257,30/09/2018,Economy & Environment,AMEY LG LIMITED,06/11/2018,"7,984.39",01006-SITE WORKS MAIN CONTRACTORS,CFR 1281 HIGHWAY EFFICIENCY PROGRAMME,Capital,Capital
Walsall Council,http://opendatacommunities.org/id/metropolitan-district-council/walsall,WC98-258,30/09/2018,Economy & Environment,AMEY LG LIMITED,28/11/2018,"17,211.31",73025-PROFESSIONAL SERVICES-PRIV CONTRACTOR & OTHER AGENCIES,TRAFFIC MANAGEMENT,Third Party Payments,Revenue
Walsall Council,http://opendatacommunities.org/id/metropolitan-district-council/walsall,WC98-259,30/09/2018,Childrens,AMG NURSING CARE SERVICES,28/11/2018,925.60,63000-PROFESSIONAL FEES AND SERVICES,DIRECTLY COMMISSIONED NURSING SERVICES,Supplies & Services,Revenue
Walsall Council,http://opendatacommunities.org/id/metropolitan-district-council/walsall,WC98-260,30/09/2018,Childrens,AMG NURSING CARE SERVICES,06/11/2018,"1,480.96",63000-PROFESSIONAL FEES AND SERVICES,DIRECTLY COMMISSIONED NURSING SERVICES,Supplies & Services,Revenue
Walsall Council,http://opendatacommunities.org/id/metropolitan-district-council/walsall,WC98-261,30/09/2018,Childrens,AMG NURSING CARE SERVICES,02/11/2018,"1,894.04",63000-PROFESSIONAL FEES AND SERVICES,DIRECTLY COMMISSIONED NURSING SERVICES,Supplies & Services,Revenue
Walsall Council,http://opendatacommunities.org/id/metropolitan-district-council/walsall,WC98-262,30/09/2018,Childrens,AMG NURSING CARE SERVICES,02/11/2018,"1,904.24",63000-PROFESSIONAL FEES AND SERVICES,DIRECTLY COMMISSIONED NURSING SERVICES,Supplies & Services,Revenue
Walsall Council,http://opendatacommunities.org/id/metropolitan-district-council/walsall,WC98-263,30/09/2018,Childrens,AMG NURSING CARE SERVICES,02/11/2018,"2,319.43",63000-PROFESSIONAL FEES AND SERVICES,DIRECTLY COMMISSIONED NURSING SERVICES,Supplies & Services,Revenue
Walsall Council,http://opendatacommunities.org/id/metropolitan-district-council/walsall,WC98-264,30/09/2018,Childrens,AMG NURSING CARE SERVICES,01/11/2018,"2,472.86",63000-PROFESSIONAL FEES AND SERVICES,DIRECTLY COMMISSIONED NURSING SERVICES,Supplies & Services,Revenue
Walsall Council,http://opendatacommunities.org/id/metropolitan-district-council/walsall,WC98-265,30/09/2018,Childrens,AMG NURSING CARE SERVICES,07/11/2018,"2,644.72",63000-PROFESSIONAL FEES AND SERVICES,DIRECTLY COMMISSIONED NURSING SERVICES,Supplies & Services,Revenue
Walsall Council,http://opendatacommunities.org/id/metropolitan-district-council/walsall,WC98-266,30/09/2018,Adult Social Care,REDACTED,08/11/2018,"1,133.44",73506-DIRECT PAYMENT,PHYSICAL SUPPORT,Third Party Payments,Revenue
Walsall Council,http://opendatacommunities.org/id/metropolitan-district-council/walsall,WC98-267,30/09/2018,Childrens,REDACTED,16/11/2018,110.00,74503-BIRTHDAY ALLOWANCE-FOSTER CARERS,FAMILY & FRIENDS FOSTER CARE PROVISION,Transfer Payments,Revenue
Walsall Council,http://opendatacommunities.org/id/metropolitan-district-council/walsall,WC98-268,30/09/2018,Childrens,REDACTED,16/11/2018,110.00,74504-HOLIDAY/CHRISTMAS ALLOWANCE-FOSTER CARERS,FAMILY & FRIENDS FOSTER CARE PROVISION,Transfer Payments,Revenue
Walsall Council,http://opendatacommunities.org/id/metropolitan-district-council/walsall,WC98-269,30/09/2018,Childrens,REDACTED,16/11/2018,340.00,74508-INTERNAL FOSTER CARERS-CARER FEES,FAMILY & FRIENDS FOSTER CARE PROVISION,Transfer Payments,Revenue
Walsall Council,http://opendatacommunities.org/id/metropolitan-district-council/walsall,WC98-270,30/09/2018,Childrens,REDACTED,16/11/2018,600.00,74501-MAINTENANCE ALLOWANCE-FOSTER CARERS,FAMILY & FRIENDS FOSTER CARE PROVISION,Transfer Payments,Revenue
Walsall Council,http://opendatacommunities.org/id/metropolitan-district-council/walsall,WC98-271,30/09/2018,Childrens,REDACTED,16/11/2018,425.08,74510-RESIDENTS ORDERS,ADOPTION ALLOWANCES,Third Party Payments,Revenue
Walsall Council,http://opendatacommunities.org/id/metropolitan-district-council/walsall,WC98-272,30/09/2018,Adult Social Care,ANCHOR,12/11/2018,"1,749.15",73504-SHORT STAY RESIDENTIAL,SUPPORT WITH MEMORY & COGNITION,Third Party Payments,Revenue
Walsall Council,http://opendatacommunities.org/id/metropolitan-district-council/walsall,WC98-273,30/09/2018,Adult Social Care,ANCHOR,12/11/2018,"1,876.52",73501-RESIDENTIAL EMI,PHYSICAL SUPPORT,Third Party Payments,Revenue
Walsall Council,http://opendatacommunities.org/id/metropolitan-district-council/walsall,WC98-274,30/09/2018,Adult Social Care,ANCHOR,12/11/2018,"2,076.52",73501-RESIDENTIAL EMI,SUPPORT WITH MEMORY & COGNITION,Third Party Payments,Revenue
Walsall Council,http://opendatacommunities.org/id/metropolitan-district-council/walsall,WC98-275,30/09/2018,Adult Social Care,ANCHOR,12/11/2018,"2,231.68",73500-RESIDENTIAL,SUPPORT WITH MEMORY & COGNITION,Third Party Payments,Revenue
Walsall Council,http://opendatacommunities.org/id/metropolitan-district-council/walsall,WC98-276,30/09/2018,Adult Social Care,ANCHOR,12/11/2018,"2,231.68",73500-RESIDENTIAL,PHYSICAL SUPPORT,Third Party Payments,Revenue
Walsall Council,http://opendatacommunities.org/id/metropolitan-district-council/walsall,WC98-277,30/09/2018,Adult Social Care,ANCHOR,12/11/2018,"2,231.68",73500-RESIDENTIAL,PHYSICAL SUPPORT,Third Party Payments,Revenue
Walsall Council,http://opendatacommunities.org/id/metropolitan-district-council/walsall,WC98-278,30/09/2018,Adult Social Care,ANCHOR,12/11/2018,"2,431.43",73501-RESIDENTIAL EMI,PHYSICAL SUPPORT,Third Party Payments,Revenue
Walsall Council,http://opendatacommunities.org/id/metropolitan-district-council/walsall,WC98-279,30/09/2018,Adult Social Care,ANCHOR,12/11/2018,"2,431.43",73500-RESIDENTIAL,PHYSICAL SUPPORT,Third Party Payments,Revenue
Walsall Council,http://opendatacommunities.org/id/metropolitan-district-council/walsall,WC98-280,30/09/2018,Adult Social Care,ANCHOR,12/11/2018,"2,443.11",73500-RESIDENTIAL,PHYSICAL SUPPORT,Third Party Payments,Revenue
Walsall Council,http://opendatacommunities.org/id/metropolitan-district-council/walsall,WC98-281,30/09/2018,Adult Social Care,ANCHOR,12/11/2018,"2,479.69",73501-RESIDENTIAL EMI,PHYSICAL SUPPORT,Third Party Payments,Revenue
Walsall Council,http://opendatacommunities.org/id/metropolitan-district-council/walsall,WC98-282,30/09/2018,Adult Social Care,ANCHOR,12/11/2018,"2,479.69",73501-RESIDENTIAL EMI,SUPPORT WITH MEMORY & COGNITION,Third Party Payments,Revenue
Walsall Council,http://opendatacommunities.org/id/metropolitan-district-council/walsall,WC98-283,30/09/2018,Adult Social Care,ANCHOR,12/11/2018,"2,479.69",73501-RESIDENTIAL EMI,MENTAL HEALTH SUPPORT,Third Party Payments,Revenue
Walsall Council,http://opendatacommunities.org/id/metropolitan-district-council/walsall,WC98-284,30/09/2018,Adult Social Care,ANCHOR,12/11/2018,"2,479.69",73501-RESIDENTIAL EMI,SUPPORT WITH MEMORY & COGNITION,Third Party Payments,Revenue
Walsall Council,http://opendatacommunities.org/id/metropolitan-district-council/walsall,WC98-285,30/09/2018,Adult Social Care,ANCHOR,12/11/2018,"2,479.69",73501-RESIDENTIAL EMI,MENTAL HEALTH SUPPORT,Third Party Payments,Revenue
Walsall Council,http://opendatacommunities.org/id/metropolitan-district-council/walsall,WC98-286,30/09/2018,Adult Social Care,ANCHOR,12/11/2018,"2,479.69",73501-RESIDENTIAL EMI,MENTAL HEALTH SUPPORT,Third Party Payments,Revenue
Walsall Council,http://opendatacommunities.org/id/metropolitan-district-council/walsall,WC98-287,30/09/2018,Adult Social Care,ANCHOR,12/11/2018,"2,479.69",73501-RESIDENTIAL EMI,SUPPORT WITH MEMORY & COGNITION,Third Party Payments,Revenue
Walsall Council,http://opendatacommunities.org/id/metropolitan-district-council/walsall,WC98-288,30/09/2018,Adult Social Care,ANCHOR,12/11/2018,"2,479.69",73501-RESIDENTIAL EMI,MENTAL HEALTH SUPPORT,Third Party Payments,Revenue
Walsall Council,http://opendatacommunities.org/id/metropolitan-district-council/walsall,WC98-289,30/09/2018,Adult Social Care,ANCHOR,12/11/2018,"2,479.69",73501-RESIDENTIAL EMI,PHYSICAL SUPPORT,Third Party Payments,Revenue
Walsall Council,http://opendatacommunities.org/id/metropolitan-district-council/walsall,WC98-290,30/09/2018,Adult Social Care,ANCHOR,12/11/2018,"2,479.69",73501-RESIDENTIAL EMI,PHYSICAL SUPPORT,Third Party Payments,Revenue
Walsall Council,http://opendatacommunities.org/id/metropolitan-district-council/walsall,WC98-291,30/09/2018,Adult Social Care,ANCHOR,12/11/2018,"2,479.69",73501-RESIDENTIAL EMI,PHYSICAL SUPPORT,Third Party Payments,Revenue
Walsall Council,http://opendatacommunities.org/id/metropolitan-district-council/walsall,WC98-292,30/09/2018,Adult Social Care,ANCHOR,12/11/2018,"2,601.68",73500-RESIDENTIAL,SENSORY SUPPORT,Third Party Payments,Revenue
Walsall Council,http://opendatacommunities.org/id/metropolitan-district-council/walsall,WC98-293,30/09/2018,Adult Social Care,ANCHOR,12/11/2018,"2,680.97",73500-RESIDENTIAL,PHYSICAL SUPPORT,Third Party Payments,Revenue
Walsall Council,http://opendatacommunities.org/id/metropolitan-district-council/walsall,WC98-294,30/09/2018,Adult Social Care,ANCHOR,12/11/2018,"2,707.40",73501-RESIDENTIAL EMI,SENSORY SUPPORT,Third Party Payments,Revenue
Walsall Council,http://opendatacommunities.org/id/metropolitan-district-council/walsall,WC98-295,30/09/2018,Adult Social Care,ANCHOR,12/11/2018,"2,748.57",73501-RESIDENTIAL EMI,MENTAL HEALTH SUPPORT,Third Party Payments,Revenue
Walsall Council,http://opendatacommunities.org/id/metropolitan-district-council/walsall,WC98-296,30/09/2018,Adult Social Care,ANCHOR,12/11/2018,"2,880.71",73500-RESIDENTIAL,PHYSICAL SUPPORT,Third Party Payments,Revenue
Walsall Council,http://opendatacommunities.org/id/metropolitan-district-council/walsall,WC98-297,30/09/2018,Adult Social Care,ANCHOR,12/11/2018,"2,907.14",73500-RESIDENTIAL,PHYSICAL SUPPORT,Third Party Payments,Revenue
Walsall Council,http://opendatacommunities.org/id/metropolitan-district-council/walsall,WC98-298,30/09/2018,Adult Social Care,ANCHOR,12/11/2018,"2,928.98",73501-RESIDENTIAL EMI,SUPPORT WITH MEMORY & COGNITION,Third Party Payments,Revenue
Walsall Council,http://opendatacommunities.org/id/metropolitan-district-council/walsall,WC98-299,30/09/2018,Adult Social Care,ANCHOR,12/11/2018,"2,955.40",73501-RESIDENTIAL EMI,PHYSICAL SUPPORT,Third Party Payments,Revenue
Walsall Council,http://opendatacommunities.org/id/metropolitan-district-council/walsall,WC98-300,30/09/2018,Adult Social Care,ANCHOR,12/11/2018,"6,299.75",73501-RESIDENTIAL EMI,PHYSICAL SUPPORT,Third Party Payments,Revenue
Walsall Council,http://opendatacommunities.org/id/metropolitan-district-council/walsall,WC98-301,30/09/2018,Economy & Environment,AND FINALLY LTD,14/11/2018,"1,413.16",63000-PROFESSIONAL FEES AND SERVICES,FOREST ARTS CENTRE,Supplies & Services,Revenue
Walsall Council,http://opendatacommunities.org/id/metropolitan-district-council/walsall,WC98-302,30/09/2018,Childrens,REDACTED,16/11/2018,314.44,74509-SPECIAL GUARDIANSHIP ORDERS,ADOPTION ALLOWANCES,Transfer Payments,Revenue
Walsall Council,http://opendatacommunities.org/id/metropolitan-district-council/walsall,WC98-303,30/09/2018,Childrens,REDACTED,02/11/2018,720.00,74501-MAINTENANCE ALLOWANCE-FOSTER CARERS,INTERNAL FOSTER CARE PROVISION,Transfer Payments,Revenue
Walsall Council,http://opendatacommunities.org/id/metropolitan-district-council/walsall,WC98-304,30/09/2018,Childrens,REDACTED,02/11/2018,"1,000.00",74508-INTERNAL FOSTER CARERS-CARER FEES,INTERNAL FOSTER CARE PROVISION,Transfer Payments,Revenue
Walsall Council,http://opendatacommunities.org/id/metropolitan-district-council/walsall,WC98-305,30/09/2018,Adult Social Care,REDACTED,08/11/2018,"1,771.28",73506-DIRECT PAYMENT,PHYSICAL SUPPORT,Third Party Payments,Revenue
Walsall Council,http://opendatacommunities.org/id/metropolitan-district-council/walsall,WC98-306,30/09/2018,Childrens,ANDREWS ELECTRICAL LTD,05/11/2018,"1,986.00",01006-SITE WORKS MAIN CONTRACTORS,CFR 1297 CASTLE BUSINESS & ENTERPRISE COLLEGE EXPANSION,Capital,Capital
Walsall Council,http://opendatacommunities.org/id/metropolitan-district-council/walsall,WC98-307,30/09/2018,Adult Social Care,ANGEL COURT RESIDENTIAL CARE HOME,12/11/2018,289.68,73504-SHORT STAY RESIDENTIAL,PHYSICAL SUPPORT,Third Party Payments,Revenue
Walsall Council,http://opendatacommunities.org/id/metropolitan-district-council/walsall,WC98-308,30/09/2018,Adult Social Care,ANGEL COURT RESIDENTIAL CARE HOME,12/11/2018,"1,688.84",73500-RESIDENTIAL,PHYSICAL SUPPORT,Third Party Payments,Revenue
Walsall Council,http://opendatacommunities.org/id/metropolitan-district-council/walsall,WC98-309,30/09/2018,Adult Social Care,ANGEL COURT RESIDENTIAL CARE HOME,12/11/2018,"1,688.84",73500-RESIDENTIAL,PHYSICAL SUPPORT,Third Party Payments,Revenue
Walsall Council,http://opendatacommunities.org/id/metropolitan-district-council/walsall,WC98-310,30/09/2018,Adult Social Care,ANGEL COURT RESIDENTIAL CARE HOME,12/11/2018,"1,876.52",73501-RESIDENTIAL EMI,PHYSICAL SUPPORT,Third Party Payments,Revenue
Walsall Council,http://opendatacommunities.org/id/metropolitan-district-council/walsall,WC98-311,30/09/2018,Adult Social Care,ANGEL COURT RESIDENTIAL CARE HOME,12/11/2018,"1,949.68",73501-RESIDENTIAL EMI,PHYSICAL SUPPORT,Third Party Payments,Revenue
Walsall Council,http://opendatacommunities.org/id/metropolitan-district-council/walsall,WC98-312,30/09/2018,Childrens,REDACTED,16/11/2018,368.76,74509-SPECIAL GUARDIANSHIP ORDERS,ADOPTION ALLOWANCES,Transfer Payments,Revenue
Walsall Council,http://opendatacommunities.org/id/metropolitan-district-council/walsall,WC98-313,30/09/2018,Childrens,REDACTED,16/11/2018,368.76,74509-SPECIAL GUARDIANSHIP ORDERS,ADOPTION ALLOWANCES,Transfer Payments,Revenue
Walsall Council,http://opendatacommunities.org/id/metropolitan-district-council/walsall,WC98-314,30/09/2018,Childrens,REDACTED,16/11/2018,500.16,74509-SPECIAL GUARDIANSHIP ORDERS,ADOPTION ALLOWANCES,Transfer Payments,Revenue
Walsall Council,http://opendatacommunities.org/id/metropolitan-district-council/walsall,WC98-315,30/09/2018,Childrens,REDACTED,16/11/2018,312.04,74509-SPECIAL GUARDIANSHIP ORDERS,ADOPTION ALLOWANCES,Transfer Payments,Revenue
Walsall Council,http://opendatacommunities.org/id/metropolitan-district-council/walsall,WC98-316,30/09/2018,Adult Social Care,REDACTED,07/11/2018,274.83,73372-DOMICILIARY CARE,LD PACKAGE/PLACEMENT COSTS,Third Party Payments,Revenue
Walsall Council,http://opendatacommunities.org/id/metropolitan-district-council/walsall,WC98-317,30/09/2018,Adult Social Care,REDACTED,08/11/2018,"1,152.12",73506-DIRECT PAYMENT,PHYSICAL SUPPORT,Third Party Payments,Revenue
Walsall Council,http://opendatacommunities.org/id/metropolitan-district-council/walsall,WC98-318,30/09/2018,Adult Social Care,ANSON COURT RESIDENTIAL HOME,12/11/2018,-572.21,73500-RESIDENTIAL,SOCIAL SUPPORT,Third Party Payments,Revenue
Walsall Council,http://opendatacommunities.org/id/metropolitan-district-council/walsall,WC98-319,30/09/2018,Adult Social Care,ANSON COURT RESIDENTIAL HOME,07/11/2018,926.96,73373-RESIDENTIAL & NURSING CARE PLACEMENTS,OP PACKAGE/PLACEMENT COSTS,Third Party Payments,Revenue
Walsall Council,http://opendatacommunities.org/id/metropolitan-district-council/walsall,WC98-320,30/09/2018,Adult Social Care,ANSON COURT RESIDENTIAL HOME,12/11/2018,"1,876.52",73501-RESIDENTIAL EMI,PHYSICAL SUPPORT,Third Party Payments,Revenue
Walsall Council,http://opendatacommunities.org/id/metropolitan-district-council/walsall,WC98-321,30/09/2018,Adult Social Care,ANSON COURT RESIDENTIAL HOME,12/11/2018,"1,876.52",73501-RESIDENTIAL EMI,MENTAL HEALTH SUPPORT,Third Party Payments,Revenue
Walsall Council,http://opendatacommunities.org/id/metropolitan-district-council/walsall,WC98-322,30/09/2018,Adult Social Care,ANSON COURT RESIDENTIAL HOME,12/11/2018,"1,876.52",73501-RESIDENTIAL EMI,MENTAL HEALTH SUPPORT,Third Party Payments,Revenue
Walsall Council,http://opendatacommunities.org/id/metropolitan-district-council/walsall,WC98-323,30/09/2018,Adult Social Care,ANSON COURT RESIDENTIAL HOME,12/11/2018,"1,876.52",73501-RESIDENTIAL EMI,SUPPORT WITH MEMORY & COGNITION,Third Party Payments,Revenue
Walsall Council,http://opendatacommunities.org/id/metropolitan-district-council/walsall,WC98-324,30/09/2018,Adult Social Care,ANSON COURT RESIDENTIAL HOME,12/11/2018,"1,876.52",73501-RESIDENTIAL EMI,PHYSICAL SUPPORT,Third Party Payments,Revenue
Walsall Council,http://opendatacommunities.org/id/metropolitan-district-council/walsall,WC98-325,30/09/2018,Adult Social Care,ANSON COURT RESIDENTIAL HOME,12/11/2018,"1,876.52",73501-RESIDENTIAL EMI,PHYSICAL SUPPORT,Third Party Payments,Revenue
Walsall Council,http://opendatacommunities.org/id/metropolitan-district-council/walsall,WC98-326,30/09/2018,Adult Social Care,ANSON COURT RESIDENTIAL HOME,12/11/2018,"1,876.52",73501-RESIDENTIAL EMI,MENTAL HEALTH SUPPORT,Third Party Payments,Revenue
Walsall Council,http://opendatacommunities.org/id/metropolitan-district-council/walsall,WC98-327,30/09/2018,Adult Social Care,ANSON COURT RESIDENTIAL HOME,12/11/2018,"1,876.52",73501-RESIDENTIAL EMI,PHYSICAL SUPPORT,Third Party Payments,Revenue
Walsall Council,http://opendatacommunities.org/id/metropolitan-district-council/walsall,WC98-328,30/09/2018,Adult Social Care,ANSON COURT RESIDENTIAL HOME,12/11/2018,"1,876.52",73501-RESIDENTIAL EMI,PHYSICAL SUPPORT,Third Party Payments,Revenue
Walsall Council,http://opendatacommunities.org/id/metropolitan-district-council/walsall,WC98-329,30/09/2018,Adult Social Care,ANSON COURT RESIDENTIAL HOME,12/11/2018,"1,876.52",73501-RESIDENTIAL EMI,SUPPORT WITH MEMORY & COGNITION,Third Party Payments,Revenue
Walsall Council,http://opendatacommunities.org/id/metropolitan-district-council/walsall,WC98-330,30/09/2018,Adult Social Care,ANSON COURT RESIDENTIAL HOME,12/11/2018,"1,876.52",73501-RESIDENTIAL EMI,SUPPORT WITH MEMORY & COGNITION,Third Party Payments,Revenue
Walsall Council,http://opendatacommunities.org/id/metropolitan-district-council/walsall,WC98-331,30/09/2018,Adult Social Care,ANSON COURT RESIDENTIAL HOME,12/11/2018,"1,876.52",73501-RESIDENTIAL EMI,SOCIAL SUPPORT,Third Party Payments,Revenue
Walsall Council,http://opendatacommunities.org/id/metropolitan-district-council/walsall,WC98-332,30/09/2018,Adult Social Care,ANSON COURT RESIDENTIAL HOME,12/11/2018,"1,876.52",73501-RESIDENTIAL EMI,SUPPORT WITH MEMORY & COGNITION,Third Party Payments,Revenue
Walsall Council,http://opendatacommunities.org/id/metropolitan-district-council/walsall,WC98-333,30/09/2018,Adult Social Care,ANSON COURT RESIDENTIAL HOME,12/11/2018,"1,876.52",73501-RESIDENTIAL EMI,SUPPORT WITH MEMORY & COGNITION,Third Party Payments,Revenue
Walsall Council,http://opendatacommunities.org/id/metropolitan-district-council/walsall,WC98-334,30/09/2018,Adult Social Care,ANSON COURT RESIDENTIAL HOME,12/11/2018,"1,876.52",73501-RESIDENTIAL EMI,SOCIAL SUPPORT,Third Party Payments,Revenue
Walsall Council,http://opendatacommunities.org/id/metropolitan-district-council/walsall,WC98-335,30/09/2018,Adult Social Care,ANSON COURT RESIDENTIAL HOME,12/11/2018,"1,956.52",73501-RESIDENTIAL EMI,SOCIAL SUPPORT,Third Party Payments,Revenue
Walsall Council,http://opendatacommunities.org/id/metropolitan-district-council/walsall,WC98-336,30/09/2018,Adult Social Care,ANSON COURT RESIDENTIAL HOME,12/11/2018,"1,956.52",73501-RESIDENTIAL EMI,MENTAL HEALTH SUPPORT,Third Party Payments,Revenue
Walsall Council,http://opendatacommunities.org/id/metropolitan-district-council/walsall,WC98-337,30/09/2018,Adult Social Care,ANSON COURT RESIDENTIAL HOME,12/11/2018,"1,956.52",73501-RESIDENTIAL EMI,PHYSICAL SUPPORT,Third Party Payments,Revenue
Walsall Council,http://opendatacommunities.org/id/metropolitan-district-council/walsall,WC98-338,30/09/2018,Adult Social Care,ANSON COURT RESIDENTIAL HOME,12/11/2018,"1,956.52",73501-RESIDENTIAL EMI,PHYSICAL SUPPORT,Third Party Payments,Revenue
Walsall Council,http://opendatacommunities.org/id/metropolitan-district-council/walsall,WC98-339,30/09/2018,Adult Social Care,ANSON COURT RESIDENTIAL HOME,12/11/2018,"1,996.52",73501-RESIDENTIAL EMI,PHYSICAL SUPPORT,Third Party Payments,Revenue
Walsall Council,http://opendatacommunities.org/id/metropolitan-district-council/walsall,WC98-340,30/09/2018,Adult Social Care,ANSON COURT RESIDENTIAL HOME,12/11/2018,"2,424.34",73501-RESIDENTIAL EMI,PHYSICAL SUPPORT,Third Party Payments,Revenue
Walsall Council,http://opendatacommunities.org/id/metropolitan-district-council/walsall,WC98-341,30/09/2018,Adult Social Care,ANSON COURT RESIDENTIAL HOME,12/11/2018,"4,956.52",73501-RESIDENTIAL EMI,MENTAL HEALTH SUPPORT,Third Party Payments,Revenue
Walsall Council,http://opendatacommunities.org/id/metropolitan-district-council/walsall,WC98-342,30/09/2018,Adult Social Care,ANSON COURT RESIDENTIAL HOME,12/11/2018,"7,130.43",73501-RESIDENTIAL EMI,MENTAL HEALTH SUPPORT,Third Party Payments,Revenue
Walsall Council,http://opendatacommunities.org/id/metropolitan-district-council/walsall,WC98-343,30/09/2018,Resources and Transformation,ANTALIS LIMITED,02/11/2018,453.60,60500-GENERAL MATERIALS,PRINTING SERVICES,Supplies & Services,Revenue
Walsall Council,http://opendatacommunities.org/id/metropolitan-district-council/walsall,WC98-344,30/09/2018,Resources and Transformation,ANTALIS LIMITED,12/11/2018,453.60,60500-GENERAL MATERIALS,PRINTING SERVICES,Supplies & Services,Revenue
Walsall Council,http://opendatacommunities.org/id/metropolitan-district-council/walsall,WC98-345,30/09/2018,Childrens,REDACTED,16/11/2018,604.00,74510-RESIDENTS ORDERS,ADOPTION ALLOWANCES,Third Party Payments,Revenue
Walsall Council,http://opendatacommunities.org/id/metropolitan-district-council/walsall,WC98-346,30/09/2018,Childrens,ANTI-PEST PEST CONTROL SERVICES,06/11/2018,315.00,73025-PROFESSIONAL SERVICES-PRIV CONTRACTOR & OTHER AGENCIES,LOCALITY FAMILY SUPPORT-WEST,Third Party Payments,Revenue
Walsall Council,http://opendatacommunities.org/id/metropolitan-district-council/walsall,WC98-347,30/09/2018,Childrens,ANTI-PEST PEST CONTROL SERVICES,16/11/2018,490.00,73025-PROFESSIONAL SERVICES-PRIV CONTRACTOR & OTHER AGENCIES,MY PLACE (REVENUE),Third Party Payments,Revenue
Walsall Council,http://opendatacommunities.org/id/metropolitan-district-council/walsall,WC98-348,30/09/2018,Childrens,REDACTED,16/11/2018,333.12,74509-SPECIAL GUARDIANSHIP ORDERS,ADOPTION ALLOWANCES,Transfer Payments,Revenue
Walsall Council,http://opendatacommunities.org/id/metropolitan-district-council/walsall,WC98-349,30/09/2018,Economy & Environment,APCOA PARKING SERVICES (UK) LTD,12/11/2018,"53,102.85",73025-PROFESSIONAL SERVICES-PRIV CONTRACTOR & OTHER AGENCIES,PARKING SERVICES OFF-STREET,Third Party Payments,Revenue
Walsall Council,http://opendatacommunities.org/id/metropolitan-district-council/walsall,WC98-350,30/09/2018,Childrens,APP CARZ,27/11/2018,"2,584.00",52000-WITH DRIVER-HIRE OF VEHICLES,HOME TO SCHOOL TRANSPORT,Transport,Revenue
Walsall Council,http://opendatacommunities.org/id/metropolitan-district-council/walsall,WC98-351,30/09/2018,Childrens,APP CARZ,27/11/2018,"4,240.00",52000-WITH DRIVER-HIRE OF VEHICLES,HOME TO SCHOOL TRANSPORT,Transport,Revenue
Walsall Council,http://opendatacommunities.org/id/metropolitan-district-council/walsall,WC98-352,30/09/2018,Economy & Environment,AQUA FORCE SPECIAL WASTE LTD,27/11/2018,350.00,73029-HAZARDOUS WASTE REMOVAL/DISPOSAL-PRIV CONTRACTOR FEES,WASTE DISPOSAL - RESIDUAL,Third Party Payments,Revenue
Walsall Council,http://opendatacommunities.org/id/metropolitan-district-council/walsall,WC98-353,30/09/2018,Childrens,AQUAID (BIRMINGHAM CENTRAL),07/11/2018,225.00,61009-BEVERAGES-PROVISIONS,PELSALL EDC,Supplies & Services,Revenue
Walsall Council,http://opendatacommunities.org/id/metropolitan-district-council/walsall,WC98-354,30/09/2018,Economy & Environment,AQUALYMPIC,21/11/2018,600.00,34305-AGENCY STAFF-EMPLOYEES,OAK PARK,Employees,Revenue
Walsall Council,http://opendatacommunities.org/id/metropolitan-district-council/walsall,WC98-355,30/09/2018,Economy & Environment,AQUAMO LTD,14/11/2018,295.00,60008-MAINTENANCE-FURNITURE & EQUIPMENT,BLOXWICH LEISURE CENTRE,Supplies & Services,Revenue
Walsall Council,http://opendatacommunities.org/id/metropolitan-district-council/walsall,WC98-356,30/09/2018,Adult Social Care,ARBORETUM NURSING HOME.,12/11/2018,"2,039.68",73502-NURSING,PHYSICAL SUPPORT,Third Party Payments,Revenue
Walsall Council,http://opendatacommunities.org/id/metropolitan-district-council/walsall,WC98-357,30/09/2018,Adult Social Care,ARBORETUM NURSING HOME.,12/11/2018,"2,039.68",73502-NURSING,PHYSICAL SUPPORT,Third Party Payments,Revenue
Walsall Council,http://opendatacommunities.org/id/metropolitan-district-council/walsall,WC98-358,30/09/2018,Adult Social Care,ARBORETUM NURSING HOME.,12/11/2018,"2,039.68",73502-NURSING,SUPPORT WITH MEMORY & COGNITION,Third Party Payments,Revenue
Walsall Council,http://opendatacommunities.org/id/metropolitan-district-council/walsall,WC98-359,30/09/2018,Adult Social Care,ARBORETUM NURSING HOME.,12/11/2018,"2,039.68",73502-NURSING,PHYSICAL SUPPORT,Third Party Payments,Revenue
Walsall Council,http://opendatacommunities.org/id/metropolitan-district-council/walsall,WC98-360,30/09/2018,Adult Social Care,ARBORETUM NURSING HOME.,12/11/2018,"2,082.54",73502-NURSING,PHYSICAL SUPPORT,Third Party Payments,Revenue
Walsall Council,http://opendatacommunities.org/id/metropolitan-district-council/walsall,WC98-361,30/09/2018,Adult Social Care,ARBORETUM NURSING HOME.,12/11/2018,"2,119.68",73500-RESIDENTIAL,PHYSICAL SUPPORT,Third Party Payments,Revenue
Walsall Council,http://opendatacommunities.org/id/metropolitan-district-council/walsall,WC98-362,30/09/2018,Adult Social Care,ARBORETUM NURSING HOME.,12/11/2018,"2,159.68",73502-NURSING,PHYSICAL SUPPORT,Third Party Payments,Revenue
Walsall Council,http://opendatacommunities.org/id/metropolitan-district-council/walsall,WC98-363,30/09/2018,Adult Social Care,ARBORETUM NURSING HOME.,12/11/2018,"2,159.68",73502-NURSING,PHYSICAL SUPPORT,Third Party Payments,Revenue
Walsall Council,http://opendatacommunities.org/id/metropolitan-district-council/walsall,WC98-364,30/09/2018,Adult Social Care,ARBORETUM NURSING HOME.,12/11/2018,"4,585.03",73502-NURSING,PHYSICAL SUPPORT,Third Party Payments,Revenue
Walsall Council,http://opendatacommunities.org/id/metropolitan-district-council/walsall,WC98-365,30/09/2018,Adult Social Care,ARBORETUM NURSING HOME.,12/11/2018,"6,331.18",73503-NURSING EMI,PHYSICAL SUPPORT,Third Party Payments,Revenue
Walsall Council,http://opendatacommunities.org/id/metropolitan-district-council/walsall,WC98-366,30/09/2018,Adult Social Care,ARBORETUM NURSING HOME.,19/11/2018,"8,940.00",73025-PROFESSIONAL SERVICES-PRIV CONTRACTOR & OTHER AGENCIES,TRANSITIONAL CARE SUPPORT TEAM,Third Party Payments,Revenue
Walsall Council,http://opendatacommunities.org/id/metropolitan-district-council/walsall,WC98-367,30/09/2018,Adult Social Care,ARBORETUM NURSING HOME.,27/11/2018,"8,940.00",73025-PROFESSIONAL SERVICES-PRIV CONTRACTOR & OTHER AGENCIES,TRANSITIONAL CARE SUPPORT TEAM,Third Party Payments,Revenue
Walsall Council,http://opendatacommunities.org/id/metropolitan-district-council/walsall,WC98-368,30/09/2018,Adult Social Care,ARBORETUM NURSING HOME.,05/11/2018,"14,900.00",73019-PSE'S-PRIV CONTRACTOR FEES,TRANSITIONAL CARE SUPPORT TEAM,Third Party Payments,Revenue
Walsall Council,http://opendatacommunities.org/id/metropolitan-district-council/walsall,WC98-369,30/09/2018,Adult Social Care,ARBORETUM NURSING HOME.,27/11/2018,"14,900.00",73019-PSE'S-PRIV CONTRACTOR FEES,TRANSITIONAL CARE SUPPORT TEAM,Third Party Payments,Revenue
Walsall Council,http://opendatacommunities.org/id/metropolitan-district-council/walsall,WC98-370,30/09/2018,Economy & Environment,ARBURY WALSALL,13/11/2018,219.83,60500-GENERAL MATERIALS,FLEET,Supplies & Services,Revenue
Walsall Council,http://opendatacommunities.org/id/metropolitan-district-council/walsall,WC98-371,30/09/2018,Childrens,ARCADIS,14/11/2018,"32,296.67",01001-OTHER CONSULTANTS FEES,CFR 783 BASIC NEED,Capital,Capital
Walsall Council,http://opendatacommunities.org/id/metropolitan-district-council/walsall,WC98-372,30/09/2018,Childrens,ARCHWAY ACADEMY,19/11/2018,"14,740.00",66502-TOP UP FUNDING -GRANTS TO SCHOOLS,INDEPENDENT PROVIDERS - SPECIAL & AP,Third Party Payments,Revenue
Walsall Council,http://opendatacommunities.org/id/metropolitan-district-council/walsall,WC98-373,30/09/2018,Childrens,ARCHWAY ACADEMY,19/11/2018,"17,688.00",66502-TOP UP FUNDING -GRANTS TO SCHOOLS,INDEPENDENT PROVIDERS - SPECIAL & AP,Third Party Payments,Revenue
Walsall Council,http://opendatacommunities.org/id/metropolitan-district-council/walsall,WC98-374,30/09/2018,Economy & Environment,ARCHWAY TCS LTD,01/11/2018,707.50,60537-VEHICLE WASH PLANT-MATERIALS,DEPOT,Supplies & Services,Revenue
Walsall Council,http://opendatacommunities.org/id/metropolitan-district-council/walsall,WC98-375,30/09/2018,Adult Social Care,ARDEN MANOR CARE HOME,12/11/2018,"2,000.00",73501-RESIDENTIAL EMI,PHYSICAL SUPPORT,Third Party Payments,Revenue
Walsall Council,http://opendatacommunities.org/id/metropolitan-district-council/walsall,WC98-376,30/09/2018,Resources and Transformation,ARIES ENTERTAINMENT LTD,21/11/2018,505.00,62523-EVENTS,WALSALL TOWN HALL,Supplies & Services,Revenue
Walsall Council,http://opendatacommunities.org/id/metropolitan-district-council/walsall,WC98-377,30/09/2018,Resources and Transformation,ARMSTRONG YORK ASBESTOS ENVIRONMENTAL LIMITED,21/11/2018,640.00,"40000-REPAIRS,ALTERATIONS & MAINTENANCE-PREM",REDUNDANT BUILDINGS,Premises,Revenue
Walsall Council,http://opendatacommunities.org/id/metropolitan-district-council/walsall,WC98-378,30/09/2018,Resources and Transformation,ARMSTRONG YORK ASBESTOS ENVIRONMENTAL LIMITED,21/11/2018,787.50,01006-SITE WORKS MAIN CONTRACTORS,CFR 801 ASBESTOS REMOVAL EAST,Capital,Capital
Walsall Council,http://opendatacommunities.org/id/metropolitan-district-council/walsall,WC98-379,30/09/2018,Childrens,ARRIBA CONSULTANCY LTD,13/11/2018,"2,814.55",63000-PROFESSIONAL FEES AND SERVICES,LOOKED AFTER CHILDRENS SOCIAL WORK TEAM,Supplies & Services,Revenue
Walsall Council,http://opendatacommunities.org/id/metropolitan-district-council/walsall,WC98-380,30/09/2018,Childrens,ARTEMIS SUPPORT LIMITED,02/11/2018,"62,692.85",74036-EXTERNAL RESIDENTIAL CARE-OTH AGENCY PROVISION,INDEPENDENT RESIDENTIAL HOMES,Third Party Payments,Revenue
Walsall Council,http://opendatacommunities.org/id/metropolitan-district-council/walsall,WC98-381,30/09/2018,Economy & Environment,ARTHUR J GALLAGHER T/A HEATH LAMBERT LIMITED,01/11/2018,"5,000.00",63000-PROFESSIONAL FEES AND SERVICES,PHOENIX 10 PROJECT,Supplies & Services,Revenue
Walsall Council,http://opendatacommunities.org/id/metropolitan-district-council/walsall,WC98-382,30/09/2018,Resources and Transformation,ASCENDANT SOLUTIONS LTD,21/11/2018,"22,000.00",63114-OTHER FEES & LICENCES-SERVICES-FEES,REVENUES,Supplies & Services,Revenue
Walsall Council,http://opendatacommunities.org/id/metropolitan-district-council/walsall,WC98-383,30/09/2018,Economy & Environment,ASDA PHARMACY,05/11/2018,"4,162.00",63253-PAYMENT TO CONTRACTOR,GENERAL HEALTH PROTECTION,Third Party Payments,Revenue
Walsall Council,http://opendatacommunities.org/id/metropolitan-district-council/walsall,WC98-384,30/09/2018,Adult Social Care,ASH GRANGE CARE HOME,12/11/2018,"1,688.84",73500-RESIDENTIAL,SUPPORT WITH MEMORY & COGNITION,Third Party Payments,Revenue
Walsall Council,http://opendatacommunities.org/id/metropolitan-district-council/walsall,WC98-385,30/09/2018,Adult Social Care,ASH GRANGE CARE HOME,12/11/2018,"1,688.84",73500-RESIDENTIAL,MENTAL HEALTH SUPPORT,Third Party Payments,Revenue
Walsall Council,http://opendatacommunities.org/id/metropolitan-district-council/walsall,WC98-386,30/09/2018,Adult Social Care,ASH GRANGE CARE HOME,12/11/2018,"2,039.68",73502-NURSING,PHYSICAL SUPPORT,Third Party Payments,Revenue
Walsall Council,http://opendatacommunities.org/id/metropolitan-district-council/walsall,WC98-387,30/09/2018,Adult Social Care,ASH GRANGE CARE HOME,12/11/2018,"2,039.68",73502-NURSING,PHYSICAL SUPPORT,Third Party Payments,Revenue
Walsall Council,http://opendatacommunities.org/id/metropolitan-district-council/walsall,WC98-388,30/09/2018,Adult Social Care,ASH GRANGE CARE HOME,12/11/2018,"2,039.68",73502-NURSING,SUPPORT WITH MEMORY & COGNITION,Third Party Payments,Revenue
Walsall Council,http://opendatacommunities.org/id/metropolitan-district-council/walsall,WC98-389,30/09/2018,Adult Social Care,ASH GRANGE CARE HOME,12/11/2018,"2,039.68",73502-NURSING,PHYSICAL SUPPORT,Third Party Payments,Revenue
Walsall Council,http://opendatacommunities.org/id/metropolitan-district-council/walsall,WC98-390,30/09/2018,Adult Social Care,ASH GRANGE CARE HOME,12/11/2018,"2,039.68",73502-NURSING,PHYSICAL SUPPORT,Third Party Payments,Revenue
Walsall Council,http://opendatacommunities.org/id/metropolitan-district-council/walsall,WC98-391,30/09/2018,Adult Social Care,ASH GRANGE CARE HOME,12/11/2018,"2,039.68",73502-NURSING,PHYSICAL SUPPORT,Third Party Payments,Revenue
Walsall Council,http://opendatacommunities.org/id/metropolitan-district-council/walsall,WC98-392,30/09/2018,Adult Social Care,ASH GRANGE CARE HOME,12/11/2018,"2,039.68",73502-NURSING,PHYSICAL SUPPORT,Third Party Payments,Revenue
Walsall Council,http://opendatacommunities.org/id/metropolitan-district-council/walsall,WC98-393,30/09/2018,Adult Social Care,ASH GRANGE CARE HOME,12/11/2018,"2,039.68",73502-NURSING,PHYSICAL SUPPORT,Third Party Payments,Revenue
Walsall Council,http://opendatacommunities.org/id/metropolitan-district-council/walsall,WC98-394,30/09/2018,Adult Social Care,ASH GRANGE CARE HOME,12/11/2018,"2,039.68",73502-NURSING,PHYSICAL SUPPORT,Third Party Payments,Revenue
Walsall Council,http://opendatacommunities.org/id/metropolitan-district-council/walsall,WC98-395,30/09/2018,Adult Social Care,ASH GRANGE CARE HOME,12/11/2018,"2,039.68",73502-NURSING,PHYSICAL SUPPORT,Third Party Payments,Revenue
Walsall Council,http://opendatacommunities.org/id/metropolitan-district-council/walsall,WC98-396,30/09/2018,Adult Social Care,ASH GRANGE CARE HOME,12/11/2018,"2,039.68",73502-NURSING,MENTAL HEALTH SUPPORT,Third Party Payments,Revenue
Walsall Council,http://opendatacommunities.org/id/metropolitan-district-council/walsall,WC98-397,30/09/2018,Adult Social Care,ASH GRANGE CARE HOME,12/11/2018,"2,039.68",73502-NURSING,PHYSICAL SUPPORT,Third Party Payments,Revenue
Walsall Council,http://opendatacommunities.org/id/metropolitan-district-council/walsall,WC98-398,30/09/2018,Adult Social Care,ASH GRANGE CARE HOME,12/11/2018,"2,243.64",73503-NURSING EMI,PHYSICAL SUPPORT,Third Party Payments,Revenue
Walsall Council,http://opendatacommunities.org/id/metropolitan-district-council/walsall,WC98-399,30/09/2018,Adult Social Care,ASH GRANGE CARE HOME,12/11/2018,"2,243.64",73503-NURSING EMI,PHYSICAL SUPPORT,Third Party Payments,Revenue
Walsall Council,http://opendatacommunities.org/id/metropolitan-district-council/walsall,WC98-400,30/09/2018,Adult Social Care,ASH GRANGE CARE HOME,12/11/2018,"2,319.68",73502-NURSING,PHYSICAL SUPPORT,Third Party Payments,Revenue
Walsall Council,http://opendatacommunities.org/id/metropolitan-district-council/walsall,WC98-401,30/09/2018,Adult Social Care,ASH GRANGE CARE HOME,12/11/2018,"2,480.00",73503-NURSING EMI,PHYSICAL SUPPORT,Third Party Payments,Revenue
Walsall Council,http://opendatacommunities.org/id/metropolitan-district-council/walsall,WC98-402,30/09/2018,Adult Social Care,ASH GRANGE CARE HOME,12/11/2018,"2,495.72",73502-NURSING,LEARNING DISABILITY SUPPORT,Third Party Payments,Revenue
Walsall Council,http://opendatacommunities.org/id/metropolitan-district-council/walsall,WC98-403,30/09/2018,Adult Social Care,ASH GRANGE CARE HOME,12/11/2018,"2,768.14",73502-NURSING,PHYSICAL SUPPORT,Third Party Payments,Revenue
Walsall Council,http://opendatacommunities.org/id/metropolitan-district-council/walsall,WC98-404,30/09/2018,Adult Social Care,ASH GRANGE CARE HOME,07/11/2018,"3,359.52",73025-PROFESSIONAL SERVICES-PRIV CONTRACTOR & OTHER AGENCIES,TRANSITIONAL CARE SUPPORT TEAM,Third Party Payments,Revenue
Walsall Council,http://opendatacommunities.org/id/metropolitan-district-council/walsall,WC98-405,30/09/2018,Adult Social Care,ASHBOURNE LODGE,12/11/2018,"1,963.60",73500-RESIDENTIAL,PHYSICAL SUPPORT,Third Party Payments,Revenue
Walsall Council,http://opendatacommunities.org/id/metropolitan-district-council/walsall,WC98-406,30/09/2018,Economy & Environment,ASHDOWN SUPPLIES,19/11/2018,270.72,60500-GENERAL MATERIALS,STREETLY CREMATORIUM,Supplies & Services,Revenue
Walsall Council,http://opendatacommunities.org/id/metropolitan-district-council/walsall,WC98-407,30/09/2018,Economy & Environment,ASHDOWN SUPPLIES,21/11/2018,270.72,60500-GENERAL MATERIALS,STREETLY CREMATORIUM,Supplies & Services,Revenue
Walsall Council,http://opendatacommunities.org/id/metropolitan-district-council/walsall,WC98-408,30/09/2018,Adult Social Care,REDACTED,08/11/2018,422.00,73506-DIRECT PAYMENT,LEARNING DISABILITY SUPPORT,Third Party Payments,Revenue
Walsall Council,http://opendatacommunities.org/id/metropolitan-district-council/walsall,WC98-409,30/09/2018,Adult Social Care,REDACTED,08/11/2018,"1,092.00",73506-DIRECT PAYMENT,LEARNING DISABILITY SUPPORT,Third Party Payments,Revenue
Walsall Council,http://opendatacommunities.org/id/metropolitan-district-council/walsall,WC98-410,30/09/2018,Economy & Environment,ASKEWS AND HOLTS LIBRARY SERVICES LTD,01/11/2018,250.07,60501-LIBRARY BOOKS,LIBRARY STOCK AND PERFORMANCE,Supplies & Services,Revenue
Walsall Council,http://opendatacommunities.org/id/metropolitan-district-council/walsall,WC98-411,30/09/2018,Economy & Environment,ASKEWS AND HOLTS LIBRARY SERVICES LTD,01/11/2018,265.85,60501-LIBRARY BOOKS,LIBRARY STOCK AND PERFORMANCE,Supplies & Services,Revenue
Walsall Council,http://opendatacommunities.org/id/metropolitan-district-council/walsall,WC98-412,30/09/2018,Economy & Environment,ASKEWS AND HOLTS LIBRARY SERVICES LTD,01/11/2018,280.05,60501-LIBRARY BOOKS,LIBRARY STOCK AND PERFORMANCE,Supplies & Services,Revenue
Walsall Council,http://opendatacommunities.org/id/metropolitan-district-council/walsall,WC98-413,30/09/2018,Economy & Environment,ASKEWS AND HOLTS LIBRARY SERVICES LTD,01/11/2018,288.20,60501-LIBRARY BOOKS,LIBRARY STOCK AND PERFORMANCE,Supplies & Services,Revenue
Walsall Council,http://opendatacommunities.org/id/metropolitan-district-council/walsall,WC98-414,30/09/2018,Economy & Environment,ASKEWS AND HOLTS LIBRARY SERVICES LTD,01/11/2018,290.04,60501-LIBRARY BOOKS,LIBRARY STOCK AND PERFORMANCE,Supplies & Services,Revenue
Walsall Council,http://opendatacommunities.org/id/metropolitan-district-council/walsall,WC98-415,30/09/2018,Economy & Environment,ASKEWS AND HOLTS LIBRARY SERVICES LTD,01/11/2018,297.45,60501-LIBRARY BOOKS,LIBRARY STOCK AND PERFORMANCE,Supplies & Services,Revenue
Walsall Council,http://opendatacommunities.org/id/metropolitan-district-council/walsall,WC98-416,30/09/2018,Economy & Environment,ASKEWS AND HOLTS LIBRARY SERVICES LTD,01/11/2018,298.99,60501-LIBRARY BOOKS,LIBRARY STOCK AND PERFORMANCE,Supplies & Services,Revenue
Walsall Council,http://opendatacommunities.org/id/metropolitan-district-council/walsall,WC98-417,30/09/2018,Economy & Environment,ASKEWS AND HOLTS LIBRARY SERVICES LTD,01/11/2018,304.62,60501-LIBRARY BOOKS,LIBRARY STOCK AND PERFORMANCE,Supplies & Services,Revenue
Walsall Council,http://opendatacommunities.org/id/metropolitan-district-council/walsall,WC98-418,30/09/2018,Economy & Environment,ASKEWS AND HOLTS LIBRARY SERVICES LTD,23/11/2018,325.00,60501-LIBRARY BOOKS,LIBRARY STOCK AND PERFORMANCE,Supplies & Services,Revenue
Walsall Council,http://opendatacommunities.org/id/metropolitan-district-council/walsall,WC98-419,30/09/2018,Economy & Environment,ASKEWS AND HOLTS LIBRARY SERVICES LTD,23/11/2018,369.80,60501-LIBRARY BOOKS,LIBRARY STOCK AND PERFORMANCE,Supplies & Services,Revenue
Walsall Council,http://opendatacommunities.org/id/metropolitan-district-council/walsall,WC98-420,30/09/2018,Economy & Environment,ASKEWS AND HOLTS LIBRARY SERVICES LTD,01/11/2018,410.22,60501-LIBRARY BOOKS,LIBRARY STOCK AND PERFORMANCE,Supplies & Services,Revenue
Walsall Council,http://opendatacommunities.org/id/metropolitan-district-council/walsall,WC98-421,30/09/2018,Economy & Environment,ASKEWS AND HOLTS LIBRARY SERVICES LTD,23/11/2018,424.61,60501-LIBRARY BOOKS,LIBRARY STOCK AND PERFORMANCE,Supplies & Services,Revenue
Walsall Council,http://opendatacommunities.org/id/metropolitan-district-council/walsall,WC98-422,30/09/2018,Economy & Environment,ASKEWS AND HOLTS LIBRARY SERVICES LTD,01/11/2018,432.40,60501-LIBRARY BOOKS,LIBRARY STOCK AND PERFORMANCE,Supplies & Services,Revenue
Walsall Council,http://opendatacommunities.org/id/metropolitan-district-council/walsall,WC98-423,30/09/2018,Economy & Environment,ASKEWS AND HOLTS LIBRARY SERVICES LTD,01/11/2018,491.94,60501-LIBRARY BOOKS,LIBRARY STOCK AND PERFORMANCE,Supplies & Services,Revenue
Walsall Council,http://opendatacommunities.org/id/metropolitan-district-council/walsall,WC98-424,30/09/2018,Economy & Environment,ASKEWS AND HOLTS LIBRARY SERVICES LTD,23/11/2018,507.17,60501-LIBRARY BOOKS,LIBRARY STOCK AND PERFORMANCE,Supplies & Services,Revenue
Walsall Council,http://opendatacommunities.org/id/metropolitan-district-council/walsall,WC98-425,30/09/2018,Economy & Environment,ASKEWS AND HOLTS LIBRARY SERVICES LTD,01/11/2018,531.13,60501-LIBRARY BOOKS,LIBRARY STOCK AND PERFORMANCE,Supplies & Services,Revenue
Walsall Council,http://opendatacommunities.org/id/metropolitan-district-council/walsall,WC98-426,30/09/2018,Economy & Environment,ASKEWS AND HOLTS LIBRARY SERVICES LTD,01/11/2018,537.53,60501-LIBRARY BOOKS,LIBRARY STOCK AND PERFORMANCE,Supplies & Services,Revenue
Walsall Council,http://opendatacommunities.org/id/metropolitan-district-council/walsall,WC98-427,30/09/2018,Economy & Environment,ASKEWS AND HOLTS LIBRARY SERVICES LTD,01/11/2018,590.24,60501-LIBRARY BOOKS,LIBRARY STOCK AND PERFORMANCE,Supplies & Services,Revenue
Walsall Council,http://opendatacommunities.org/id/metropolitan-district-council/walsall,WC98-428,30/09/2018,Economy & Environment,ASKEWS AND HOLTS LIBRARY SERVICES LTD,23/11/2018,641.82,60501-LIBRARY BOOKS,LIBRARY STOCK AND PERFORMANCE,Supplies & Services,Revenue
Walsall Council,http://opendatacommunities.org/id/metropolitan-district-council/walsall,WC98-429,30/09/2018,Economy & Environment,ASKEWS AND HOLTS LIBRARY SERVICES LTD,23/11/2018,641.84,60501-LIBRARY BOOKS,LIBRARY STOCK AND PERFORMANCE,Supplies & Services,Revenue
Walsall Council,http://opendatacommunities.org/id/metropolitan-district-council/walsall,WC98-430,30/09/2018,Economy & Environment,ASKEWS AND HOLTS LIBRARY SERVICES LTD,23/11/2018,652.48,60501-LIBRARY BOOKS,LIBRARY STOCK AND PERFORMANCE,Supplies & Services,Revenue
Walsall Council,http://opendatacommunities.org/id/metropolitan-district-council/walsall,WC98-431,30/09/2018,Economy & Environment,ASKEWS AND HOLTS LIBRARY SERVICES LTD,23/11/2018,662.15,60501-LIBRARY BOOKS,LIBRARY STOCK AND PERFORMANCE,Supplies & Services,Revenue
Walsall Council,http://opendatacommunities.org/id/metropolitan-district-council/walsall,WC98-432,30/09/2018,Economy & Environment,ASKEWS AND HOLTS LIBRARY SERVICES LTD,01/11/2018,916.87,60501-LIBRARY BOOKS,LIBRARY STOCK AND PERFORMANCE,Supplies & Services,Revenue
Walsall Council,http://opendatacommunities.org/id/metropolitan-district-council/walsall,WC98-433,30/09/2018,Economy & Environment,ASKEWS AND HOLTS LIBRARY SERVICES LTD,01/11/2018,944.09,60501-LIBRARY BOOKS,LIBRARY STOCK AND PERFORMANCE,Supplies & Services,Revenue
Walsall Council,http://opendatacommunities.org/id/metropolitan-district-council/walsall,WC98-434,30/09/2018,Economy & Environment,ASKEWS AND HOLTS LIBRARY SERVICES LTD,01/11/2018,970.88,60501-LIBRARY BOOKS,LIBRARY STOCK AND PERFORMANCE,Supplies & Services,Revenue
Walsall Council,http://opendatacommunities.org/id/metropolitan-district-council/walsall,WC98-435,30/09/2018,Economy & Environment,ASKEWS AND HOLTS LIBRARY SERVICES LTD,01/11/2018,975.39,60501-LIBRARY BOOKS,LIBRARY STOCK AND PERFORMANCE,Supplies & Services,Revenue
Walsall Council,http://opendatacommunities.org/id/metropolitan-district-council/walsall,WC98-436,30/09/2018,Economy & Environment,ASKEWS AND HOLTS LIBRARY SERVICES LTD,01/11/2018,977.45,60501-LIBRARY BOOKS,LIBRARY STOCK AND PERFORMANCE,Supplies & Services,Revenue
Walsall Council,http://opendatacommunities.org/id/metropolitan-district-council/walsall,WC98-437,30/09/2018,Economy & Environment,ASKEWS AND HOLTS LIBRARY SERVICES LTD,01/11/2018,978.23,60501-LIBRARY BOOKS,LIBRARY STOCK AND PERFORMANCE,Supplies & Services,Revenue
Walsall Council,http://opendatacommunities.org/id/metropolitan-district-council/walsall,WC98-438,30/09/2018,Economy & Environment,ASKEWS AND HOLTS LIBRARY SERVICES LTD,01/11/2018,978.56,60501-LIBRARY BOOKS,LIBRARY STOCK AND PERFORMANCE,Supplies & Services,Revenue
Walsall Council,http://opendatacommunities.org/id/metropolitan-district-council/walsall,WC98-439,30/09/2018,Economy & Environment,ASKEWS AND HOLTS LIBRARY SERVICES LTD,01/11/2018,980.95,60501-LIBRARY BOOKS,LIBRARY STOCK AND PERFORMANCE,Supplies & Services,Revenue
Walsall Council,http://opendatacommunities.org/id/metropolitan-district-council/walsall,WC98-440,30/09/2018,Economy & Environment,ASKEWS AND HOLTS LIBRARY SERVICES LTD,01/11/2018,983.66,60501-LIBRARY BOOKS,LIBRARY STOCK AND PERFORMANCE,Supplies & Services,Revenue
Walsall Council,http://opendatacommunities.org/id/metropolitan-district-council/walsall,WC98-441,30/09/2018,Economy & Environment,ASKEWS AND HOLTS LIBRARY SERVICES LTD,01/11/2018,986.84,60501-LIBRARY BOOKS,LIBRARY STOCK AND PERFORMANCE,Supplies & Services,Revenue
Walsall Council,http://opendatacommunities.org/id/metropolitan-district-council/walsall,WC98-442,30/09/2018,Economy & Environment,ASKEWS AND HOLTS LIBRARY SERVICES LTD,01/11/2018,"1,018.33",60501-LIBRARY BOOKS,LIBRARY STOCK AND PERFORMANCE,Supplies & Services,Revenue
Walsall Council,http://opendatacommunities.org/id/metropolitan-district-council/walsall,WC98-443,30/09/2018,Economy & Environment,ASKEWS AND HOLTS LIBRARY SERVICES LTD,01/11/2018,"1,018.36",60501-LIBRARY BOOKS,LIBRARY STOCK AND PERFORMANCE,Supplies & Services,Revenue
Walsall Council,http://opendatacommunities.org/id/metropolitan-district-council/walsall,WC98-444,30/09/2018,Economy & Environment,ASKEWS AND HOLTS LIBRARY SERVICES LTD,01/11/2018,"1,019.77",60501-LIBRARY BOOKS,LIBRARY STOCK AND PERFORMANCE,Supplies & Services,Revenue
Walsall Council,http://opendatacommunities.org/id/metropolitan-district-council/walsall,WC98-445,30/09/2018,Economy & Environment,ASKEWS AND HOLTS LIBRARY SERVICES LTD,01/11/2018,"1,021.62",60501-LIBRARY BOOKS,LIBRARY STOCK AND PERFORMANCE,Supplies & Services,Revenue
Walsall Council,http://opendatacommunities.org/id/metropolitan-district-council/walsall,WC98-446,30/09/2018,Economy & Environment,ASKEWS AND HOLTS LIBRARY SERVICES LTD,01/11/2018,"1,023.23",60501-LIBRARY BOOKS,LIBRARY STOCK AND PERFORMANCE,Supplies & Services,Revenue
Walsall Council,http://opendatacommunities.org/id/metropolitan-district-council/walsall,WC98-447,30/09/2018,Economy & Environment,ASKEWS AND HOLTS LIBRARY SERVICES LTD,01/11/2018,"1,040.84",60501-LIBRARY BOOKS,LIBRARY STOCK AND PERFORMANCE,Supplies & Services,Revenue
Walsall Council,http://opendatacommunities.org/id/metropolitan-district-council/walsall,WC98-448,30/09/2018,Adult Social Care,REDACTED,08/11/2018,856.80,73506-DIRECT PAYMENT,PHYSICAL SUPPORT,Third Party Payments,Revenue
Walsall Council,http://opendatacommunities.org/id/metropolitan-district-council/walsall,WC98-449,30/09/2018,Childrens,ASPIRE RESIDENTIAL CARE HOME,02/11/2018,-553.56,74036-EXTERNAL RESIDENTIAL CARE-OTH AGENCY PROVISION,INDEPENDENT RESIDENTIAL HOMES,Third Party Payments,Revenue
Walsall Council,http://opendatacommunities.org/id/metropolitan-district-council/walsall,WC98-450,30/09/2018,Childrens,ASPIRE RESIDENTIAL CARE HOME,29/11/2018,553.58,74036-EXTERNAL RESIDENTIAL CARE-OTH AGENCY PROVISION,INDEPENDENT RESIDENTIAL HOMES,Third Party Payments,Revenue
Walsall Council,http://opendatacommunities.org/id/metropolitan-district-council/walsall,WC98-451,30/09/2018,Childrens,ASPIRE RESIDENTIAL CARE HOME,29/11/2018,"4,185.42",74036-EXTERNAL RESIDENTIAL CARE-OTH AGENCY PROVISION,INDEPENDENT RESIDENTIAL HOMES,Third Party Payments,Revenue
Walsall Council,http://opendatacommunities.org/id/metropolitan-district-council/walsall,WC98-452,30/09/2018,Childrens,ASPIRE RESIDENTIAL CARE HOME,02/11/2018,"21,492.48",74036-EXTERNAL RESIDENTIAL CARE-OTH AGENCY PROVISION,INDEPENDENT RESIDENTIAL HOMES,Third Party Payments,Revenue
Walsall Council,http://opendatacommunities.org/id/metropolitan-district-council/walsall,WC98-453,30/09/2018,Adult Social Care,ASSURED HEALTHCARE SOLUTIONS (PARK FARM LODGE),12/11/2018,"1,948.32",73500-RESIDENTIAL,PHYSICAL SUPPORT,Third Party Payments,Revenue
Walsall Council,http://opendatacommunities.org/id/metropolitan-district-council/walsall,WC98-454,30/09/2018,Resources and Transformation,ASTUN TECHNOLOGY LIMITED,07/11/2018,"11,325.00",63820-RECHARGE FOR MAINTENANCE/APPLICATION COSTS-COMPUTER,APPLICATIONS,Supplies & Services,Revenue
Walsall Council,http://opendatacommunities.org/id/metropolitan-district-council/walsall,WC98-455,30/09/2018,Economy & Environment,ATHWAL NEWS LTD,14/11/2018,359.61,60501-LIBRARY BOOKS,LIBRARY STOCK AND PERFORMANCE,Supplies & Services,Revenue
Walsall Council,http://opendatacommunities.org/id/metropolitan-district-council/walsall,WC98-456,30/09/2018,Economy & Environment,ATKINS LIMITED,19/11/2018,"13,508.11",01003-ENGINEERS ASSISTANTS TIME - DESIGN,CFR 819 LTP-YORKS BRIDGE,Capital,Capital
Walsall Council,http://opendatacommunities.org/id/metropolitan-district-council/walsall,WC98-457,30/09/2018,Resources and Transformation,AURORA GRAPHICS & DISPLAYS LTD,06/11/2018,954.78,62008-OUTWORK-PRINT ROOM,PRINTING SERVICES,Supplies & Services,Revenue
Walsall Council,http://opendatacommunities.org/id/metropolitan-district-council/walsall,WC98-458,30/09/2018,Adult Social Care,AUTISM WEST MIDLANDS,12/11/2018,"7,101.48",73500-RESIDENTIAL,LEARNING DISABILITY SUPPORT,Third Party Payments,Revenue
Walsall Council,http://opendatacommunities.org/id/metropolitan-district-council/walsall,WC98-459,30/09/2018,Adult Social Care,AUTISM WEST MIDLANDS 001,12/11/2018,"4,746.96",73500-RESIDENTIAL,LEARNING DISABILITY SUPPORT,Third Party Payments,Revenue
Walsall Council,http://opendatacommunities.org/id/metropolitan-district-council/walsall,WC98-460,30/09/2018,Adult Social Care,REDACTED,08/11/2018,989.04,73506-DIRECT PAYMENT,SUPPORT WITH MEMORY & COGNITION,Third Party Payments,Revenue
Walsall Council,http://opendatacommunities.org/id/metropolitan-district-council/walsall,WC98-461,30/09/2018,Economy & Environment,AXIELL LIMITED,09/11/2018,342.22,63000-PROFESSIONAL FEES AND SERVICES,LIBRARY STOCK AND PERFORMANCE,Supplies & Services,Revenue
Walsall Council,http://opendatacommunities.org/id/metropolitan-district-council/walsall,WC98-462,30/09/2018,Adult Social Care,REDACTED,08/11/2018,"3,182.40",73506-DIRECT PAYMENT,LEARNING DISABILITY SUPPORT,Third Party Payments,Revenue
Walsall Council,http://opendatacommunities.org/id/metropolitan-district-council/walsall,WC98-463,30/09/2018,Childrens,REDACTED,07/11/2018,464.00,76000-TRANSFER PAYMENTS - SOCIAL SERVICES CLIENTS,TRANSITION AND LEAVING CARE PLACEMENTS,Transfer Payments,Revenue
Walsall Council,http://opendatacommunities.org/id/metropolitan-district-council/walsall,WC98-464,30/09/2018,Childrens,REDACTED,07/11/2018,464.00,76000-TRANSFER PAYMENTS - SOCIAL SERVICES CLIENTS,TRANSITION AND LEAVING CARE PLACEMENTS,Transfer Payments,Revenue
Walsall Council,http://opendatacommunities.org/id/metropolitan-district-council/walsall,WC98-465,30/09/2018,Childrens,REDACTED,21/11/2018,464.00,76000-TRANSFER PAYMENTS - SOCIAL SERVICES CLIENTS,TRANSITION AND LEAVING CARE PLACEMENTS,Transfer Payments,Revenue
Walsall Council,http://opendatacommunities.org/id/metropolitan-district-council/walsall,WC98-466,30/09/2018,Childrens,REDACTED,21/11/2018,464.00,76000-TRANSFER PAYMENTS - SOCIAL SERVICES CLIENTS,TRANSITION AND LEAVING CARE PLACEMENTS,Transfer Payments,Revenue
Walsall Council,http://opendatacommunities.org/id/metropolitan-district-council/walsall,WC98-467,30/09/2018,Resources and Transformation,BAILY GARNER LLP,21/11/2018,"5,040.00","40000-REPAIRS,ALTERATIONS & MAINTENANCE-PREM",RECHARGEABLE - NON SCHOOLS MAINTENANCE,Premises,Revenue
Walsall Council,http://opendatacommunities.org/id/metropolitan-district-council/walsall,WC98-468,30/09/2018,Economy & Environment,BAKER HALL PARTNERSHIP,19/11/2018,877.75,63000-PROFESSIONAL FEES AND SERVICES,BUILDING CONTROL REVENUE FUNDED,Supplies & Services,Revenue
Walsall Council,http://opendatacommunities.org/id/metropolitan-district-council/walsall,WC98-469,30/09/2018,Resources and Transformation,REDACTED,15/11/2018,"17,320.88",01045-PRIVATE GRANTS,CFR 826 DISABLED FACILITIES GRANTS (SOCIAL SERVICES),Capital,Capital
Walsall Council,http://opendatacommunities.org/id/metropolitan-district-council/walsall,WC98-470,30/09/2018,Adult Social Care,REDACTED,08/11/2018,"3,328.80",73506-DIRECT PAYMENT,LEARNING DISABILITY SUPPORT,Third Party Payments,Revenue
Walsall Council,http://opendatacommunities.org/id/metropolitan-district-council/walsall,WC98-471,30/09/2018,Childrens,BALLOON DREAMS,14/11/2018,331.50,62523-EVENTS,VIRTUAL SCHOOL CENTRAL PUPIL PREMIUM,Supplies & Services,Revenue
Walsall Council,http://opendatacommunities.org/id/metropolitan-district-council/walsall,WC98-472,30/09/2018,Adult Social Care,REDACTED,08/11/2018,"1,582.88",73506-DIRECT PAYMENT,PHYSICAL SUPPORT,Third Party Payments,Revenue
Walsall Council,http://opendatacommunities.org/id/metropolitan-district-council/walsall,WC98-473,30/09/2018,Childrens,REDACTED,16/11/2018,340.00,74508-INTERNAL FOSTER CARERS-CARER FEES,FAMILY & FRIENDS FOSTER CARE PROVISION,Transfer Payments,Revenue
Walsall Council,http://opendatacommunities.org/id/metropolitan-district-council/walsall,WC98-474,30/09/2018,Childrens,REDACTED,16/11/2018,370.00,74504-HOLIDAY/CHRISTMAS ALLOWANCE-FOSTER CARERS,FAMILY & FRIENDS FOSTER CARE PROVISION,Transfer Payments,Revenue
Walsall Council,http://opendatacommunities.org/id/metropolitan-district-council/walsall,WC98-475,30/09/2018,Childrens,REDACTED,16/11/2018,540.00,74501-MAINTENANCE ALLOWANCE-FOSTER CARERS,FAMILY & FRIENDS FOSTER CARE PROVISION,Transfer Payments,Revenue
Walsall Council,http://opendatacommunities.org/id/metropolitan-district-council/walsall,WC98-476,30/09/2018,Adult Social Care,REDACTED,08/11/2018,814.92,73506-DIRECT PAYMENT,SUPPORT WITH MEMORY & COGNITION,Third Party Payments,Revenue
Walsall Council,http://opendatacommunities.org/id/metropolitan-district-council/walsall,WC98-477,30/09/2018,Economy & Environment,BARCHAM TREES PLC,16/11/2018,550.80,60500-GENERAL MATERIALS,CENTRAL SERVICES ALLOTMENTS,Supplies & Services,Revenue
Walsall Council,http://opendatacommunities.org/id/metropolitan-district-council/walsall,WC98-478,30/09/2018,Economy & Environment,BARCHAM TREES PLC,16/11/2018,"3,797.00",60500-GENERAL MATERIALS,SECTION 106,Supplies & Services,Revenue
Walsall Council,http://opendatacommunities.org/id/metropolitan-district-council/walsall,WC98-479,30/09/2018,Economy & Environment,BARHALE PLC,01/11/2018,225.00,30030-EXTERNAL TRAINING,ENGINEERING MANAGEMENT,Employees,Revenue
Walsall Council,http://opendatacommunities.org/id/metropolitan-district-council/walsall,WC98-480,30/09/2018,Childrens,BARNARDOS SERVICES LTD,02/11/2018,"3,116.40",74037-INDEPENDENT FOSTER CARE-OTH AGENCY PROVISION,EXTERNAL FOSTER CARE PROVISION,Third Party Payments,Revenue
Walsall Council,http://opendatacommunities.org/id/metropolitan-district-council/walsall,WC98-481,30/09/2018,Childrens,BARNARDOS SERVICES LTD,29/11/2018,"3,116.40",74037-INDEPENDENT FOSTER CARE-OTH AGENCY PROVISION,EXTERNAL FOSTER CARE PROVISION,Third Party Payments,Revenue
Walsall Council,http://opendatacommunities.org/id/metropolitan-district-council/walsall,WC98-482,30/09/2018,Resources and Transformation,BARNBOROUGH LTD,14/11/2018,"-3,000.00",60006-NEW-FURNITURE & EQUIPMENT,CA KINGSHILL SCHOOL,Supplies & Services,Revenue
Walsall Council,http://opendatacommunities.org/id/metropolitan-district-council/walsall,WC98-483,30/09/2018,Resources and Transformation,BARNBOROUGH LTD,14/11/2018,"-2,685.00",60006-NEW-FURNITURE & EQUIPMENT,CA KINGSHILL SCHOOL,Supplies & Services,Revenue
Walsall Council,http://opendatacommunities.org/id/metropolitan-district-council/walsall,WC98-484,30/09/2018,Resources and Transformation,BARNBOROUGH LTD,06/11/2018,640.20,60007-REPAIR OF EQUIPMENT-EQUIPMENT,CL STOCK,Supplies & Services,Revenue
Walsall Council,http://opendatacommunities.org/id/metropolitan-district-council/walsall,WC98-485,30/09/2018,Resources and Transformation,BARNBOROUGH LTD,14/11/2018,"3,000.00",60006-NEW-FURNITURE & EQUIPMENT,CA KINGSHILL SCHOOL,Supplies & Services,Revenue
Walsall Council,http://opendatacommunities.org/id/metropolitan-district-council/walsall,WC98-486,30/09/2018,Centrally Held,BARNSLEY M B C,23/11/2018,"3,000.00",64500-PUBLICATIONS/ORGANISATIONS-SUBSCRIPTIONS,CORPORATE EXPENSES,Supplies & Services,Revenue
Walsall Council,http://opendatacommunities.org/id/metropolitan-district-council/walsall,WC98-487,30/09/2018,Childrens,BARR BEACON SCHOOL TRUST,23/11/2018,900.00,77300-ISB-FORMULA ALLOCATION,BARR BEACON SCHOOL TRUST (ACADEMY),Transfer Payments,Revenue
Walsall Council,http://opendatacommunities.org/id/metropolitan-district-council/walsall,WC98-488,30/09/2018,Childrens,BARR BEACON SCHOOL TRUST,30/11/2018,"2,129.10",66502-TOP UP FUNDING -GRANTS TO SCHOOLS,BARR BEACON SCHOOL TRUST (ACADEMY),Third Party Payments,Revenue
Walsall Council,http://opendatacommunities.org/id/metropolitan-district-council/walsall,WC98-489,30/09/2018,Adult Social Care,BARTHOLAMEW LODGE CARE HOME,07/11/2018,"1,186.58",73373-RESIDENTIAL & NURSING CARE PLACEMENTS,OP PACKAGE/PLACEMENT COSTS,Third Party Payments,Revenue
Walsall Council,http://opendatacommunities.org/id/metropolitan-district-council/walsall,WC98-490,30/09/2018,Adult Social Care,BARTHOLAMEW LODGE CARE HOME,07/11/2018,"2,076.52",73373-RESIDENTIAL & NURSING CARE PLACEMENTS,OP PACKAGE/PLACEMENT COSTS,Third Party Payments,Revenue
Walsall Council,http://opendatacommunities.org/id/metropolitan-district-council/walsall,WC98-491,30/09/2018,Adult Social Care,BARTHOLAMEW LODGE CARE HOME,07/11/2018,"2,076.52",73373-RESIDENTIAL & NURSING CARE PLACEMENTS,OP PACKAGE/PLACEMENT COSTS,Third Party Payments,Revenue
Walsall Council,http://opendatacommunities.org/id/metropolitan-district-council/walsall,WC98-492,30/09/2018,Adult Social Care,BARTHOLAMEW LODGE CARE HOME,12/11/2018,"2,823.44",73503-NURSING EMI,PHYSICAL SUPPORT,Third Party Payments,Revenue
Walsall Council,http://opendatacommunities.org/id/metropolitan-district-council/walsall,WC98-493,30/09/2018,Adult Social Care,REDACTED,08/11/2018,490.40,73506-DIRECT PAYMENT,PHYSICAL SUPPORT,Third Party Payments,Revenue
Walsall Council,http://opendatacommunities.org/id/metropolitan-district-council/walsall,WC98-494,30/09/2018,Economy & Environment,BAT FABRICATIONS LTD,16/11/2018,220.00,60500-GENERAL MATERIALS,INFRASTRUCTURE MAINTENANCE,Supplies & Services,Revenue
Walsall Council,http://opendatacommunities.org/id/metropolitan-district-council/walsall,WC98-495,30/09/2018,Economy & Environment,BAT FABRICATIONS LTD,23/11/2018,395.00,60500-GENERAL MATERIALS,ARBORETUM,Supplies & Services,Revenue
Walsall Council,http://opendatacommunities.org/id/metropolitan-district-council/walsall,WC98-496,30/09/2018,Childrens,BAT FABRICATIONS LTD,07/11/2018,400.00,01006-SITE WORKS MAIN CONTRACTORS,CFR 1297 CASTLE BUSINESS & ENTERPRISE COLLEGE EXPANSION,Capital,Capital
Walsall Council,http://opendatacommunities.org/id/metropolitan-district-council/walsall,WC98-497,30/09/2018,Economy & Environment,BAT FABRICATIONS LTD,16/11/2018,425.00,60500-GENERAL MATERIALS,INFRASTRUCTURE MAINTENANCE,Supplies & Services,Revenue
Walsall Council,http://opendatacommunities.org/id/metropolitan-district-council/walsall,WC98-498,30/09/2018,Economy & Environment,BAT FABRICATIONS LTD,16/11/2018,495.00,60500-GENERAL MATERIALS,INFRASTRUCTURE MAINTENANCE,Supplies & Services,Revenue
Walsall Council,http://opendatacommunities.org/id/metropolitan-district-council/walsall,WC98-499,30/09/2018,Childrens,BAT FABRICATIONS LTD,16/11/2018,925.00,01006-SITE WORKS MAIN CONTRACTORS,CFR 1297 JANE LANE SPECIAL SCHOOL EXPANSION,Capital,Capital
Walsall Council,http://opendatacommunities.org/id/metropolitan-district-council/walsall,WC98-500,30/09/2018,Economy & Environment,BAT FABRICATIONS LTD,19/11/2018,"1,400.00","40000-REPAIRS,ALTERATIONS & MAINTENANCE-PREM",RETAINED HOUSING-HIGHWAYS,Premises,Revenue
Walsall Council,http://opendatacommunities.org/id/metropolitan-district-council/walsall,WC98-501,30/09/2018,Childrens,BAT FABRICATIONS LTD,07/11/2018,"1,800.00",01006-SITE WORKS MAIN CONTRACTORS,CFR 1297 OLD HALL SPECIAL SCHOOL EXPANSION,Capital,Capital
Walsall Council,http://opendatacommunities.org/id/metropolitan-district-council/walsall,WC98-502,30/09/2018,Childrens,BAT FABRICATIONS LTD,07/11/2018,"2,500.00",01006-SITE WORKS MAIN CONTRACTORS,CFR 1297 JANE LANE SPECIAL SCHOOL EXPANSION,Capital,Capital
Walsall Council,http://opendatacommunities.org/id/metropolitan-district-council/walsall,WC98-503,30/09/2018,Economy & Environment,BAT FABRICATIONS LTD,16/11/2018,"3,200.00","40000-REPAIRS,ALTERATIONS & MAINTENANCE-PREM",GREEN SPACE MANAGEMENT,Premises,Revenue
Walsall Council,http://opendatacommunities.org/id/metropolitan-district-council/walsall,WC98-504,30/09/2018,Childrens,BAT FABRICATIONS LTD,16/11/2018,"3,280.00",01006-SITE WORKS MAIN CONTRACTORS,CFR 1297 JANE LANE SPECIAL SCHOOL EXPANSION,Capital,Capital
Walsall Council,http://opendatacommunities.org/id/metropolitan-district-council/walsall,WC98-505,30/09/2018,Childrens,BAT FABRICATIONS LTD,07/11/2018,"3,500.00",01006-SITE WORKS MAIN CONTRACTORS,CFR 1297 SHORT HEATH/ROSEDALE/LANE HEAD FED PRIMARY SCHOOL EXPANSION,Capital,Capital
Walsall Council,http://opendatacommunities.org/id/metropolitan-district-council/walsall,WC98-506,30/09/2018,Economy & Environment,BATLEYS,26/11/2018,609.15,61009-BEVERAGES-PROVISIONS,FOREST ARTS CENTRE,Supplies & Services,Revenue
Walsall Council,http://opendatacommunities.org/id/metropolitan-district-council/walsall,WC98-507,30/09/2018,Economy & Environment,BATLEYS,22/11/2018,654.73,61009-BEVERAGES-PROVISIONS,FOREST ARTS CENTRE,Supplies & Services,Revenue
Walsall Council,http://opendatacommunities.org/id/metropolitan-district-council/walsall,WC98-508,30/09/2018,Resources and Transformation,BCB PROMOTIONS,06/11/2018,400.00,62515-MISCELLANEOUS SUPPLIES,WALSALL TOWN HALL,Supplies & Services,Revenue
Walsall Council,http://opendatacommunities.org/id/metropolitan-district-council/walsall,WC98-509,30/09/2018,Childrens,BEADEN POWERLEC LIMITED,19/11/2018,295.00,01006-SITE WORKS MAIN CONTRACTORS,CFR 1297 OLD HALL SPECIAL SCHOOL EXPANSION,Capital,Capital
Walsall Council,http://opendatacommunities.org/id/metropolitan-district-council/walsall,WC98-510,30/09/2018,Economy & Environment,BEADEN POWERLEC LIMITED,22/11/2018,"2,400.00",73025-PROFESSIONAL SERVICES-PRIV CONTRACTOR & OTHER AGENCIES,PARKING SERVICES OFF-STREET,Third Party Payments,Revenue
Walsall Council,http://opendatacommunities.org/id/metropolitan-district-council/walsall,WC98-511,30/09/2018,Childrens,REDACTED,02/11/2018,800.00,74508-INTERNAL FOSTER CARERS-CARER FEES,INTERNAL FOSTER CARE PROVISION,Transfer Payments,Revenue
Walsall Council,http://opendatacommunities.org/id/metropolitan-district-council/walsall,WC98-512,30/09/2018,Adult Social Care,REDACTED,08/11/2018,758.72,73506-DIRECT PAYMENT,PHYSICAL SUPPORT,Third Party Payments,Revenue
Walsall Council,http://opendatacommunities.org/id/metropolitan-district-council/walsall,WC98-513,30/09/2018,Adult Social Care,BELVIDERE COURT,12/11/2018,"2,000.00",73502-NURSING,MENTAL HEALTH SUPPORT,Third Party Payments,Revenue
Walsall Council,http://opendatacommunities.org/id/metropolitan-district-council/walsall,WC98-514,30/09/2018,Adult Social Care,BELVIDERE COURT,12/11/2018,"2,017.76",73502-NURSING,MENTAL HEALTH SUPPORT,Third Party Payments,Revenue
Walsall Council,http://opendatacommunities.org/id/metropolitan-district-council/walsall,WC98-515,30/09/2018,Adult Social Care,BELVIDERE COURT,12/11/2018,"2,200.00",73503-NURSING EMI,PHYSICAL SUPPORT,Third Party Payments,Revenue
Walsall Council,http://opendatacommunities.org/id/metropolitan-district-council/walsall,WC98-516,30/09/2018,Adult Social Care,BELVIDERE COURT,12/11/2018,"2,200.00",73503-NURSING EMI,PHYSICAL SUPPORT,Third Party Payments,Revenue
Walsall Council,http://opendatacommunities.org/id/metropolitan-district-council/walsall,WC98-517,30/09/2018,Adult Social Care,REDACTED,08/11/2018,"2,569.64",73506-DIRECT PAYMENT,LEARNING DISABILITY SUPPORT,Third Party Payments,Revenue
Walsall Council,http://opendatacommunities.org/id/metropolitan-district-council/walsall,WC98-518,30/09/2018,Adult Social Care,BENTLEY COURT PRIORY,12/11/2018,"-1,041.69",73503-NURSING EMI,PHYSICAL SUPPORT,Third Party Payments,Revenue
Walsall Council,http://opendatacommunities.org/id/metropolitan-district-council/walsall,WC98-519,30/09/2018,Adult Social Care,BENTLEY COURT PRIORY,12/11/2018,-900.00,73501-RESIDENTIAL EMI,SUPPORT WITH MEMORY & COGNITION,Third Party Payments,Revenue
Walsall Council,http://opendatacommunities.org/id/metropolitan-district-council/walsall,WC98-520,30/09/2018,Adult Social Care,BENTLEY COURT PRIORY,13/11/2018,505.67,73373-RESIDENTIAL & NURSING CARE PLACEMENTS,OP PACKAGE/PLACEMENT COSTS,Third Party Payments,Revenue
Walsall Council,http://opendatacommunities.org/id/metropolitan-district-council/walsall,WC98-521,30/09/2018,Adult Social Care,BENTLEY COURT PRIORY,09/11/2018,957.86,73025-PROFESSIONAL SERVICES-PRIV CONTRACTOR & OTHER AGENCIES,TRANSITIONAL CARE SUPPORT TEAM,Third Party Payments,Revenue
Walsall Council,http://opendatacommunities.org/id/metropolitan-district-council/walsall,WC98-522,30/09/2018,Adult Social Care,BENTLEY COURT PRIORY,12/11/2018,"1,688.84",73500-RESIDENTIAL,MENTAL HEALTH SUPPORT,Third Party Payments,Revenue
Walsall Council,http://opendatacommunities.org/id/metropolitan-district-council/walsall,WC98-523,30/09/2018,Adult Social Care,BENTLEY COURT PRIORY,13/11/2018,"1,769.85",73373-RESIDENTIAL & NURSING CARE PLACEMENTS,OP PACKAGE/PLACEMENT COSTS,Third Party Payments,Revenue
Walsall Council,http://opendatacommunities.org/id/metropolitan-district-council/walsall,WC98-524,30/09/2018,Adult Social Care,BENTLEY COURT PRIORY,06/11/2018,"1,809.29",73025-PROFESSIONAL SERVICES-PRIV CONTRACTOR & OTHER AGENCIES,TRANSITIONAL CARE SUPPORT TEAM,Third Party Payments,Revenue
Walsall Council,http://opendatacommunities.org/id/metropolitan-district-council/walsall,WC98-525,30/09/2018,Adult Social Care,BENTLEY COURT PRIORY,12/11/2018,"1,905.12",73503-NURSING EMI,MENTAL HEALTH SUPPORT,Third Party Payments,Revenue
Walsall Council,http://opendatacommunities.org/id/metropolitan-district-council/walsall,WC98-526,30/09/2018,Adult Social Care,BENTLEY COURT PRIORY,12/11/2018,"2,039.68",73502-NURSING,PHYSICAL SUPPORT,Third Party Payments,Revenue
Walsall Council,http://opendatacommunities.org/id/metropolitan-district-council/walsall,WC98-527,30/09/2018,Adult Social Care,BENTLEY COURT PRIORY,12/11/2018,"2,243.64",73503-NURSING EMI,PHYSICAL SUPPORT,Third Party Payments,Revenue
Walsall Council,http://opendatacommunities.org/id/metropolitan-district-council/walsall,WC98-528,30/09/2018,Adult Social Care,BENTLEY COURT PRIORY,12/11/2018,"2,243.64",73503-NURSING EMI,SUPPORT WITH MEMORY & COGNITION,Third Party Payments,Revenue
Walsall Council,http://opendatacommunities.org/id/metropolitan-district-council/walsall,WC98-529,30/09/2018,Adult Social Care,BENTLEY COURT PRIORY,12/11/2018,"2,243.64",73503-NURSING EMI,PHYSICAL SUPPORT,Third Party Payments,Revenue
Walsall Council,http://opendatacommunities.org/id/metropolitan-district-council/walsall,WC98-530,30/09/2018,Adult Social Care,BENTLEY COURT PRIORY,12/11/2018,"2,243.64",73503-NURSING EMI,PHYSICAL SUPPORT,Third Party Payments,Revenue
Walsall Council,http://opendatacommunities.org/id/metropolitan-district-council/walsall,WC98-531,30/09/2018,Adult Social Care,BENTLEY COURT PRIORY,12/11/2018,"2,243.64",73503-NURSING EMI,PHYSICAL SUPPORT,Third Party Payments,Revenue
Walsall Council,http://opendatacommunities.org/id/metropolitan-district-council/walsall,WC98-532,30/09/2018,Adult Social Care,BENTLEY COURT PRIORY,12/11/2018,"12,820.80",73503-NURSING EMI,PHYSICAL SUPPORT,Third Party Payments,Revenue
Walsall Council,http://opendatacommunities.org/id/metropolitan-district-council/walsall,WC98-533,30/09/2018,Holding Accounts,BERRYMANS LACE MAWER LLP,28/11/2018,774.50,67001-MISC INSURANCES - PAYMENT OF CLAIMS,PUBLIC LIABILITY,Supplies & Services,Revenue
Walsall Council,http://opendatacommunities.org/id/metropolitan-district-council/walsall,WC98-534,30/09/2018,Holding Accounts,BERRYMANS LACE MAWER LLP,02/11/2018,"1,253.50",67001-MISC INSURANCES - PAYMENT OF CLAIMS,PUBLIC LIABILITY,Supplies & Services,Revenue
Walsall Council,http://opendatacommunities.org/id/metropolitan-district-council/walsall,WC98-535,30/09/2018,Adult Social Care,REDACTED,08/11/2018,"1,082.48",73506-DIRECT PAYMENT,PHYSICAL SUPPORT,Third Party Payments,Revenue
Walsall Council,http://opendatacommunities.org/id/metropolitan-district-council/walsall,WC98-536,30/09/2018,Adult Social Care,REDACTED,08/11/2018,"1,743.20",73506-DIRECT PAYMENT,PHYSICAL SUPPORT,Third Party Payments,Revenue
Walsall Council,http://opendatacommunities.org/id/metropolitan-district-council/walsall,WC98-537,30/09/2018,Childrens,REDACTED,02/11/2018,282.86,74501-MAINTENANCE ALLOWANCE-FOSTER CARERS,INTERNAL FOSTER CARE PROVISION,Transfer Payments,Revenue
Walsall Council,http://opendatacommunities.org/id/metropolitan-district-council/walsall,WC98-538,30/09/2018,Childrens,REDACTED,02/11/2018,392.86,74508-INTERNAL FOSTER CARERS-CARER FEES,INTERNAL FOSTER CARE PROVISION,Transfer Payments,Revenue
Walsall Council,http://opendatacommunities.org/id/metropolitan-district-council/walsall,WC98-539,30/09/2018,Adult Social Care,BESCOT LODGE RESIDENTIAL CARE HOME,12/11/2018,"1,568.21",73500-RESIDENTIAL,PHYSICAL SUPPORT,Third Party Payments,Revenue
Walsall Council,http://opendatacommunities.org/id/metropolitan-district-council/walsall,WC98-540,30/09/2018,Adult Social Care,BESCOT LODGE RESIDENTIAL CARE HOME,12/11/2018,"1,568.21",73500-RESIDENTIAL,LEARNING DISABILITY SUPPORT,Third Party Payments,Revenue
Walsall Council,http://opendatacommunities.org/id/metropolitan-district-council/walsall,WC98-541,30/09/2018,Adult Social Care,BESCOT LODGE RESIDENTIAL CARE HOME,12/11/2018,"1,742.48",73501-RESIDENTIAL EMI,PHYSICAL SUPPORT,Third Party Payments,Revenue
Walsall Council,http://opendatacommunities.org/id/metropolitan-district-council/walsall,WC98-542,30/09/2018,Adult Social Care,BESCOT LODGE RESIDENTIAL CARE HOME,12/11/2018,"1,742.48",73501-RESIDENTIAL EMI,PHYSICAL SUPPORT,Third Party Payments,Revenue
Walsall Council,http://opendatacommunities.org/id/metropolitan-district-council/walsall,WC98-543,30/09/2018,Adult Social Care,BESCOT LODGE RESIDENTIAL CARE HOME,12/11/2018,"1,742.48",73501-RESIDENTIAL EMI,PHYSICAL SUPPORT,Third Party Payments,Revenue
Walsall Council,http://opendatacommunities.org/id/metropolitan-district-council/walsall,WC98-544,30/09/2018,Adult Social Care,BESCOT LODGE RESIDENTIAL CARE HOME,12/11/2018,"1,742.48",73501-RESIDENTIAL EMI,PHYSICAL SUPPORT,Third Party Payments,Revenue
Walsall Council,http://opendatacommunities.org/id/metropolitan-district-council/walsall,WC98-545,30/09/2018,Adult Social Care,BESCOT LODGE RESIDENTIAL CARE HOME,12/11/2018,"1,742.48",73501-RESIDENTIAL EMI,MENTAL HEALTH SUPPORT,Third Party Payments,Revenue
Walsall Council,http://opendatacommunities.org/id/metropolitan-district-council/walsall,WC98-546,30/09/2018,Adult Social Care,BESCOT LODGE RESIDENTIAL CARE HOME,12/11/2018,"1,816.77",73501-RESIDENTIAL EMI,SOCIAL SUPPORT,Third Party Payments,Revenue
Walsall Council,http://opendatacommunities.org/id/metropolitan-district-council/walsall,WC98-547,30/09/2018,Adult Social Care,BESCOT LODGE RESIDENTIAL CARE HOME,12/11/2018,"1,893.99",73501-RESIDENTIAL EMI,PHYSICAL SUPPORT,Third Party Payments,Revenue
Walsall Council,http://opendatacommunities.org/id/metropolitan-district-council/walsall,WC98-548,30/09/2018,Economy & Environment,BESCOT STADIUM SUNDAY MARKET LTD,19/11/2018,"3,250.00",73025-PROFESSIONAL SERVICES-PRIV CONTRACTOR & OTHER AGENCIES,WILLENHALL MARKET,Third Party Payments,Revenue
Walsall Council,http://opendatacommunities.org/id/metropolitan-district-council/walsall,WC98-549,30/09/2018,Adult Social Care,BESS CARE LIMITED,05/11/2018,688.45,73372-DOMICILIARY CARE,OP PACKAGE/PLACEMENT COSTS,Third Party Payments,Revenue
Walsall Council,http://opendatacommunities.org/id/metropolitan-district-council/walsall,WC98-550,30/09/2018,Economy & Environment,BETHEL UNITED CHURCH,28/11/2018,"1,670.00",63253-PAYMENT TO CONTRACTOR,MENTAL HEALTH,Third Party Payments,Revenue
Walsall Council,http://opendatacommunities.org/id/metropolitan-district-council/walsall,WC98-551,30/09/2018,Adult Social Care,BETHPHAGE.,05/11/2018,"1,026.00",73372-DOMICILIARY CARE,LD PACKAGE/PLACEMENT COSTS,Third Party Payments,Revenue
Walsall Council,http://opendatacommunities.org/id/metropolitan-district-council/walsall,WC98-552,30/09/2018,Adult Social Care,BETHPHAGE.,06/11/2018,"1,282.50",73372-DOMICILIARY CARE,LD PACKAGE/PLACEMENT COSTS,Third Party Payments,Revenue
Walsall Council,http://opendatacommunities.org/id/metropolitan-district-council/walsall,WC98-553,30/09/2018,Adult Social Care,BETHPHAGE.,01/11/2018,"1,638.75",73372-DOMICILIARY CARE,LD PACKAGE/PLACEMENT COSTS,Third Party Payments,Revenue
Walsall Council,http://opendatacommunities.org/id/metropolitan-district-council/walsall,WC98-554,30/09/2018,Adult Social Care,BETHPHAGE.,05/11/2018,"3,366.55",73372-DOMICILIARY CARE,LD PACKAGE/PLACEMENT COSTS,Third Party Payments,Revenue
Walsall Council,http://opendatacommunities.org/id/metropolitan-district-council/walsall,WC98-555,30/09/2018,Adult Social Care,REDACTED,08/11/2018,949.52,73506-DIRECT PAYMENT,PHYSICAL SUPPORT,Third Party Payments,Revenue
Walsall Council,http://opendatacommunities.org/id/metropolitan-district-council/walsall,WC98-556,30/09/2018,Adult Social Care,REDACTED,08/11/2018,"2,767.84",73506-DIRECT PAYMENT,PHYSICAL SUPPORT,Third Party Payments,Revenue
Walsall Council,http://opendatacommunities.org/id/metropolitan-district-council/walsall,WC98-557,30/09/2018,Resources and Transformation,BFA SAFETY TRAINING,06/11/2018,325.00,30030-EXTERNAL TRAINING,HEALTH & SAFETY,Employees,Revenue
Walsall Council,http://opendatacommunities.org/id/metropolitan-district-council/walsall,WC98-558,30/09/2018,Resources and Transformation,BFA SAFETY TRAINING,06/11/2018,525.00,30030-EXTERNAL TRAINING,HEALTH & SAFETY,Employees,Revenue
Walsall Council,http://opendatacommunities.org/id/metropolitan-district-council/walsall,WC98-559,30/09/2018,Economy & Environment,BIFFA WASTE SERVICES LTD,05/11/2018,186.00,73029-HAZARDOUS WASTE REMOVAL/DISPOSAL-PRIV CONTRACTOR FEES,WASTE DISPOSAL - RESIDUAL,Third Party Payments,Revenue
Walsall Council,http://opendatacommunities.org/id/metropolitan-district-council/walsall,WC98-560,30/09/2018,Economy & Environment,BIFFA WASTE SERVICES LTD,05/11/2018,286.42,73039-LANDFILL TAX-PRIV CONTRACTOR FEES,WASTE DISPOSAL - RESIDUAL,Third Party Payments,Revenue
Walsall Council,http://opendatacommunities.org/id/metropolitan-district-council/walsall,WC98-561,30/09/2018,Childrens,REDACTED,05/11/2018,517.92,73506-DIRECT PAYMENT,FAMILY SUPPORT - DIRECT PAYMENTS,Third Party Payments,Revenue
Walsall Council,http://opendatacommunities.org/id/metropolitan-district-council/walsall,WC98-562,30/09/2018,Economy & Environment,BIOGAS TECHNOLOGY LIMITED,16/11/2018,273.44,60008-MAINTENANCE-FURNITURE & EQUIPMENT,POLLUTION DIVISION,Supplies & Services,Revenue
Walsall Council,http://opendatacommunities.org/id/metropolitan-district-council/walsall,WC98-563,30/09/2018,Economy & Environment,BIOGAS TECHNOLOGY LIMITED,22/11/2018,382.35,"40000-REPAIRS,ALTERATIONS & MAINTENANCE-PREM",POLLUTION DIVISION,Premises,Revenue
Walsall Council,http://opendatacommunities.org/id/metropolitan-district-council/walsall,WC98-564,30/09/2018,Childrens,BIRCHILLS C OF E COMMUNITY ACADEMY,01/11/2018,572.00,77300-ISB-FORMULA ALLOCATION,BIRCHILLS CE COMMUNITY ACADEMY,Transfer Payments,Revenue
Walsall Council,http://opendatacommunities.org/id/metropolitan-district-council/walsall,WC98-565,30/09/2018,Childrens,BIRCHILLS C OF E COMMUNITY ACADEMY,23/11/2018,572.00,77300-ISB-FORMULA ALLOCATION,BIRCHILLS CE COMMUNITY ACADEMY,Transfer Payments,Revenue
Walsall Council,http://opendatacommunities.org/id/metropolitan-district-council/walsall,WC98-566,30/09/2018,Childrens,BIRMINGHAM CITY COUNCIL,02/11/2018,"1,956.16",74037-INDEPENDENT FOSTER CARE-OTH AGENCY PROVISION,EXTERNAL FOSTER CARE PROVISION,Third Party Payments,Revenue
Walsall Council,http://opendatacommunities.org/id/metropolitan-district-council/walsall,WC98-567,30/09/2018,Childrens,BIRMINGHAM CITY COUNCIL,29/11/2018,"1,956.16",74037-INDEPENDENT FOSTER CARE-OTH AGENCY PROVISION,EXTERNAL FOSTER CARE PROVISION,Third Party Payments,Revenue
Walsall Council,http://opendatacommunities.org/id/metropolitan-district-council/walsall,WC98-568,30/09/2018,Childrens,BIRMINGHAM CITY COUNCIL,20/11/2018,"5,791.28",66502-TOP UP FUNDING -GRANTS TO SCHOOLS,MAINTAINED PROVIDERS,Third Party Payments,Revenue
Walsall Council,http://opendatacommunities.org/id/metropolitan-district-council/walsall,WC98-569,30/09/2018,Childrens,BIRMINGHAM CITY COUNCIL,20/11/2018,"5,791.28",66502-TOP UP FUNDING -GRANTS TO SCHOOLS,MAINTAINED PROVIDERS,Third Party Payments,Revenue
Walsall Council,http://opendatacommunities.org/id/metropolitan-district-council/walsall,WC98-570,30/09/2018,Childrens,BIRMINGHAM CITY COUNCIL,20/11/2018,"5,791.28",66502-TOP UP FUNDING -GRANTS TO SCHOOLS,MAINTAINED PROVIDERS,Third Party Payments,Revenue
Walsall Council,http://opendatacommunities.org/id/metropolitan-district-council/walsall,WC98-571,30/09/2018,Childrens,BIRMINGHAM CITY COUNCIL,20/11/2018,"5,791.28",66502-TOP UP FUNDING -GRANTS TO SCHOOLS,MAINTAINED PROVIDERS,Third Party Payments,Revenue
Walsall Council,http://opendatacommunities.org/id/metropolitan-district-council/walsall,WC98-572,30/09/2018,Childrens,BIRMINGHAM CITY COUNCIL,20/11/2018,"5,791.28",66502-TOP UP FUNDING -GRANTS TO SCHOOLS,MAINTAINED PROVIDERS,Third Party Payments,Revenue
Walsall Council,http://opendatacommunities.org/id/metropolitan-district-council/walsall,WC98-573,30/09/2018,Economy & Environment,BLACK COUNTRY TRAINING LTD T/A BRITISH HGV TRAINING GROUP,16/11/2018,"1,279.00",30030-EXTERNAL TRAINING,FLEET,Employees,Revenue
Walsall Council,http://opendatacommunities.org/id/metropolitan-district-council/walsall,WC98-574,30/09/2018,Childrens,BLACK COUNTRY WOMENS AID,23/11/2018,"6,250.00",63000-PROFESSIONAL FEES AND SERVICES,TOXIC TRIO,Supplies & Services,Revenue
Walsall Council,http://opendatacommunities.org/id/metropolitan-district-council/walsall,WC98-575,30/09/2018,Childrens,BLACK COUNTRY WOMENS AID,23/11/2018,"16,654.50",63000-PROFESSIONAL FEES AND SERVICES,TOXIC TRIO,Supplies & Services,Revenue
Walsall Council,http://opendatacommunities.org/id/metropolitan-district-council/walsall,WC98-576,30/09/2018,Childrens,BLACK COUNTRY WOMENS AID,22/11/2018,"22,789.02",77000-TRANSFER PAYMENTS-MANDATORY AWARDS,TOXIC TRIO,Transfer Payments,Revenue
Walsall Council,http://opendatacommunities.org/id/metropolitan-district-council/walsall,WC98-577,30/09/2018,Childrens,BLACK COUNTRY WOMENS AID,23/11/2018,"25,000.00",63000-PROFESSIONAL FEES AND SERVICES,TOXIC TRIO,Supplies & Services,Revenue
Walsall Council,http://opendatacommunities.org/id/metropolitan-district-council/walsall,WC98-578,30/09/2018,Childrens,BLAKENALL HEATH JMI SCHOOL,30/11/2018,"3,849.23",66502-TOP UP FUNDING -GRANTS TO SCHOOLS,BLAKENALL HEATH JUNIOR SCHOOL,Third Party Payments,Revenue
Walsall Council,http://opendatacommunities.org/id/metropolitan-district-council/walsall,WC98-579,30/09/2018,Childrens,BLAKENALL HEATH JMI SCHOOL,19/11/2018,"10,698.00",77200-TRANSFER PAYMENTS-OTHER SCHOOLCHILDREN/STUDENT RELATED ITEMS,BLAKENALL HEATH JUNIOR SCHOOL,Transfer Payments,Revenue
Walsall Council,http://opendatacommunities.org/id/metropolitan-district-council/walsall,WC98-580,30/09/2018,Resources and Transformation,BLUETOWNONLINE LTD,22/11/2018,349.00,34000-RECRUITMENT EXPENSES (ALL TYPES INCL RELOCATION),SCHOOLS HR TRANSACTIONAL TEAM,Employees,Revenue
Walsall Council,http://opendatacommunities.org/id/metropolitan-district-council/walsall,WC98-581,30/09/2018,Resources and Transformation,BLUETOWNONLINE LTD,28/11/2018,349.00,34000-RECRUITMENT EXPENSES (ALL TYPES INCL RELOCATION),SCHOOLS HR TRANSACTIONAL TEAM,Employees,Revenue
Walsall Council,http://opendatacommunities.org/id/metropolitan-district-council/walsall,WC98-582,30/09/2018,Economy & Environment,BME UNITED LTD,23/11/2018,"4,145.40",63253-PAYMENT TO CONTRACTOR,SMOKING CESSATION,Third Party Payments,Revenue
Walsall Council,http://opendatacommunities.org/id/metropolitan-district-council/walsall,WC98-583,30/09/2018,Childrens,BOOSTERS OUT OF SCHOOL CLUB,13/11/2018,496.50,63120-CRECHE FACILITIES-SERVICES-FEES,FOSTERING SUPPORT TEAM,Supplies & Services,Revenue
Walsall Council,http://opendatacommunities.org/id/metropolitan-district-council/walsall,WC98-584,30/09/2018,Resources and Transformation,BORSHCH LTD,01/11/2018,225.00,60000-FURNITURE & EQUIPMENT,WALSALL CRISIS SUPPORT SCHEME,Supplies & Services,Revenue
Walsall Council,http://opendatacommunities.org/id/metropolitan-district-council/walsall,WC98-585,30/09/2018,Resources and Transformation,BORSHCH LTD,28/11/2018,225.00,60000-FURNITURE & EQUIPMENT,WALSALL CRISIS SUPPORT SCHEME,Supplies & Services,Revenue
Walsall Council,http://opendatacommunities.org/id/metropolitan-district-council/walsall,WC98-586,30/09/2018,Resources and Transformation,BORSHCH LTD,22/11/2018,229.16,60000-FURNITURE & EQUIPMENT,WALSALL CRISIS SUPPORT SCHEME,Supplies & Services,Revenue
Walsall Council,http://opendatacommunities.org/id/metropolitan-district-council/walsall,WC98-587,30/09/2018,Resources and Transformation,BORSHCH LTD,01/11/2018,233.33,60000-FURNITURE & EQUIPMENT,WALSALL CRISIS SUPPORT SCHEME,Supplies & Services,Revenue
Walsall Council,http://opendatacommunities.org/id/metropolitan-district-council/walsall,WC98-588,30/09/2018,Resources and Transformation,BORSHCH LTD,01/11/2018,237.49,60000-FURNITURE & EQUIPMENT,WALSALL CRISIS SUPPORT SCHEME,Supplies & Services,Revenue
Walsall Council,http://opendatacommunities.org/id/metropolitan-district-council/walsall,WC98-589,30/09/2018,Resources and Transformation,BORSHCH LTD,28/11/2018,237.49,60000-FURNITURE & EQUIPMENT,WALSALL CRISIS SUPPORT SCHEME,Supplies & Services,Revenue
Walsall Council,http://opendatacommunities.org/id/metropolitan-district-council/walsall,WC98-590,30/09/2018,Resources and Transformation,BORSHCH LTD,21/11/2018,283.33,60000-FURNITURE & EQUIPMENT,WALSALL CRISIS SUPPORT SCHEME,Supplies & Services,Revenue
Walsall Council,http://opendatacommunities.org/id/metropolitan-district-council/walsall,WC98-591,30/09/2018,Resources and Transformation,BORSHCH LTD,23/11/2018,283.33,60000-FURNITURE & EQUIPMENT,WALSALL CRISIS SUPPORT SCHEME,Supplies & Services,Revenue
Walsall Council,http://opendatacommunities.org/id/metropolitan-district-council/walsall,WC98-592,30/09/2018,Resources and Transformation,BORSHCH LTD,07/11/2018,287.50,60000-FURNITURE & EQUIPMENT,WALSALL CRISIS SUPPORT SCHEME,Supplies & Services,Revenue
Walsall Council,http://opendatacommunities.org/id/metropolitan-district-council/walsall,WC98-593,30/09/2018,Resources and Transformation,BORSHCH LTD,01/11/2018,291.66,60000-FURNITURE & EQUIPMENT,WALSALL CRISIS SUPPORT SCHEME,Supplies & Services,Revenue
Walsall Council,http://opendatacommunities.org/id/metropolitan-district-council/walsall,WC98-594,30/09/2018,Resources and Transformation,BORSHCH LTD,05/11/2018,291.66,60000-FURNITURE & EQUIPMENT,WALSALL CRISIS SUPPORT SCHEME,Supplies & Services,Revenue
Walsall Council,http://opendatacommunities.org/id/metropolitan-district-council/walsall,WC98-595,30/09/2018,Resources and Transformation,BORSHCH LTD,05/11/2018,291.66,60000-FURNITURE & EQUIPMENT,WALSALL CRISIS SUPPORT SCHEME,Supplies & Services,Revenue
Walsall Council,http://opendatacommunities.org/id/metropolitan-district-council/walsall,WC98-596,30/09/2018,Resources and Transformation,BORSHCH LTD,05/11/2018,291.66,60000-FURNITURE & EQUIPMENT,WALSALL CRISIS SUPPORT SCHEME,Supplies & Services,Revenue
Walsall Council,http://opendatacommunities.org/id/metropolitan-district-council/walsall,WC98-597,30/09/2018,Resources and Transformation,BORSHCH LTD,05/11/2018,291.66,60000-FURNITURE & EQUIPMENT,WALSALL CRISIS SUPPORT SCHEME,Supplies & Services,Revenue
Walsall Council,http://opendatacommunities.org/id/metropolitan-district-council/walsall,WC98-598,30/09/2018,Resources and Transformation,BORSHCH LTD,07/11/2018,291.66,60000-FURNITURE & EQUIPMENT,WALSALL CRISIS SUPPORT SCHEME,Supplies & Services,Revenue
Walsall Council,http://opendatacommunities.org/id/metropolitan-district-council/walsall,WC98-599,30/09/2018,Resources and Transformation,BORSHCH LTD,12/11/2018,291.66,60000-FURNITURE & EQUIPMENT,WALSALL CRISIS SUPPORT SCHEME,Supplies & Services,Revenue
Walsall Council,http://opendatacommunities.org/id/metropolitan-district-council/walsall,WC98-600,30/09/2018,Resources and Transformation,BORSHCH LTD,12/11/2018,291.66,60000-FURNITURE & EQUIPMENT,WALSALL CRISIS SUPPORT SCHEME,Supplies & Services,Revenue
Walsall Council,http://opendatacommunities.org/id/metropolitan-district-council/walsall,WC98-601,30/09/2018,Resources and Transformation,BORSHCH LTD,21/11/2018,291.66,60000-FURNITURE & EQUIPMENT,WALSALL CRISIS SUPPORT SCHEME,Supplies & Services,Revenue
Walsall Council,http://opendatacommunities.org/id/metropolitan-district-council/walsall,WC98-602,30/09/2018,Resources and Transformation,BORSHCH LTD,21/11/2018,291.66,60000-FURNITURE & EQUIPMENT,WALSALL CRISIS SUPPORT SCHEME,Supplies & Services,Revenue
Walsall Council,http://opendatacommunities.org/id/metropolitan-district-council/walsall,WC98-603,30/09/2018,Resources and Transformation,BORSHCH LTD,23/11/2018,291.66,60000-FURNITURE & EQUIPMENT,WALSALL CRISIS SUPPORT SCHEME,Supplies & Services,Revenue
Walsall Council,http://opendatacommunities.org/id/metropolitan-district-council/walsall,WC98-604,30/09/2018,Resources and Transformation,BORSHCH LTD,28/11/2018,291.66,60000-FURNITURE & EQUIPMENT,WALSALL CRISIS SUPPORT SCHEME,Supplies & Services,Revenue
Walsall Council,http://opendatacommunities.org/id/metropolitan-district-council/walsall,WC98-605,30/09/2018,Resources and Transformation,BORSHCH LTD,28/11/2018,291.66,60000-FURNITURE & EQUIPMENT,WALSALL CRISIS SUPPORT SCHEME,Supplies & Services,Revenue
Walsall Council,http://opendatacommunities.org/id/metropolitan-district-council/walsall,WC98-606,30/09/2018,Resources and Transformation,BORSHCH LTD,28/11/2018,291.66,60000-FURNITURE & EQUIPMENT,WALSALL CRISIS SUPPORT SCHEME,Supplies & Services,Revenue
Walsall Council,http://opendatacommunities.org/id/metropolitan-district-council/walsall,WC98-607,30/09/2018,Resources and Transformation,BORSHCH LTD,28/11/2018,295.82,60000-FURNITURE & EQUIPMENT,WALSALL CRISIS SUPPORT SCHEME,Supplies & Services,Revenue
Walsall Council,http://opendatacommunities.org/id/metropolitan-district-council/walsall,WC98-608,30/09/2018,Resources and Transformation,BORSHCH LTD,23/11/2018,295.83,60000-FURNITURE & EQUIPMENT,WALSALL CRISIS SUPPORT SCHEME,Supplies & Services,Revenue
Walsall Council,http://opendatacommunities.org/id/metropolitan-district-council/walsall,WC98-609,30/09/2018,Resources and Transformation,BORSHCH LTD,12/11/2018,312.50,60000-FURNITURE & EQUIPMENT,WALSALL CRISIS SUPPORT SCHEME,Supplies & Services,Revenue
Walsall Council,http://opendatacommunities.org/id/metropolitan-district-council/walsall,WC98-610,30/09/2018,Resources and Transformation,BORSHCH LTD,28/11/2018,370.83,60000-FURNITURE & EQUIPMENT,WALSALL CRISIS SUPPORT SCHEME,Supplies & Services,Revenue
Walsall Council,http://opendatacommunities.org/id/metropolitan-district-council/walsall,WC98-611,30/09/2018,Resources and Transformation,BORSHCH LTD,12/11/2018,375.00,60000-FURNITURE & EQUIPMENT,WALSALL CRISIS SUPPORT SCHEME,Supplies & Services,Revenue
Walsall Council,http://opendatacommunities.org/id/metropolitan-district-council/walsall,WC98-612,30/09/2018,Resources and Transformation,BORSHCH LTD,12/11/2018,379.16,60000-FURNITURE & EQUIPMENT,WALSALL CRISIS SUPPORT SCHEME,Supplies & Services,Revenue
Walsall Council,http://opendatacommunities.org/id/metropolitan-district-council/walsall,WC98-613,30/09/2018,Resources and Transformation,BORSHCH LTD,28/11/2018,379.16,60000-FURNITURE & EQUIPMENT,WALSALL CRISIS SUPPORT SCHEME,Supplies & Services,Revenue
Walsall Council,http://opendatacommunities.org/id/metropolitan-district-council/walsall,WC98-614,30/09/2018,Resources and Transformation,BORSHCH LTD,28/11/2018,383.33,60000-FURNITURE & EQUIPMENT,WALSALL CRISIS SUPPORT SCHEME,Supplies & Services,Revenue
Walsall Council,http://opendatacommunities.org/id/metropolitan-district-council/walsall,WC98-615,30/09/2018,Resources and Transformation,BORSHCH LTD,21/11/2018,416.67,60000-FURNITURE & EQUIPMENT,WALSALL CRISIS SUPPORT SCHEME,Supplies & Services,Revenue
Walsall Council,http://opendatacommunities.org/id/metropolitan-district-council/walsall,WC98-616,30/09/2018,Resources and Transformation,BORSHCH LTD,21/11/2018,425.00,60000-FURNITURE & EQUIPMENT,WALSALL CRISIS SUPPORT SCHEME,Supplies & Services,Revenue
Walsall Council,http://opendatacommunities.org/id/metropolitan-district-council/walsall,WC98-617,30/09/2018,Resources and Transformation,BORSHCH LTD,27/11/2018,425.00,60000-FURNITURE & EQUIPMENT,WALSALL CRISIS SUPPORT SCHEME,Supplies & Services,Revenue
Walsall Council,http://opendatacommunities.org/id/metropolitan-district-council/walsall,WC98-618,30/09/2018,Resources and Transformation,BORSHCH LTD,21/11/2018,429.17,60000-FURNITURE & EQUIPMENT,WALSALL CRISIS SUPPORT SCHEME,Supplies & Services,Revenue
Walsall Council,http://opendatacommunities.org/id/metropolitan-district-council/walsall,WC98-619,30/09/2018,Resources and Transformation,BORSHCH LTD,01/11/2018,433.33,60000-FURNITURE & EQUIPMENT,WALSALL CRISIS SUPPORT SCHEME,Supplies & Services,Revenue
Walsall Council,http://opendatacommunities.org/id/metropolitan-district-council/walsall,WC98-620,30/09/2018,Resources and Transformation,BORSHCH LTD,23/11/2018,433.33,60000-FURNITURE & EQUIPMENT,WALSALL CRISIS SUPPORT SCHEME,Supplies & Services,Revenue
Walsall Council,http://opendatacommunities.org/id/metropolitan-district-council/walsall,WC98-621,30/09/2018,Resources and Transformation,BORSHCH LTD,23/11/2018,433.33,60000-FURNITURE & EQUIPMENT,WALSALL CRISIS SUPPORT SCHEME,Supplies & Services,Revenue
Walsall Council,http://opendatacommunities.org/id/metropolitan-district-council/walsall,WC98-622,30/09/2018,Resources and Transformation,BORSHCH LTD,27/11/2018,433.33,60000-FURNITURE & EQUIPMENT,WALSALL CRISIS SUPPORT SCHEME,Supplies & Services,Revenue
Walsall Council,http://opendatacommunities.org/id/metropolitan-district-council/walsall,WC98-623,30/09/2018,Resources and Transformation,BORSHCH LTD,28/11/2018,433.33,60000-FURNITURE & EQUIPMENT,WALSALL CRISIS SUPPORT SCHEME,Supplies & Services,Revenue
Walsall Council,http://opendatacommunities.org/id/metropolitan-district-council/walsall,WC98-624,30/09/2018,Resources and Transformation,BORSHCH LTD,28/11/2018,433.33,60000-FURNITURE & EQUIPMENT,WALSALL CRISIS SUPPORT SCHEME,Supplies & Services,Revenue
Walsall Council,http://opendatacommunities.org/id/metropolitan-district-council/walsall,WC98-625,30/09/2018,Resources and Transformation,BORSHCH LTD,28/11/2018,433.33,60000-FURNITURE & EQUIPMENT,WALSALL CRISIS SUPPORT SCHEME,Supplies & Services,Revenue
Walsall Council,http://opendatacommunities.org/id/metropolitan-district-council/walsall,WC98-626,30/09/2018,Resources and Transformation,BORSHCH LTD,28/11/2018,433.33,60000-FURNITURE & EQUIPMENT,WALSALL CRISIS SUPPORT SCHEME,Supplies & Services,Revenue
Walsall Council,http://opendatacommunities.org/id/metropolitan-district-council/walsall,WC98-627,30/09/2018,Resources and Transformation,BORSHCH LTD,28/11/2018,433.33,60000-FURNITURE & EQUIPMENT,WALSALL CRISIS SUPPORT SCHEME,Supplies & Services,Revenue
Walsall Council,http://opendatacommunities.org/id/metropolitan-district-council/walsall,WC98-628,30/09/2018,Resources and Transformation,BORSHCH LTD,28/11/2018,433.33,60000-FURNITURE & EQUIPMENT,WALSALL CRISIS SUPPORT SCHEME,Supplies & Services,Revenue
Walsall Council,http://opendatacommunities.org/id/metropolitan-district-council/walsall,WC98-629,30/09/2018,Resources and Transformation,BORSHCH LTD,16/11/2018,437.50,60000-FURNITURE & EQUIPMENT,WALSALL CRISIS SUPPORT SCHEME,Supplies & Services,Revenue
Walsall Council,http://opendatacommunities.org/id/metropolitan-district-council/walsall,WC98-630,30/09/2018,Resources and Transformation,BORSHCH LTD,01/11/2018,462.49,60000-FURNITURE & EQUIPMENT,WALSALL CRISIS SUPPORT SCHEME,Supplies & Services,Revenue
Walsall Council,http://opendatacommunities.org/id/metropolitan-district-council/walsall,WC98-631,30/09/2018,Economy & Environment,BOUND AND GAGGED COMEDY,05/11/2018,"3,367.07",63000-PROFESSIONAL FEES AND SERVICES,FOREST ARTS CENTRE,Supplies & Services,Revenue
Walsall Council,http://opendatacommunities.org/id/metropolitan-district-council/walsall,WC98-632,30/09/2018,Adult Social Care,BOWDEN DERRA PARK,12/11/2018,"11,041.12",73500-RESIDENTIAL,LEARNING DISABILITY SUPPORT,Third Party Payments,Revenue
Walsall Council,http://opendatacommunities.org/id/metropolitan-district-council/walsall,WC98-633,30/09/2018,Adult Social Care,BRADLEY ENVIRONMENTAL,01/11/2018,245.00,01006-SITE WORKS MAIN CONTRACTORS,CFR 772 SUPPORTING INDEPENDENCE,Capital,Capital
Walsall Council,http://opendatacommunities.org/id/metropolitan-district-council/walsall,WC98-634,30/09/2018,Economy & Environment,BRADVALE LTD T/A INSPIRE HEALTHCARE SERVICES,01/11/2018,288.88,60008-MAINTENANCE-FURNITURE & EQUIPMENT,WALSALL GALA CENTRE,Supplies & Services,Revenue
Walsall Council,http://opendatacommunities.org/id/metropolitan-district-council/walsall,WC98-635,30/09/2018,Economy & Environment,BRADVALE LTD T/A INSPIRE HEALTHCARE SERVICES,20/11/2018,612.25,60500-GENERAL MATERIALS,ARBORETUM VISITOR CENTRE,Supplies & Services,Revenue
Walsall Council,http://opendatacommunities.org/id/metropolitan-district-council/walsall,WC98-636,30/09/2018,Economy & Environment,BRADVALE LTD T/A INSPIRE HEALTHCARE SERVICES,19/11/2018,622.31,73025-PROFESSIONAL SERVICES-PRIV CONTRACTOR & OTHER AGENCIES,DEPOT,Third Party Payments,Revenue
Walsall Council,http://opendatacommunities.org/id/metropolitan-district-council/walsall,WC98-637,30/09/2018,Resources and Transformation,BRELMAYNE LTD,06/11/2018,334.36,01044-PURCHASE OF FURNITURE & EQUIPMENT,CFR 1190 SCHOOLS PROJECT,Capital,Capital
Walsall Council,http://opendatacommunities.org/id/metropolitan-district-council/walsall,WC98-638,30/09/2018,Resources and Transformation,BRELMAYNE LTD,13/11/2018,340.75,60007-REPAIR OF EQUIPMENT-EQUIPMENT,CA ST GILES C.E. PRIMARY SCHOOL,Supplies & Services,Revenue
Walsall Council,http://opendatacommunities.org/id/metropolitan-district-council/walsall,WC98-639,30/09/2018,Resources and Transformation,BRELMAYNE LTD,06/11/2018,"3,719.04",01044-PURCHASE OF FURNITURE & EQUIPMENT,CFR 1190 SCHOOLS PROJECT,Capital,Capital
Walsall Council,http://opendatacommunities.org/id/metropolitan-district-council/walsall,WC98-640,30/09/2018,Resources and Transformation,BRELMAYNE LTD,06/11/2018,"6,278.00",01044-PURCHASE OF FURNITURE & EQUIPMENT,CFR 1190 SCHOOLS PROJECT,Capital,Capital
Walsall Council,http://opendatacommunities.org/id/metropolitan-district-council/walsall,WC98-641,30/09/2018,Childrens,BRELMAYNE LTD,07/11/2018,"24,963.00",01006-SITE WORKS MAIN CONTRACTORS,CFR 1299 VARIOUS KITCHEN VENTILATION UPGRADES,Capital,Capital
Walsall Council,http://opendatacommunities.org/id/metropolitan-district-council/walsall,WC98-642,30/09/2018,Adult Social Care,REDACTED,08/11/2018,440.00,73506-DIRECT PAYMENT,LEARNING DISABILITY SUPPORT,Third Party Payments,Revenue
Walsall Council,http://opendatacommunities.org/id/metropolitan-district-council/walsall,WC98-643,30/09/2018,Childrens,REDACTED,02/11/2018,175.00,74505-SCHOOL UNIFORM/INITIAL TRAINING ALLOWANCE-FOSTER CARERS,INTERNAL FOSTER CARE PROVISION,Transfer Payments,Revenue
Walsall Council,http://opendatacommunities.org/id/metropolitan-district-council/walsall,WC98-644,30/09/2018,Childrens,REDACTED,02/11/2018,175.00,74505-SCHOOL UNIFORM/INITIAL TRAINING ALLOWANCE-FOSTER CARERS,INTERNAL FOSTER CARE PROVISION,Transfer Payments,Revenue
Walsall Council,http://opendatacommunities.org/id/metropolitan-district-council/walsall,WC98-645,30/09/2018,Childrens,REDACTED,02/11/2018,720.00,74501-MAINTENANCE ALLOWANCE-FOSTER CARERS,INTERNAL FOSTER CARE PROVISION,Transfer Payments,Revenue
Walsall Council,http://opendatacommunities.org/id/metropolitan-district-council/walsall,WC98-646,30/09/2018,Childrens,REDACTED,02/11/2018,720.00,74501-MAINTENANCE ALLOWANCE-FOSTER CARERS,INTERNAL FOSTER CARE PROVISION,Transfer Payments,Revenue
Walsall Council,http://opendatacommunities.org/id/metropolitan-district-council/walsall,WC98-647,30/09/2018,Childrens,REDACTED,02/11/2018,"1,600.00",74508-INTERNAL FOSTER CARERS-CARER FEES,INTERNAL FOSTER CARE PROVISION,Transfer Payments,Revenue
Walsall Council,http://opendatacommunities.org/id/metropolitan-district-council/walsall,WC98-648,30/09/2018,Economy & Environment,BRENNTAG UK LIMITED,06/11/2018,406.39,60503-CHEMICALS & SCIENTIFIC MATS-MATERIALS,OAK PARK,Supplies & Services,Revenue
Walsall Council,http://opendatacommunities.org/id/metropolitan-district-council/walsall,WC98-649,30/09/2018,Adult Social Care,REDACTED,16/11/2018,756.56,73372-DOMICILIARY CARE,LD PACKAGE/PLACEMENT COSTS,Third Party Payments,Revenue
Walsall Council,http://opendatacommunities.org/id/metropolitan-district-council/walsall,WC98-650,30/09/2018,Adult Social Care,REDACTED,16/11/2018,"1,597.60",73372-DOMICILIARY CARE,LD PACKAGE/PLACEMENT COSTS,Third Party Payments,Revenue
Walsall Council,http://opendatacommunities.org/id/metropolitan-district-council/walsall,WC98-651,30/09/2018,Adult Social Care,REDACTED,08/11/2018,"1,771.28",73506-DIRECT PAYMENT,PHYSICAL SUPPORT,Third Party Payments,Revenue
Walsall Council,http://opendatacommunities.org/id/metropolitan-district-council/walsall,WC98-652,30/09/2018,Adult Social Care,REDACTED,08/11/2018,836.40,73506-DIRECT PAYMENT,PHYSICAL SUPPORT,Third Party Payments,Revenue
Walsall Council,http://opendatacommunities.org/id/metropolitan-district-council/walsall,WC98-653,30/09/2018,Resources and Transformation,BRIAR ASSOCIATES,16/11/2018,680.00,"40000-REPAIRS,ALTERATIONS & MAINTENANCE-PREM",CENTRALISED MAINTENANCE,Premises,Revenue
Walsall Council,http://opendatacommunities.org/id/metropolitan-district-council/walsall,WC98-654,30/09/2018,Adult Social Care,BRIDGEWOOD HEALTH CARE LTD,12/11/2018,"5,796.32",73502-NURSING,SENSORY SUPPORT,Third Party Payments,Revenue
Walsall Council,http://opendatacommunities.org/id/metropolitan-district-council/walsall,WC98-655,30/09/2018,Resources and Transformation,BRISTOW & SUTOR,23/11/2018,234.70,73014-LEGAL FEES-PRIV CONTRACTOR FEES,REVENUES,Third Party Payments,Revenue
Walsall Council,http://opendatacommunities.org/id/metropolitan-district-council/walsall,WC98-656,30/09/2018,Resources and Transformation,BRISTOW & SUTOR,23/11/2018,246.83,73014-LEGAL FEES-PRIV CONTRACTOR FEES,REVENUES,Third Party Payments,Revenue
Walsall Council,http://opendatacommunities.org/id/metropolitan-district-council/walsall,WC98-657,30/09/2018,Resources and Transformation,BRISTOW & SUTOR,23/11/2018,322.86,73014-LEGAL FEES-PRIV CONTRACTOR FEES,REVENUES,Third Party Payments,Revenue
Walsall Council,http://opendatacommunities.org/id/metropolitan-district-council/walsall,WC98-658,30/09/2018,Resources and Transformation,BRITANNIA HOTELS LTD T/A BRITANNIA HOTEL WOLVERHAMPTON,01/11/2018,247.50,75501-BED & BREAKFAST PAYMENTS,BED & BREAKFAST PAYMENTS,Third Party Payments,Revenue
Walsall Council,http://opendatacommunities.org/id/metropolitan-district-council/walsall,WC98-659,30/09/2018,Resources and Transformation,BRITANNIA HOTELS LTD T/A BRITANNIA HOTEL WOLVERHAMPTON,21/11/2018,274.16,75501-BED & BREAKFAST PAYMENTS,BED & BREAKFAST PAYMENTS,Third Party Payments,Revenue
Walsall Council,http://opendatacommunities.org/id/metropolitan-district-council/walsall,WC98-660,30/09/2018,Resources and Transformation,BRITANNIA HOTELS LTD T/A BRITANNIA HOTEL WOLVERHAMPTON,09/11/2018,295.02,75501-BED & BREAKFAST PAYMENTS,BED & BREAKFAST PAYMENTS,Third Party Payments,Revenue
Walsall Council,http://opendatacommunities.org/id/metropolitan-district-council/walsall,WC98-661,30/09/2018,Resources and Transformation,BRITANNIA HOTELS LTD T/A BRITANNIA HOTEL WOLVERHAMPTON,01/11/2018,362.46,75501-BED & BREAKFAST PAYMENTS,BED & BREAKFAST PAYMENTS,Third Party Payments,Revenue
Walsall Council,http://opendatacommunities.org/id/metropolitan-district-council/walsall,WC98-662,30/09/2018,Resources and Transformation,BRITANNIA HOTELS LTD T/A BRITANNIA HOTEL WOLVERHAMPTON,01/11/2018,387.50,75501-BED & BREAKFAST PAYMENTS,BED & BREAKFAST PAYMENTS,Third Party Payments,Revenue
Walsall Council,http://opendatacommunities.org/id/metropolitan-district-council/walsall,WC98-663,30/09/2018,Resources and Transformation,BRITISH GAS BUSINESS,21/11/2018,-562.48,42000-GAS-ENERGY COSTS,CENTRALISED ENERGY,Premises,Revenue
Walsall Council,http://opendatacommunities.org/id/metropolitan-district-council/walsall,WC98-664,30/09/2018,Resources and Transformation,BRITISH MUSLIM YOUTH GROUP,16/11/2018,"6,250.00",62515-MISCELLANEOUS SUPPLIES,PREVENT GRANT,Supplies & Services,Revenue
Walsall Council,http://opendatacommunities.org/id/metropolitan-district-council/walsall,WC98-665,30/09/2018,Resources and Transformation,BRITISH MUSLIM YOUTH GROUP,16/11/2018,"6,250.00",62515-MISCELLANEOUS SUPPLIES,PREVENT GRANT,Supplies & Services,Revenue
Walsall Council,http://opendatacommunities.org/id/metropolitan-district-council/walsall,WC98-666,30/09/2018,Childrens,BRITISH YOUTH COUNCIL,23/11/2018,495.00,63000-PROFESSIONAL FEES AND SERVICES,TARGETED YOUTH WORK,Supplies & Services,Revenue
Walsall Council,http://opendatacommunities.org/id/metropolitan-district-council/walsall,WC98-667,30/09/2018,Childrens,BRITISH YOUTH COUNCIL,23/11/2018,510.00,63000-PROFESSIONAL FEES AND SERVICES,TARGETED YOUTH WORK,Supplies & Services,Revenue
Walsall Council,http://opendatacommunities.org/id/metropolitan-district-council/walsall,WC98-668,30/09/2018,Childrens,BRITISH YOUTH COUNCIL,23/11/2018,525.00,63000-PROFESSIONAL FEES AND SERVICES,TARGETED YOUTH WORK,Supplies & Services,Revenue
Walsall Council,http://opendatacommunities.org/id/metropolitan-district-council/walsall,WC98-669,30/09/2018,Economy & Environment,BRITTONS FORK LIFT LIMITED,19/11/2018,276.00,62523-EVENTS,ARBORETUM,Supplies & Services,Revenue
Walsall Council,http://opendatacommunities.org/id/metropolitan-district-council/walsall,WC98-670,30/09/2018,Economy & Environment,BRITTONS FORK LIFT LIMITED,19/11/2018,764.80,62523-EVENTS,ARBORETUM,Supplies & Services,Revenue
Walsall Council,http://opendatacommunities.org/id/metropolitan-district-council/walsall,WC98-671,30/09/2018,Economy & Environment,BRITTONS FORK LIFT LIMITED,19/11/2018,"1,320.00",62523-EVENTS,ARBORETUM,Supplies & Services,Revenue
Walsall Council,http://opendatacommunities.org/id/metropolitan-district-council/walsall,WC98-672,30/09/2018,Economy & Environment,BRITTONS FORK LIFT LIMITED,19/11/2018,"1,550.00",62523-EVENTS,ARBORETUM,Supplies & Services,Revenue
Walsall Council,http://opendatacommunities.org/id/metropolitan-district-council/walsall,WC98-673,30/09/2018,Economy & Environment,BRITTONS FORK LIFT LIMITED,19/11/2018,"3,200.00",62523-EVENTS,ARBORETUM,Supplies & Services,Revenue
Walsall Council,http://opendatacommunities.org/id/metropolitan-district-council/walsall,WC98-674,30/09/2018,Adult Social Care,BROADWAY HALLS CARE HOME,12/11/2018,"1,876.52",73501-RESIDENTIAL EMI,MENTAL HEALTH SUPPORT,Third Party Payments,Revenue
Walsall Council,http://opendatacommunities.org/id/metropolitan-district-council/walsall,WC98-675,30/09/2018,Holding Accounts,BROWNE JACOBSON SOLICITORS,05/11/2018,811.50,67001-MISC INSURANCES - PAYMENT OF CLAIMS,PUBLIC LIABILITY,Supplies & Services,Revenue
Walsall Council,http://opendatacommunities.org/id/metropolitan-district-council/walsall,WC98-676,30/09/2018,Economy & Environment,BROWNHILLS ASPHALT & TARMAC LIMITED,05/11/2018,400.00,60500-GENERAL MATERIALS,INFRASTRUCTURE MAINTENANCE,Supplies & Services,Revenue
Walsall Council,http://opendatacommunities.org/id/metropolitan-district-council/walsall,WC98-677,30/09/2018,Economy & Environment,BROWNHILLS ASPHALT & TARMAC LIMITED,19/11/2018,"1,730.00",60500-GENERAL MATERIALS,CEMETERIES CENTRAL ADMINISTRATION,Supplies & Services,Revenue
Walsall Council,http://opendatacommunities.org/id/metropolitan-district-council/walsall,WC98-678,30/09/2018,Childrens,BROWNHILLS ASPHALT & TARMAC LIMITED,19/11/2018,"28,871.00",01006-SITE WORKS MAIN CONTRACTORS,CFR 1299 MEADOW VIEW PRIMARY SCHOOL - PHASE 2 ROOFING,Capital,Capital
Walsall Council,http://opendatacommunities.org/id/metropolitan-district-council/walsall,WC98-679,30/09/2018,Resources and Transformation,BROWNHILLS COMMUNITY ASSOCIATION,22/11/2018,"1,908.00",73025-PROFESSIONAL SERVICES-PRIV CONTRACTOR & OTHER AGENCIES,AREA PARTNERSHIPS,Third Party Payments,Revenue
Walsall Council,http://opendatacommunities.org/id/metropolitan-district-council/walsall,WC98-680,30/09/2018,Childrens,BROWNHILLS COMMUNITY ASSOCIATION,19/11/2018,"2,565.00",63120-CRECHE FACILITIES-SERVICES-FEES,FAMILY PLACEMENTS,Supplies & Services,Revenue
Walsall Council,http://opendatacommunities.org/id/metropolitan-district-council/walsall,WC98-681,30/09/2018,Resources and Transformation,BROWNHILLS COMMUNITY ASSOCIATION,22/11/2018,"3,000.00",73025-PROFESSIONAL SERVICES-PRIV CONTRACTOR & OTHER AGENCIES,AREA PARTNERSHIPS,Third Party Payments,Revenue
Walsall Council,http://opendatacommunities.org/id/metropolitan-district-council/walsall,WC98-682,30/09/2018,Adult Social Care,REDACTED,08/11/2018,"1,713.60",73506-DIRECT PAYMENT,LEARNING DISABILITY SUPPORT,Third Party Payments,Revenue
Walsall Council,http://opendatacommunities.org/id/metropolitan-district-council/walsall,WC98-683,30/09/2018,Economy & Environment,REDACTED,23/11/2018,250.00,62523-EVENTS,COUNTRYSIDE MANAGEMENT-OTHER,Supplies & Services,Revenue
Walsall Council,http://opendatacommunities.org/id/metropolitan-district-council/walsall,WC98-684,30/09/2018,Resources and Transformation,REDACTED,19/11/2018,335.00,63800-COMPUTER EQUIPMENT AND SUPPLIES,COMMUNICATIONS,Supplies & Services,Revenue
Walsall Council,http://opendatacommunities.org/id/metropolitan-district-council/walsall,WC98-685,30/09/2018,Capital Financing,REDACTED,01/11/2018,97.23,82507-INTEREST ON OVERDUE /LATE PAYMENTS-CENTRAL EXPENSES,INTEREST ALLOCATION,Central,Revenue
Walsall Council,http://opendatacommunities.org/id/metropolitan-district-council/walsall,WC98-686,30/09/2018,Economy & Environment,BSMART TRAINING LTD,23/11/2018,"1,369.60",63000-PROFESSIONAL FEES AND SERVICES,YEI (IMPACT) PROGRAMME,Supplies & Services,Revenue
Walsall Council,http://opendatacommunities.org/id/metropolitan-district-council/walsall,WC98-687,30/09/2018,Economy & Environment,BSMART TRAINING LTD,23/11/2018,"1,369.60",63000-PROFESSIONAL FEES AND SERVICES,YEI ESF FUNDING,Supplies & Services,Revenue
Walsall Council,http://opendatacommunities.org/id/metropolitan-district-council/walsall,WC98-688,30/09/2018,Economy & Environment,BT,16/11/2018,356.76,63602-COST OF RENTAL-TELEPHONES,FOREST ARTS CENTRE,Supplies & Services,Revenue
Walsall Council,http://opendatacommunities.org/id/metropolitan-district-council/walsall,WC98-689,30/09/2018,Resources and Transformation,BT,05/11/2018,681.00,63603-COST OF CALLS-TELEPHONES,PROCESSING,Supplies & Services,Revenue
Walsall Council,http://opendatacommunities.org/id/metropolitan-district-council/walsall,WC98-690,30/09/2018,Resources and Transformation,BT,01/11/2018,"1,434.55",63800-COMPUTER EQUIPMENT AND SUPPLIES,RECHARGEABLE EQUIPMENT,Supplies & Services,Revenue
Walsall Council,http://opendatacommunities.org/id/metropolitan-district-council/walsall,WC98-691,30/09/2018,Resources and Transformation,BT,01/11/2018,"2,234.10",63807-COMMS LINKS-COMPUTER,SIT-INFRASTRUCTURE,Supplies & Services,Revenue
Walsall Council,http://opendatacommunities.org/id/metropolitan-district-council/walsall,WC98-692,30/09/2018,Resources and Transformation,BT BUSINESS DIRECT  LIMITED,26/11/2018,"5,866.40",63800-COMPUTER EQUIPMENT AND SUPPLIES,SIT-INFRASTRUCTURE,Supplies & Services,Revenue
Walsall Council,http://opendatacommunities.org/id/metropolitan-district-council/walsall,WC98-693,30/09/2018,Childrens,BT PLC,27/11/2018,405.54,63603-COST OF CALLS-TELEPHONES,LOCALITY FAMILY SUPPORT-WEST,Supplies & Services,Revenue
Walsall Council,http://opendatacommunities.org/id/metropolitan-district-council/walsall,WC98-694,30/09/2018,Childrens,BT PLC,15/11/2018,524.17,63601-COSTS (NOT INTERNAL RECHARGES)-TELEPHONES,LOCALITY FAMILY SUPPORT-CENTRAL & EAST,Supplies & Services,Revenue
Walsall Council,http://opendatacommunities.org/id/metropolitan-district-council/walsall,WC98-695,30/09/2018,Resources and Transformation,BT PLC,16/11/2018,"2,149.01",63601-COSTS (NOT INTERNAL RECHARGES)-TELEPHONES,CENTRAL COMMUNICATIONS RECHARGES,Supplies & Services,Revenue
Walsall Council,http://opendatacommunities.org/id/metropolitan-district-council/walsall,WC98-696,30/09/2018,Resources and Transformation,BT PLC,16/11/2018,"13,882.85",63601-COSTS (NOT INTERNAL RECHARGES)-TELEPHONES,CENTRAL COMMUNICATIONS RECHARGES,Supplies & Services,Revenue
Walsall Council,http://opendatacommunities.org/id/metropolitan-district-council/walsall,WC98-697,30/09/2018,Resources and Transformation,BT PLC,14/11/2018,"82,766.53",63800-COMPUTER EQUIPMENT AND SUPPLIES,RECHARGEABLE EQUIPMENT,Supplies & Services,Revenue
Walsall Council,http://opendatacommunities.org/id/metropolitan-district-council/walsall,WC98-698,30/09/2018,Economy & Environment,BUFFET EXPRESS LTD,23/11/2018,312.75,61009-BEVERAGES-PROVISIONS,FOREST ARTS CENTRE,Supplies & Services,Revenue
Walsall Council,http://opendatacommunities.org/id/metropolitan-district-council/walsall,WC98-699,30/09/2018,Economy & Environment,BUFFET EXPRESS LTD,19/11/2018,479.00,61009-BEVERAGES-PROVISIONS,FOREST ARTS CENTRE,Supplies & Services,Revenue
Walsall Council,http://opendatacommunities.org/id/metropolitan-district-council/walsall,WC98-700,30/09/2018,Economy & Environment,BUFFET EXPRESS LTD,27/11/2018,"2,142.30",61009-BEVERAGES-PROVISIONS,FOREST ARTS CENTRE,Supplies & Services,Revenue
Walsall Council,http://opendatacommunities.org/id/metropolitan-district-council/walsall,WC98-701,30/09/2018,Adult Social Care,BUNZIL HEALTHCARE T/A CARESHOP,16/11/2018,475.80,60539-CLEANING MATERIALS,INTERMEDIATE CARE SERVICE,Supplies & Services,Revenue
Walsall Council,http://opendatacommunities.org/id/metropolitan-district-council/walsall,WC98-702,30/09/2018,Adult Social Care,BUSH HOME LTD,12/11/2018,"1,688.84",73500-RESIDENTIAL,MENTAL HEALTH SUPPORT,Third Party Payments,Revenue
Walsall Council,http://opendatacommunities.org/id/metropolitan-district-council/walsall,WC98-703,30/09/2018,Adult Social Care,BUSH HOME LTD,12/11/2018,"1,688.84",73500-RESIDENTIAL,PHYSICAL SUPPORT,Third Party Payments,Revenue
Walsall Council,http://opendatacommunities.org/id/metropolitan-district-council/walsall,WC98-704,30/09/2018,Adult Social Care,BUSH HOME LTD,12/11/2018,"1,688.84",73500-RESIDENTIAL,MENTAL HEALTH SUPPORT,Third Party Payments,Revenue
Walsall Council,http://opendatacommunities.org/id/metropolitan-district-council/walsall,WC98-705,30/09/2018,Adult Social Care,BUSH HOME LTD,12/11/2018,"1,688.84",73500-RESIDENTIAL,MENTAL HEALTH SUPPORT,Third Party Payments,Revenue
Walsall Council,http://opendatacommunities.org/id/metropolitan-district-council/walsall,WC98-706,30/09/2018,Adult Social Care,BUSH HOME LTD,12/11/2018,"1,688.84",73500-RESIDENTIAL,PHYSICAL SUPPORT,Third Party Payments,Revenue
Walsall Council,http://opendatacommunities.org/id/metropolitan-district-council/walsall,WC98-707,30/09/2018,Adult Social Care,BUSH HOME LTD,12/11/2018,"1,688.84",73500-RESIDENTIAL,PHYSICAL SUPPORT,Third Party Payments,Revenue
Walsall Council,http://opendatacommunities.org/id/metropolitan-district-council/walsall,WC98-708,30/09/2018,Adult Social Care,BUSH HOME LTD,12/11/2018,"1,809.50",73501-RESIDENTIAL EMI,PHYSICAL SUPPORT,Third Party Payments,Revenue
Walsall Council,http://opendatacommunities.org/id/metropolitan-district-council/walsall,WC98-709,30/09/2018,Adult Social Care,BUSH HOME LTD,13/11/2018,"1,869.78",73373-RESIDENTIAL & NURSING CARE PLACEMENTS,OP PACKAGE/PLACEMENT COSTS,Third Party Payments,Revenue
Walsall Council,http://opendatacommunities.org/id/metropolitan-district-council/walsall,WC98-710,30/09/2018,Adult Social Care,BUSH HOME LTD,12/11/2018,"1,876.52",73501-RESIDENTIAL EMI,PHYSICAL SUPPORT,Third Party Payments,Revenue
Walsall Council,http://opendatacommunities.org/id/metropolitan-district-council/walsall,WC98-711,30/09/2018,Adult Social Care,BUSH HOME LTD,12/11/2018,"1,876.52",73501-RESIDENTIAL EMI,PHYSICAL SUPPORT,Third Party Payments,Revenue
Walsall Council,http://opendatacommunities.org/id/metropolitan-district-council/walsall,WC98-712,30/09/2018,Adult Social Care,BUSH HOME LTD,12/11/2018,"1,876.52",73501-RESIDENTIAL EMI,PHYSICAL SUPPORT,Third Party Payments,Revenue
Walsall Council,http://opendatacommunities.org/id/metropolitan-district-council/walsall,WC98-713,30/09/2018,Adult Social Care,BUSH HOME LTD,12/11/2018,"1,876.52",73501-RESIDENTIAL EMI,MENTAL HEALTH SUPPORT,Third Party Payments,Revenue
Walsall Council,http://opendatacommunities.org/id/metropolitan-district-council/walsall,WC98-714,30/09/2018,Adult Social Care,BUSH HOME LTD,12/11/2018,"1,876.52",73501-RESIDENTIAL EMI,PHYSICAL SUPPORT,Third Party Payments,Revenue
Walsall Council,http://opendatacommunities.org/id/metropolitan-district-council/walsall,WC98-715,30/09/2018,Adult Social Care,BUSH HOME LTD,12/11/2018,"1,876.52",73501-RESIDENTIAL EMI,MENTAL HEALTH SUPPORT,Third Party Payments,Revenue
Walsall Council,http://opendatacommunities.org/id/metropolitan-district-council/walsall,WC98-716,30/09/2018,Adult Social Care,BUSH HOME LTD,12/11/2018,"1,876.52",73501-RESIDENTIAL EMI,PHYSICAL SUPPORT,Third Party Payments,Revenue
Walsall Council,http://opendatacommunities.org/id/metropolitan-district-council/walsall,WC98-717,30/09/2018,Adult Social Care,BUSH HOME LTD,07/11/2018,"7,418.83",73373-RESIDENTIAL & NURSING CARE PLACEMENTS,OP PACKAGE/PLACEMENT COSTS,Third Party Payments,Revenue
Walsall Council,http://opendatacommunities.org/id/metropolitan-district-council/walsall,WC98-718,30/09/2018,Childrens,BUSY BEES CHILDCARE LTD,01/11/2018,"3,897.60",66505-OTHER-GRANTS TO OTHER ORGS,EARLY YEARS - 3 YR OLDS,Third Party Payments,Revenue
Walsall Council,http://opendatacommunities.org/id/metropolitan-district-council/walsall,WC98-719,30/09/2018,Childrens,BY THE BRIDGE,02/11/2018,"3,996.00",74037-INDEPENDENT FOSTER CARE-OTH AGENCY PROVISION,EXTERNAL FOSTER CARE PROVISION,Third Party Payments,Revenue
Walsall Council,http://opendatacommunities.org/id/metropolitan-district-council/walsall,WC98-720,30/09/2018,Childrens,BY THE BRIDGE,02/11/2018,"3,996.00",74037-INDEPENDENT FOSTER CARE-OTH AGENCY PROVISION,EXTERNAL FOSTER CARE PROVISION,Third Party Payments,Revenue
Walsall Council,http://opendatacommunities.org/id/metropolitan-district-council/walsall,WC98-721,30/09/2018,Childrens,BY THE BRIDGE,29/11/2018,"3,996.00",74037-INDEPENDENT FOSTER CARE-OTH AGENCY PROVISION,EXTERNAL FOSTER CARE PROVISION,Third Party Payments,Revenue
Walsall Council,http://opendatacommunities.org/id/metropolitan-district-council/walsall,WC98-722,30/09/2018,Childrens,BY THE BRIDGE,29/11/2018,"3,996.00",74037-INDEPENDENT FOSTER CARE-OTH AGENCY PROVISION,EXTERNAL FOSTER CARE PROVISION,Third Party Payments,Revenue
Walsall Council,http://opendatacommunities.org/id/metropolitan-district-council/walsall,WC98-723,30/09/2018,Adult Social Care,C & V ORCHARD MANOR LTD,07/11/2018,946.28,73373-RESIDENTIAL & NURSING CARE PLACEMENTS,MENTAL HEALTH PACKAGE/PLACEMENT COSTS,Third Party Payments,Revenue
Walsall Council,http://opendatacommunities.org/id/metropolitan-district-council/walsall,WC98-724,30/09/2018,Adult Social Care,C & V ORCHARD MANOR LTD,07/11/2018,"1,656.00",73373-RESIDENTIAL & NURSING CARE PLACEMENTS,MENTAL HEALTH PACKAGE/PLACEMENT COSTS,Third Party Payments,Revenue
Walsall Council,http://opendatacommunities.org/id/metropolitan-district-council/walsall,WC98-725,30/09/2018,Adult Social Care,C & V ORCHARD MANOR LTD,07/11/2018,"1,656.00",73373-RESIDENTIAL & NURSING CARE PLACEMENTS,MENTAL HEALTH PACKAGE/PLACEMENT COSTS,Third Party Payments,Revenue
Walsall Council,http://opendatacommunities.org/id/metropolitan-district-council/walsall,WC98-726,30/09/2018,Childrens,REDACTED,02/11/2018,720.00,74501-MAINTENANCE ALLOWANCE-FOSTER CARERS,INTERNAL FOSTER CARE PROVISION,Transfer Payments,Revenue
Walsall Council,http://opendatacommunities.org/id/metropolitan-district-council/walsall,WC98-727,30/09/2018,Childrens,REDACTED,02/11/2018,720.00,74501-MAINTENANCE ALLOWANCE-FOSTER CARERS,INTERNAL FOSTER CARE PROVISION,Transfer Payments,Revenue
Walsall Council,http://opendatacommunities.org/id/metropolitan-district-council/walsall,WC98-728,30/09/2018,Childrens,REDACTED,02/11/2018,720.00,74501-MAINTENANCE ALLOWANCE-FOSTER CARERS,INTERNAL FOSTER CARE PROVISION,Transfer Payments,Revenue
Walsall Council,http://opendatacommunities.org/id/metropolitan-district-council/walsall,WC98-729,30/09/2018,Childrens,REDACTED,02/11/2018,860.00,74501-MAINTENANCE ALLOWANCE-FOSTER CARERS,INTERNAL FOSTER CARE PROVISION,Transfer Payments,Revenue
Walsall Council,http://opendatacommunities.org/id/metropolitan-district-council/walsall,WC98-730,30/09/2018,Childrens,REDACTED,02/11/2018,"3,000.00",74508-INTERNAL FOSTER CARERS-CARER FEES,INTERNAL FOSTER CARE PROVISION,Transfer Payments,Revenue
Walsall Council,http://opendatacommunities.org/id/metropolitan-district-council/walsall,WC98-731,30/09/2018,Childrens,REDACTED,02/11/2018,720.00,74501-MAINTENANCE ALLOWANCE-FOSTER CARERS,INTERNAL FOSTER CARE PROVISION,Transfer Payments,Revenue
Walsall Council,http://opendatacommunities.org/id/metropolitan-district-council/walsall,WC98-732,30/09/2018,Childrens,REDACTED,02/11/2018,860.00,74501-MAINTENANCE ALLOWANCE-FOSTER CARERS,INTERNAL FOSTER CARE PROVISION,Transfer Payments,Revenue
Walsall Council,http://opendatacommunities.org/id/metropolitan-district-council/walsall,WC98-733,30/09/2018,Childrens,REDACTED,02/11/2018,"1,600.00",74508-INTERNAL FOSTER CARERS-CARER FEES,INTERNAL FOSTER CARE PROVISION,Transfer Payments,Revenue
Walsall Council,http://opendatacommunities.org/id/metropolitan-district-council/walsall,WC98-734,30/09/2018,Childrens,C M H T SOLICITORS LLP,14/11/2018,"2,500.00",73014-LEGAL FEES-PRIV CONTRACTOR FEES,GENERAL MANAGEMENT SUPPORT (INC LEGAL),Third Party Payments,Revenue
Walsall Council,http://opendatacommunities.org/id/metropolitan-district-council/walsall,WC98-735,30/09/2018,Economy & Environment,C P DAVIDSON & SONS LTD,06/11/2018,280.00,60514-MATERIALS TO STORES,FLEET PARTS STOCK ACCOUNT,Supplies & Services,Revenue
Walsall Council,http://opendatacommunities.org/id/metropolitan-district-council/walsall,WC98-736,30/09/2018,Economy & Environment,C P DAVIDSON & SONS LTD,20/11/2018,284.63,60500-GENERAL MATERIALS,FLEET,Supplies & Services,Revenue
Walsall Council,http://opendatacommunities.org/id/metropolitan-district-council/walsall,WC98-737,30/09/2018,Economy & Environment,C P DAVIDSON & SONS LTD,06/11/2018,403.50,60514-MATERIALS TO STORES,FLEET PARTS STOCK ACCOUNT,Supplies & Services,Revenue
Walsall Council,http://opendatacommunities.org/id/metropolitan-district-council/walsall,WC98-738,30/09/2018,Economy & Environment,C P DAVIDSON & SONS LTD,06/11/2018,"1,047.50",60500-GENERAL MATERIALS,FLEET,Supplies & Services,Revenue
Walsall Council,http://opendatacommunities.org/id/metropolitan-district-council/walsall,WC98-739,30/09/2018,Childrens,REDACTED,16/11/2018,110.00,74504-HOLIDAY/CHRISTMAS ALLOWANCE-FOSTER CARERS,FAMILY & FRIENDS FOSTER CARE PROVISION,Transfer Payments,Revenue
Walsall Council,http://opendatacommunities.org/id/metropolitan-district-council/walsall,WC98-740,30/09/2018,Childrens,REDACTED,16/11/2018,110.00,74504-HOLIDAY/CHRISTMAS ALLOWANCE-FOSTER CARERS,FAMILY & FRIENDS FOSTER CARE PROVISION,Transfer Payments,Revenue
Walsall Council,http://opendatacommunities.org/id/metropolitan-district-council/walsall,WC98-741,30/09/2018,Childrens,REDACTED,16/11/2018,408.00,74508-INTERNAL FOSTER CARERS-CARER FEES,FAMILY & FRIENDS FOSTER CARE PROVISION,Transfer Payments,Revenue
Walsall Council,http://opendatacommunities.org/id/metropolitan-district-council/walsall,WC98-742,30/09/2018,Childrens,REDACTED,16/11/2018,600.00,74501-MAINTENANCE ALLOWANCE-FOSTER CARERS,FAMILY & FRIENDS FOSTER CARE PROVISION,Transfer Payments,Revenue
Walsall Council,http://opendatacommunities.org/id/metropolitan-district-council/walsall,WC98-743,30/09/2018,Childrens,REDACTED,16/11/2018,600.00,74501-MAINTENANCE ALLOWANCE-FOSTER CARERS,FAMILY & FRIENDS FOSTER CARE PROVISION,Transfer Payments,Revenue
Walsall Council,http://opendatacommunities.org/id/metropolitan-district-council/walsall,WC98-744,30/09/2018,Adult Social Care,CALDMORE AREA HOUSING ASS LTD,07/11/2018,904.66,73373-RESIDENTIAL & NURSING CARE PLACEMENTS,MENTAL HEALTH PACKAGE/PLACEMENT COSTS,Third Party Payments,Revenue
Walsall Council,http://opendatacommunities.org/id/metropolitan-district-council/walsall,WC98-745,30/09/2018,Adult Social Care,CALDMORE AREA HOUSING ASS LTD,07/11/2018,"2,533.04",73373-RESIDENTIAL & NURSING CARE PLACEMENTS,MENTAL HEALTH PACKAGE/PLACEMENT COSTS,Third Party Payments,Revenue
Walsall Council,http://opendatacommunities.org/id/metropolitan-district-council/walsall,WC98-746,30/09/2018,Adult Social Care,CALDMORE AREA HOUSING ASS LTD,07/11/2018,"2,533.04",73373-RESIDENTIAL & NURSING CARE PLACEMENTS,MENTAL HEALTH PACKAGE/PLACEMENT COSTS,Third Party Payments,Revenue
Walsall Council,http://opendatacommunities.org/id/metropolitan-district-council/walsall,WC98-747,30/09/2018,Adult Social Care,CALDMORE AREA HOUSING ASS LTD,12/11/2018,"2,533.04",73500-RESIDENTIAL,MENTAL HEALTH SUPPORT,Third Party Payments,Revenue
Walsall Council,http://opendatacommunities.org/id/metropolitan-district-council/walsall,WC98-748,30/09/2018,Adult Social Care,CALDMORE AREA HOUSING ASS LTD,07/11/2018,"2,613.24",73373-RESIDENTIAL & NURSING CARE PLACEMENTS,MENTAL HEALTH PACKAGE/PLACEMENT COSTS,Third Party Payments,Revenue
Walsall Council,http://opendatacommunities.org/id/metropolitan-district-council/walsall,WC98-749,30/09/2018,Adult Social Care,CALDMORE AREA HOUSING ASS LTD,07/11/2018,"2,613.24",73373-RESIDENTIAL & NURSING CARE PLACEMENTS,MENTAL HEALTH PACKAGE/PLACEMENT COSTS,Third Party Payments,Revenue
Walsall Council,http://opendatacommunities.org/id/metropolitan-district-council/walsall,WC98-750,30/09/2018,Adult Social Care,CALDMORE AREA HOUSING ASS LTD,07/11/2018,"2,613.24",73373-RESIDENTIAL & NURSING CARE PLACEMENTS,MENTAL HEALTH PACKAGE/PLACEMENT COSTS,Third Party Payments,Revenue
Walsall Council,http://opendatacommunities.org/id/metropolitan-district-council/walsall,WC98-751,30/09/2018,Adult Social Care,CALDMORE AREA HOUSING ASS LTD,07/11/2018,"2,613.24",73373-RESIDENTIAL & NURSING CARE PLACEMENTS,MENTAL HEALTH PACKAGE/PLACEMENT COSTS,Third Party Payments,Revenue
Walsall Council,http://opendatacommunities.org/id/metropolitan-district-council/walsall,WC98-752,30/09/2018,Adult Social Care,CALDMORE AREA HOUSING ASS LTD,07/11/2018,"2,613.24",73373-RESIDENTIAL & NURSING CARE PLACEMENTS,MENTAL HEALTH PACKAGE/PLACEMENT COSTS,Third Party Payments,Revenue
Walsall Council,http://opendatacommunities.org/id/metropolitan-district-council/walsall,WC98-753,30/09/2018,Adult Social Care,CALDMORE AREA HOUSING ASS LTD,12/11/2018,"2,613.24",73501-RESIDENTIAL EMI,MENTAL HEALTH SUPPORT,Third Party Payments,Revenue
Walsall Council,http://opendatacommunities.org/id/metropolitan-district-council/walsall,WC98-754,30/09/2018,Adult Social Care,CALDMORE AREA HOUSING ASS LTD,12/11/2018,"2,662.88",73500-RESIDENTIAL,MENTAL HEALTH SUPPORT,Third Party Payments,Revenue
Walsall Council,http://opendatacommunities.org/id/metropolitan-district-council/walsall,WC98-755,30/09/2018,Adult Social Care,CALDMORE AREA HOUSING ASS LTD,12/11/2018,"2,662.88",73500-RESIDENTIAL,MENTAL HEALTH SUPPORT,Third Party Payments,Revenue
Walsall Council,http://opendatacommunities.org/id/metropolitan-district-council/walsall,WC98-756,30/09/2018,Adult Social Care,CALDMORE AREA HOUSING ASS LTD,12/11/2018,"2,662.88",73500-RESIDENTIAL,MENTAL HEALTH SUPPORT,Third Party Payments,Revenue
Walsall Council,http://opendatacommunities.org/id/metropolitan-district-council/walsall,WC98-757,30/09/2018,Adult Social Care,CALDMORE AREA HOUSING ASS LTD,12/11/2018,"2,662.88",73500-RESIDENTIAL,MENTAL HEALTH SUPPORT,Third Party Payments,Revenue
Walsall Council,http://opendatacommunities.org/id/metropolitan-district-council/walsall,WC98-758,30/09/2018,Adult Social Care,CALDMORE AREA HOUSING ASS LTD,12/11/2018,"2,662.88",73500-RESIDENTIAL,MENTAL HEALTH SUPPORT,Third Party Payments,Revenue
Walsall Council,http://opendatacommunities.org/id/metropolitan-district-council/walsall,WC98-759,30/09/2018,Adult Social Care,CALDMORE AREA HOUSING ASS LTD,12/11/2018,"2,662.88",73500-RESIDENTIAL,MENTAL HEALTH SUPPORT,Third Party Payments,Revenue
Walsall Council,http://opendatacommunities.org/id/metropolitan-district-council/walsall,WC98-760,30/09/2018,Adult Social Care,CALDMORE AREA HOUSING ASS LTD,12/11/2018,"2,662.88",73500-RESIDENTIAL,MENTAL HEALTH SUPPORT,Third Party Payments,Revenue
Walsall Council,http://opendatacommunities.org/id/metropolitan-district-council/walsall,WC98-761,30/09/2018,Adult Social Care,CALDMORE AREA HOUSING ASS LTD,07/11/2018,"3,166.30",73373-RESIDENTIAL & NURSING CARE PLACEMENTS,MENTAL HEALTH PACKAGE/PLACEMENT COSTS,Third Party Payments,Revenue
Walsall Council,http://opendatacommunities.org/id/metropolitan-district-council/walsall,WC98-762,30/09/2018,Adult Social Care,CALDMORE AREA HOUSING ASS LTD,07/11/2018,"3,166.30",73373-RESIDENTIAL & NURSING CARE PLACEMENTS,MENTAL HEALTH PACKAGE/PLACEMENT COSTS,Third Party Payments,Revenue
Walsall Council,http://opendatacommunities.org/id/metropolitan-district-council/walsall,WC98-763,30/09/2018,Adult Social Care,CALDMORE AREA HOUSING ASS LTD,07/11/2018,"3,173.22",73373-RESIDENTIAL & NURSING CARE PLACEMENTS,MENTAL HEALTH PACKAGE/PLACEMENT COSTS,Third Party Payments,Revenue
Walsall Council,http://opendatacommunities.org/id/metropolitan-district-council/walsall,WC98-764,30/09/2018,Adult Social Care,CALDMORE AREA HOUSING ASS LTD,12/11/2018,"7,227.82",73500-RESIDENTIAL,MENTAL HEALTH SUPPORT,Third Party Payments,Revenue
Walsall Council,http://opendatacommunities.org/id/metropolitan-district-council/walsall,WC98-765,30/09/2018,Adult Social Care,CALDMORE AREA HOUSING ASS LTD,12/11/2018,"39,791.42",73500-RESIDENTIAL,MENTAL HEALTH SUPPORT,Third Party Payments,Revenue
Walsall Council,http://opendatacommunities.org/id/metropolitan-district-council/walsall,WC98-766,30/09/2018,Childrens,CALDMORE PRIMARY ACADEMY,30/11/2018,"3,461.54",66502-TOP UP FUNDING -GRANTS TO SCHOOLS,CALDMORE PRIMARY ACADEMY,Third Party Payments,Revenue
Walsall Council,http://opendatacommunities.org/id/metropolitan-district-council/walsall,WC98-767,30/09/2018,Childrens,REDACTED,16/11/2018,375.88,74510-RESIDENTS ORDERS,ADOPTION ALLOWANCES,Third Party Payments,Revenue
Walsall Council,http://opendatacommunities.org/id/metropolitan-district-council/walsall,WC98-768,30/09/2018,Adult Social Care,REDACTED,08/11/2018,"1,334.08",73506-DIRECT PAYMENT,LEARNING DISABILITY SUPPORT,Third Party Payments,Revenue
Walsall Council,http://opendatacommunities.org/id/metropolitan-district-council/walsall,WC98-769,30/09/2018,Economy & Environment,CAMERA ONE LIMITED,21/11/2018,700.00,60500-GENERAL MATERIALS,STRATEGY MANAGEMENT,Supplies & Services,Revenue
Walsall Council,http://opendatacommunities.org/id/metropolitan-district-council/walsall,WC98-770,30/09/2018,Economy & Environment,CAMERA ONE LIMITED,06/11/2018,920.00,73025-PROFESSIONAL SERVICES-PRIV CONTRACTOR & OTHER AGENCIES,DEPOT,Third Party Payments,Revenue
Walsall Council,http://opendatacommunities.org/id/metropolitan-district-council/walsall,WC98-771,30/09/2018,Economy & Environment,CAMERA ONE LIMITED,21/11/2018,"1,250.00",60500-GENERAL MATERIALS,STRATEGY MANAGEMENT,Supplies & Services,Revenue
Walsall Council,http://opendatacommunities.org/id/metropolitan-district-council/walsall,WC98-772,30/09/2018,Economy & Environment,CAMERA ONE LIMITED,06/11/2018,"1,500.00","40000-REPAIRS,ALTERATIONS & MAINTENANCE-PREM",GREEN SPACE MANAGEMENT,Premises,Revenue
Walsall Council,http://opendatacommunities.org/id/metropolitan-district-council/walsall,WC98-773,30/09/2018,Economy & Environment,CAMERA ONE LIMITED,16/11/2018,"1,500.00","40000-REPAIRS,ALTERATIONS & MAINTENANCE-PREM",GREEN SPACE MANAGEMENT,Premises,Revenue
Walsall Council,http://opendatacommunities.org/id/metropolitan-district-council/walsall,WC98-774,30/09/2018,Economy & Environment,CAMERA ONE LIMITED,21/11/2018,"2,000.00",73025-PROFESSIONAL SERVICES-PRIV CONTRACTOR & OTHER AGENCIES,DEPOT,Third Party Payments,Revenue
Walsall Council,http://opendatacommunities.org/id/metropolitan-district-council/walsall,WC98-775,30/09/2018,Economy & Environment,CAMPBELL INSTALLATIONS LTD,19/11/2018,495.00,73025-PROFESSIONAL SERVICES-PRIV CONTRACTOR & OTHER AGENCIES,PARKING SERVICES OFF-STREET,Third Party Payments,Revenue
Walsall Council,http://opendatacommunities.org/id/metropolitan-district-council/walsall,WC98-776,30/09/2018,Economy & Environment,CAMPBELL INSTALLATIONS LTD,19/11/2018,495.00,73025-PROFESSIONAL SERVICES-PRIV CONTRACTOR & OTHER AGENCIES,PARKING SERVICES OFF-STREET,Third Party Payments,Revenue
Walsall Council,http://opendatacommunities.org/id/metropolitan-district-council/walsall,WC98-777,30/09/2018,Economy & Environment,CANAL & RIVER TRUST,21/11/2018,"1,302.75",43000-RENTS,ENVIRONMENTAL IMPROVEMENT SERVICE,Premises,Revenue
Walsall Council,http://opendatacommunities.org/id/metropolitan-district-council/walsall,WC98-778,30/09/2018,Childrens,CANNON HYGIENE LTD,20/11/2018,589.92,60539-CLEANING MATERIALS,CONTACT SESSIONAL STAFF,Supplies & Services,Revenue
Walsall Council,http://opendatacommunities.org/id/metropolitan-district-council/walsall,WC98-779,30/09/2018,Childrens,CAPITA BUSINESS SERVICES LTD 001,07/11/2018,97.48,63000-PROFESSIONAL FEES AND SERVICES,SCHOOL IMPROVEMENT-VIRTUAL SCHOOL,Supplies & Services,Revenue
Walsall Council,http://opendatacommunities.org/id/metropolitan-district-council/walsall,WC98-780,30/09/2018,Childrens,CAPITA BUSINESS SERVICES LTD 001,07/11/2018,97.48,63000-PROFESSIONAL FEES AND SERVICES,SEN ASSESSMENT,Supplies & Services,Revenue
Walsall Council,http://opendatacommunities.org/id/metropolitan-district-council/walsall,WC98-781,30/09/2018,Childrens,CAPITA BUSINESS SERVICES LTD 001,07/11/2018,97.48,63000-PROFESSIONAL FEES AND SERVICES,WEST LOCALITY - SCHOOL READY,Supplies & Services,Revenue
Walsall Council,http://opendatacommunities.org/id/metropolitan-district-council/walsall,WC98-782,30/09/2018,Childrens,CAPITA BUSINESS SERVICES LTD 001,07/11/2018,97.48,63000-PROFESSIONAL FEES AND SERVICES,PREMATURE RETIREMENT L.M.S.,Supplies & Services,Revenue
Walsall Council,http://opendatacommunities.org/id/metropolitan-district-council/walsall,WC98-783,30/09/2018,Economy & Environment,CAPITA BUSINESS SERVICES LTD 001,07/11/2018,194.96,63000-PROFESSIONAL FEES AND SERVICES,FOREST ARTS CENTRE,Supplies & Services,Revenue
Walsall Council,http://opendatacommunities.org/id/metropolitan-district-council/walsall,WC98-784,30/09/2018,Resources and Transformation,CAPITA BUSINESS SERVICES LTD 001,02/11/2018,"1,497.50",63820-RECHARGE FOR MAINTENANCE/APPLICATION COSTS-COMPUTER,APPLICATIONS,Supplies & Services,Revenue
